{"text_format":"1","workbook":"xlsx","n_sheets":7,"sheets":["Tabla 13 - COAI","DIMYCOMP","Tabla 14 - PAS 2018","Componentes Metas","DIMYCOMP (2)","FUENTES DE RECURSOS","Hoja1"],"not_rendered":{"charts":0,"images":1,"macros":1,"external_links":4,"defined_names":81,"comments":0,"pivot_tables":0},"unopened":[],"bounds":{"document_bytes":16777216,"sheet_cells":100000,"rows_first":2000,"rows_last":500,"rows_between":2000,"halvings":0,"cell_chars":16384,"cell_head_chars":4096},"cells_cut":0,"cells_raw":0,"read":"whole","date_system":"1900"}

{"sheet":"Tabla 13 - COAI","index":0,"n_rows":4,"n_cols":11,"rows_kept":4,"cut":false,"hidden":true,"merged":[[0,1,0,10],[1,1,1,10]]}
[null,"                                                         DOCUMENTO DE TRABAJO - 2016"]
[null,"TABLA 13: CONSOLIDACIÓN DEL COMPONENTE OPERATIVO ANUAL DE INVERSIONES EN SALUD - COAI \nVer documento de Lineamientos Metodologicos, Tecnicos y Operativos - Pag. 235"]
[null,1,2,3,4,5,6,7,8,9,10]
[null,"Dimensión","Código Programa","Programa ","Componente","Código subprograma","Subprograma","Código proyecto (BPI)","Proyecto","Apropiación Anual \n(Miles de Pesos)","Fuente de Recursos"]

{"sheet":"DIMYCOMP","index":1,"n_rows":42,"n_cols":18,"rows_kept":42,"cut":false,"hidden":true,"merged":[[0,12,0,13]]}
[null,1,2,3,4,5,6,7,8,9,10,null,"FUENTES DE RECURSOS"]
[null,"DIMENSIÓN_DE_SALUD_AMBIENTAL","DIMENSIÓN_DE_VIDA_SALUDABLE_Y_CONDICIONES_NO_TRANSMISIBLES","DIMENSIÓN_CONVIVENCIA_SOCIAL_Y_SALUD_MENTAL","DIMENSIÓN_SEGURIDAD_ALIMENTARIA_Y_NUTRICIONAL","DIMENSIÓN_SEXUALIDAD_DERECHOS_SEXUALES_Y_REPRODUCTIVOS","DIMENSIÓN_VIDA_SALUDABLE_Y_ENFERMEDADES_TRANSMISIBLES","DIMENSIÓN_SALUD_PÚBLICA_EN_EMERGENCIAS_Y_DESASTRES","DIMENSIÓN_SALUD_Y_ÁMBITO_LABORAL","DIMENSIÓN_TRANSVERSAL_GESTIÓN_DIFERENCIAL_DE_POBLACIONES_VULNERABLES","DIMENSIÓN_FORTALECIMIENTO_DE_LA_AUTORIDAD_SANITARIA_PARA_LA_GESTIÓN_EN_SALUD",null,1,"Recursos_Provenientes_del_Sistema_General_de_Participaciones_SGP",null,"A.2.1","RÉGIMEN SUBSIDIADO ","A.2.1 RÉGIMEN SUBSIDIADO "]
[null,"HABITAT_SALUDABLE","MODOS_CONDICIONES_Y__ESTILOS_DE_VIDA_SALUDABLES","PROMOCION_DE_LA_SALUD_MENTAL_Y_LA_CONVIVENCIA","DISPONIBILIDAD_Y_ACCESO_A_LOS_ALIMENTOS","PROMOCION_DE_LOS_DERECHOS_SEXUALES_Y_REPRODUCTIVOS_Y_EQUIDAD_DE_GENERO","ENFERMEDADES_EMERGENTES_RE_EMERGENTES_Y_DESATENDIDAS","GESTION_INTEGRAL_DE_RIESGOS_EN_EMERGENCIAS_Y_DESASTRES","SEGURIDAD_Y_SALUD_EN_EL_TRABAJO","DESARROLLO_INTEGRAL_DE_LAS_NIÑAS_NIÑOS_Y_ADOLESCENTES","FORTALECIMIENTO_DE_LA_AUTORIDAD_SANITARIA",null,2,"Transferencias_en_salud_del_Ministerio_de_Salud_y_Protección_Social_MSPS",null,"A.2.2","SALUD PÚBLICA   ","A.2.2 SALUD PÚBLICA   "]
[null,"SITUACIONES_EN_SALUD_RELACIONADAS_CON_CONDICIONES_AMBIENTALES","CONDICIONES_CRONICAS_PREVALENTES","PREVENCION_Y_ATENCION_INTEGRAL_A_PROBLEMAS_Y_TRASTORNOS_MENTALES_Y_A_DIFERENTES_FORMAS_DE_VIOLENCIA","CONSUMO_Y_APROVECHAMIENTO_BIOLOGICO_DE_ALIMENTOS","PREVENCION_Y_ATENCION_INTEGRAL_EN_SALUD_SEXUAL_Y_REPRODUCTIVA_DESDE_UN_ENFOQUE_DE_DERECHOS","ENFERMEDADES_INMUNOPREVENIBLES","RESPUESTA_EN_SALUD_ANTE_SITUACIONES_DE_EMERGENCIAS_Y_DESASTRES","SITUACIONES_PREVALENTES_DE_ORIGEN_LABORAL","ENVEJECIMIENTO_Y_VEJEZ",null,null,3,"Rentas_cedidas_Departamentos",null,"A.2.3","PRESTACION DE SERVICIOS A LA POBLACION POBRE EN LO NO CUBIERTO CON SUBSIDIOS A LA DEMANDA ","A.2.3 PRESTACION DE SERVICIOS A LA POBLACION POBRE EN LO NO CUBIERTO CON SUBSIDIOS A LA DEMANDA "]
[null,null,null,null,"INOCUIDAD_Y_CALIDAD_DE_LOS_ALIMENTOS",null,"CONDICIONES_Y_SITUACIONES_ENDEMO_EPIDEMICAS",null,null,"SALUD_Y_GENERO",null,null,4,"Recursos_del_Esfuerzo_Propio_Territorial_Recursos_propios",null,"A.2.4","OTROS GASTOS EN SALUD","A.2.4 OTROS GASTOS EN SALUD"]
[null,null,null,null,null,null,null,null,null,"SALUD_EN_POBLACIONES_ETNICAS",null,null,5,"Recursos_de_las_Cajas_de_Compensación_Familiar_Municipios"]
[null,null,null,null,null,null,null,null,null,"DISCAPACIDAD",null,null,6,"FOSYGA_Porcentaje_destinado_a_Entidad_Territorial"]
[null,null,null,null,null,null,null,null,null,"VICTIMAS_DEL_CONFLICTO_ARMADO_INTERNO",null,null,7,"Otros_Recursos_departamentales_y_o_distritales"]
[]
[]
[]
[]
[]
[]
[null,null,null,null,null,null,null,null,null,null,"PIC - Insumos","PIC - Insumos"]
[null,"PROMOCIÓN_DE_LA_SALUD","PIC","Biológico",null,"Años",null,null,null,null,"PIC - Rehabilitación basada en comunidad","PIC - Rehabilitación basada en comunidad"]
[null,"GESTIÓN_DE_RIESGO_EN_SALUD","AGENDA_TRANSECTORIAL","Canalización",null,"Avpp",null,null,null,null,"PIC - Prevención y control de vectores","PIC - Prevención y control de vectores"]
[null,"GESTIÓN_DE_LA_SALUD_PÚBLICA","INDIVIDUAL_POS","Caracterización social y ambiental",null,"Avisas",null,null,null,null,"PIC - Conformación y fortalecimiento de redes sociales, comunitarias, sectoriales e intersectoriales","PIC - Conformación y fortalecimiento de redes sociales, comunitarias, sectoriales e intersectoriales"]
[null,null,"COLECTIVO_PIC","Conformación y fortalecimiento de redes sociales, comunitarias, sectoriales e intersectoriales",null,"Casos",null,null,null,null,"PIC - Zonas de orientación y centros de escucha","PIC - Zonas de orientación y centros de escucha"]
[null,null,"GSP","Educación y comunicación para la salud",null,"Documentos",null,null,null,null,"PIC - Información en salud","PIC - Información en salud"]
[null,null,null,"Información en salud",null,"Habitantes",null,null,null,null,"PIC - Educación y comunicación en salud","PIC - Educación y comunicación en salud"]
[null,null,null,"Insumos",null,"Incidencia",null,null,null,null,"PIC - Intervención de la población trabajadora informal","PIC - Intervención de la población trabajadora informal"]
[null,null,null,"Intervención de la población trabajadora informal",null,"Indice",null,null,null,null,"PIC - Canalización","PIC - Canalización"]
[null,null,null,"Jornadas de salud",null,"Mediana",null,null,null,null,"PIC - Caracterización social y ambiental","PIC - Caracterización social y ambiental"]
[null,null,null,"Medicamentos",null,"Meses",null,null,null,null,"PIC - Tamizaje","PIC - Tamizaje"]
[null,null,null,"Prevención y control de vectores",null,"Número",null,null,null,null,"PIC - Jornadas de salud","PIC - Jornadas de salud"]
[null,null,null,"Rehabilitación basada en comunidad",null,"Personas",null,null,null,null,"PIC - Vacunación antirrábica","PIC - Vacunación antirrábica"]
[null,null,null,"Tamizaje",null,"Porcentaje",null,null,null,null,"PIC - Biológico","PIC - Biológico"]
[null,null,null,"Vacunación antirrábica",null,"Prevalencia",null,null,null,null,"PIC - Medicamentos","PIC - Medicamentos"]
[null,null,null,"Zonas de orientación y centros de escucha",null,"Probabilidad",null,null,null,null,"GSP - Coordinación Intersectorial"]
[null,null,null,null,null,"Promedio",null,null,null,null,"GSP - Desarrollo de capacidades"]
[null,null,null,null,null,"Proporción",null,null,null,null,"GSP - Gestión administrativa y financiera"]
[null,null,null,null,null,"Razón",null,null,null,null,"GSP - Gestión del Aseguramiento"]
[null,null,null,null,null,"Tasa",null,null,null,null,"GSP -  Gestión del conocimiento"]
[null,null,null,null,null,null,null,null,null,null,"GSP - Gestión de Insumos de interés en Salud Pública"]
[null,null,null,null,null,null,null,null,null,null,"GSP -  Gestión del talento humano"]
[null,null,null,null,null,null,null,null,null,null,"GSP - Gestión de las Intervenciones colectivas"]
[null,null,null,null,null,null,null,null,null,null,"GSP - Gestión de la prestación de servicios individuales"]
[null,null,null,null,null,null,null,null,null,null,"GSP - Participación Social"]
[null,null,null,null,null,null,null,null,null,null,"GSP - Planeación Integral en Salud "]
[null,null,null,null,null,null,null,null,null,null,"GSP -  Vigilancia en Salud Pública"]
[null,null,null,null,null,null,null,null,null,null,"GSP - Inspección, Vigilancia y Control "]

{"sheet":"Tabla 14 - PAS 2018","index":2,"n_rows":173,"n_cols":42,"rows_kept":173,"cut":false,"hidden":false,"merged":[[0,0,0,40],[1,0,1,40],[2,25,2,26],[2,30,2,32],[3,0,4,0],[3,1,4,1],[3,2,4,2],[3,3,4,3],[3,4,4,4],[3,5,4,5],[3,6,4,6],[3,7,4,7],[3,12,4,12],[3,16,4,16],[3,17,4,17],[3,38,3,40],[3,8,4,8],[3,9,4,9],[3,10,4,10],[3,11,4,11],[3,13,4,13],[153,12,158,12],[159,12,161,12],[3,27,3,29],[3,30,3,32],[3,33,3,37],[3,18,4,18],[3,14,4,14],[3,15,4,15],[3,19,4,19],[3,20,3,24],[3,25,3,26]]}
["                                                                                                             DOCUMENTO DE TRABAJO "]
["TABLA 14: ELABORACIÓN Y CONSOLIDACIÓN DEL PLAN DE ACCIÓN EN SALUD (PAS) E INDICADORES \nVer documento de Lineamientos Metodologicos, Tecnicos y Operativos - Pag. 243"]
[1,2,3,4,5,6,7,8,9,10,11,12,13,14,15,16,17,18,19,20,21,22,23,24,25,26,null,27,28,29,30,null,null,31,32,33,34,35,36,37,38]
["Dimensión","Código Programa","Programa ","Componente","Código subprograma","Subprograma","Código proyecto (BPI)","Proyecto","Meta de Resultado","Nombre Indicador","Linea Base","Meta 2019","Meta de Producto Anual","Nombre Indicador","Linea Base","Meta 2019","Estrategia de PTS","Actividades ","Cantidad Programada","Unidad de Medida","Actividades programadas por trimestre",null,null,null,null,"Linea de Acción",null,"Recursos programados",null,null,"Responsables del cumplimiento",null,null,"Actividades ejecutadas por trimestre",null,null,null,null,"Recursos ejecutados"]
[null,null,null,null,null,null,null,null,null,null,null,null,null,null,null,null,null,null,null,null,"I","II","III","IV","Total","Linea Operativa","Categoria Linea Operativa","Código Rubro Presupuestal","Fuente de Financiación","Total recursos programados \n(Miles de Pesos)","Dependencia ","Cargo ","Nombres y Apellidos","I","II","III","IV","Total","Código Rubro Presupuestal","Fuente de Financiación","Total recursos ejecutados \n(Miles de Pesos)"]
["DIMENSIÓN_DE_SALUD_AMBIENTAL",20901,"MEJORANDO CONDICIONES AMBIENTALES PARA UN PITALITO IDEAL","HABITAT_SALUDABLE","NA","NA",null,null,"Mantener la mortalidad general por debajo de 476,8 muertes x100.000 habitantes.","Tasa de mortalidad general por 100.000 habitantes","476,8 x 100.000 habitantes","476,8 x 100.000 habitantes","Garantizar el desarrollo de la estrategia Entornos Saludables/ Viviendas Saludables en Viviendas del municipio de Pitalito.",null,null,null,null,"Elaboración del Diagnóstico con base en la caracterizacion de las condiciones de saneamiento a nivel familiar, para la priorización del territorio donde se implementará la Estrategia Vivienda saludable.",null,null,null,null,null,null,null,"PROMOCIÓN_DE_LA_SALUD","PIC - Caracterización social y ambiental"]
["DIMENSIÓN_DE_SALUD_AMBIENTAL",20901,"MEJORANDO CONDICIONES AMBIENTALES PARA UN PITALITO IDEAL","HABITAT_SALUDABLE","NA","NA",null,null,"Mantener la mortalidad general por debajo de 476,8 muertes x100.000 habitantes.","Tasa de mortalidad general por 100.000 habitantes","476,8 x 100.000 habitantes","476,8 x 100.000 habitantes","Garantizar el desarrollo de la estrategia Entornos Saludables/ Viviendas Saludables en Viviendas del municipio de Pitalito.","Número de viviendas del municipio de  Pitalito con la estrategia Entornos Saludables/ Viviendas Saludables.",0,250,"Estrategia de Entornos Saludables: busca contribuir a la seguridad humana, el desarrollo humano sustentable y la equidad en salud, mediante acciones que influyan sobre los determinantes de la salud bajo esquemas operativos participativos organizados alrededor de entornos específicos, como la vivienda, la escuela, el espacio público, el entorno laboral, ecosistemas estratégicos sostenibles, y bajo enfoques que privilegian a la familia y la comunidad.","Desarrollar la Estrategia Entorno Saludable/Vivienda Saludable, en las Viviendas priorizadas.",null,null,null,null,null,null,{"$f":"SUM(U7:X7)","v":0},"PROMOCIÓN_DE_LA_SALUD","PIC - Educación y comunicación en salud",null,null,null,"Secretaría de salud Municipal","Secretaria de salud Municipal","Yaneth Sofia Ortiz Parra",{"$f":"AD7/(U7+V7+W7+X7)*U7","v":{"$error":"#DIV/0!"}},null,null,null,{"$f":"AH7+AI7+AJ7+AK7","v":{"$error":"#DIV/0!"}},null,null,{"$f":"AL7","v":{"$error":"#DIV/0!"}}]
["DIMENSIÓN_DE_SALUD_AMBIENTAL",20902,"MEJORANDO CONDICIONES AMBIENTALES PARA UN PITALITO IDEAL","HABITAT_SALUDABLE","NA","NA",null,null,"Mantener la mortalidad general por debajo de 476,8 muertes x100.000 habitantes.","Tasa de mortalidad general por 100.000 habitantes","476,8 x 100.000 habitantes","476,8 x 100.000 habitantes","Garantizar el desarrollo de la estrategia Entornos Saludables/ Viviendas Saludables en Viviendas del municipio de Pitalito.",null,null,null,null,"Acciones de educación para la tenencia responsable de animales de compañía y de producción a nivel de grupos comunitarios, estudiantes y propietarios de conjuntos residenciales.",null,null,null,null,null,null,null,"PROMOCIÓN_DE_LA_SALUD","PIC - Educación y comunicación en salud"]
["DIMENSIÓN_DE_SALUD_AMBIENTAL",20903,"MEJORANDO CONDICIONES AMBIENTALES PARA UN PITALITO IDEAL","HABITAT_SALUDABLE","NA","NA",null,null,"Mantener la mortalidad general por debajo de 476,8 muertes x100.000 habitantes.","Tasa de mortalidad general por 100.000 habitantes","476,8 x 100.000 habitantes","476,8 x 100.000 habitantes","Garantizar el desarrollo de la estrategia Entornos Saludables/ Viviendas Saludables en Viviendas del municipio de Pitalito.",null,null,null,null,"Elaboración de plan de trabajo correctivo de acuerdo a resultados del mapa de riesgo de calidad de agua encaminados a la gestión integral del recurso hídrico.",null,null,null,null,null,null,null,"GESTIÓN_DE_LA_SALUD_PÚBLICA","GSP - Planeación Integral en Salud "]
["DIMENSIÓN_DE_SALUD_AMBIENTAL",20901,"MEJORANDO CONDICIONES AMBIENTALES PARA UN PITALITO IDEAL","HABITAT_SALUDABLE","NA","NA",null,null,"Mantener la mortalidad general por debajo de 476,8 muertes x100.000 habitantes.","Tasa de mortalidad general por 100.000 habitantes","476,8 x 100.000 habitantes","476,8 x 100.000 habitantes","Garantizar el desarrollo de la estrategia Entornos Saludables/ Escuela saludable en  sedes educativas del municipio de Pitalito.","Número de sedes educativas con la Estrategia Entorno saludable/ Escuela saludable.",0,6,"Estrategia de Entornos Saludables: busca contribuir a la seguridad humana, el desarrollo humano sustentable y la equidad en salud, mediante acciones que influyan sobre los determinantes de la salud bajo esquemas operativos participativos organizados alrededor de entornos específicos, como la vivienda, la escuela, el espacio público, el entorno laboral, ecosistemas estratégicos sostenibles, y bajo enfoques que privilegian a la familia y la comunidad.","Implementar  la Estrategia Entorno Saludable/Escuela Saludable en 4 Sedes Educativas",null,null,null,null,null,null,0,"PROMOCIÓN_DE_LA_SALUD","PIC - Educación y comunicación en salud",null,null,null,"Secretaría de salud Municipal","Secretaria de salud Municipal","Yaneth Sofia Ortiz Parra",{"$error":"#DIV/0!"},null,null,null,{"$f":"AH10+AI10+AJ10+AK10","v":{"$error":"#DIV/0!"}},null,null,{"$f":"AL10","v":{"$error":"#DIV/0!"}}]
["DIMENSIÓN_DE_SALUD_AMBIENTAL",20901,"MEJORANDO CONDICIONES AMBIENTALES PARA UN PITALITO IDEAL","SITUACIONES_EN_SALUD_RELACIONADAS_CON_CONDICIONES_AMBIENTALES","NA","NA",null,null,"Mantener la mortalidad general por debajo de 476,8 muertes x100.000 habitantes.","Tasa de mortalidad general por 100.000 habitantes","476,8 x 100.000 habitantes","476,8 x 100.000 habitantes","1911 establecimientos de interés sanitario de alto riesgo, vigilados y controlados.","Número de establecimientos de interés sanitario de alto riesgo, vigilados y controlados.",1736,1911,"Fortalecimiento de la vigilancia en salud pública  para la detección, prevención y control de las situaciones de salud relacionadas con condiciones ambientales y zoonosis.","Apoyar la capacitación y registro mensual de manipuladores de alimentos.",null,null,null,null,null,null,0,"GESTIÓN_DE_LA_SALUD_PÚBLICA","GSP -  Vigilancia en Salud Pública",null,null,null,"Secretaría de salud Municipal","Secretaria de salud Municipal","Yaneth Sofia Ortiz Parra",{"$error":"#DIV/0!"},null,null,null,{"$error":"#DIV/0!"},null,null,{"$error":"#DIV/0!"}]
["DIMENSIÓN_DE_SALUD_AMBIENTAL",20902,"MEJORANDO CONDICIONES AMBIENTALES PARA UN PITALITO IDEAL","SITUACIONES_EN_SALUD_RELACIONADAS_CON_CONDICIONES_AMBIENTALES","NA","NA",null,null,"Mantener la mortalidad general por debajo de 476,8 muertes x100.000 habitantes.","Tasa de mortalidad general por 100.000 habitantes","476,8 x 100.000 habitantes","476,8 x 100.000 habitantes","1911 establecimientos de interés sanitario de alto riesgo, vigilados y controlados.",null,null,null,null,"Recepcion y direccionamiento del 100% de las quejas sanitarias",null,null,null,null,null,null,null,"GESTIÓN_DE_LA_SALUD_PÚBLICA","GSP - Inspección, Vigilancia y Control "]
["DIMENSIÓN_DE_SALUD_AMBIENTAL",20901,"MEJORANDO CONDICIONES AMBIENTALES PARA UN PITALITO IDEAL","SITUACIONES_EN_SALUD_RELACIONADAS_CON_CONDICIONES_AMBIENTALES","NA","NA",null,null,"Mantener la mortalidad general por debajo de 476,8 muertes x100.000 habitantes.","Tasa de mortalidad general por 100.000 habitantes","476,8 x 100.000 habitantes","476,8 x 100.000 habitantes","1722 establecimientos de interés sanitario de bajo riesgo vigilados y controlados.","Número de establecimientos de interés sanitario de alto riesgo, vigilados y controlados.",1566,1722,"Fortalecimiento de la vigilancia en salud pública  para la detección, prevención y control de las situaciones de salud relacionadas con condiciones ambientales y zoonosis.","Consolidación del censo de establecimientos de interés sanitario",null,null,null,null,null,null,0,"GESTIÓN_DE_LA_SALUD_PÚBLICA","GSP - Inspección, Vigilancia y Control ",null,null,null,"Secretaría de salud Municipal","Secretaria de salud Municipal","Yaneth Sofia Ortiz Parra",{"$error":"#DIV/0!"},null,null,null,{"$error":"#DIV/0!"},null,null,{"$error":"#DIV/0!"}]
["DIMENSIÓN_DE_SALUD_AMBIENTAL",20901,"MEJORANDO CONDICIONES AMBIENTALES PARA UN PITALITO IDEAL","SITUACIONES_EN_SALUD_RELACIONADAS_CON_CONDICIONES_AMBIENTALES","NA","NA",null,null,"Mantener la mortalidad general por debajo de 476,8 muertes x100.000 habitantes.","Tasa de mortalidad general por 100.000 habitantes","476,8 x 100.000 habitantes","476,8 x 100.000 habitantes","Mantener en 0 la tasa de rabia humana, canina y felina.","Número de establecimientos de interés sanitario de alto riesgo, vigilados y controlados.",0,0,"Gestión integral de la salud pública, en la prevención y control de las enfermedades transmisibles y zoonosis a través de realización de Jornadas de vacunación masivas en el municipio para la población canina y felina","Promoción y divulgación de la vacunación antirrábica a la población canina y felina, del sector urbano y rural del Municipio a través del plan de medios. ",null,null,null,null,null,null,0,"PROMOCIÓN_DE_LA_SALUD","PIC - Información en salud",null,null,null,"Secretaría de salud Municipal","Secretaria de salud Municipal","Yaneth Sofia Ortiz Parra",{"$error":"#DIV/0!"},null,null,null,{"$error":"#DIV/0!"},null,null,{"$error":"#DIV/0!"}]
["DIMENSIÓN_DE_VIDA_SALUDABLE_Y_CONDICIONES_NO_TRANSMISIBLES",20902,"ESTILOS DE VIDA SALUDABLE Y CONDICIONES NO TRANSMISIBLES PARA UN PITALITO IDEAL","MODOS_CONDICIONES_Y__ESTILOS_DE_VIDA_SALUDABLES","NA","NA",null,null,"Mantener la mortalidad general por debajo de 476,8 muertes x100.000 habitantes.","Tasa de mortalidad general por 100.000 habitantes","476,8 x 100.000 habitantes","476,8 x 100.000 habitantes","Capacitar a 1400 docentes de las Instituciones Educativas y representantes de las Instituciones Públicas, en las medidas establecidas en la ley 1335 de 2009, (ley de prevención y control de consumo de cigarrillo y tabaco).","Número de docentes de las Instituciones Educativas y representantes de las Instituciones Publicas capacitados en las medidas establecidas en la ley 1335 de 2009, (ley de prevención y control de consumo de cigarrillo y tabaco).",100,4200,"Conjunto de intervenciones poblacionales, colectivas e individuales incluyentes y diferenciales, que se gestionan y promueven desde lo sectorial, transectorial y comunitario para propiciar entornos cotidianos que favorezcan una vida saludable","Talleres lúdico pedagógicos en la aplicación de la ley 1335 de 2009 (Ley de Prevención y Control de consumo de cigarrillo y tabaco) a 1.400 docentes y/o funcionarios de instituciones públicas del Municipio, incluyendo la promoción de espacios 100% libres de humo.",null,"Número",null,null,null,null,0,"PROMOCIÓN_DE_LA_SALUD","PIC - Educación y comunicación en salud",null,"Recursos_Provenientes_del_Sistema_General_de_Participaciones_SGP",null,"Secretaría de salud Municipal","Secretaria de salud Municipal","Yaneth Sofia Ortiz Parra",{"$error":"#DIV/0!"},null,null,null,{"$error":"#DIV/0!"},null,null,{"$error":"#DIV/0!"}]
["DIMENSIÓN_DE_VIDA_SALUDABLE_Y_CONDICIONES_NO_TRANSMISIBLES",20902,"ESTILOS DE VIDA SALUDABLE Y CONDICIONES NO TRANSMISIBLES PARA UN PITALITO IDEAL","MODOS_CONDICIONES_Y__ESTILOS_DE_VIDA_SALUDABLES","NA","NA",null,null,"Mantener la mortalidad general por debajo de 476,8 muertes x100.000 habitantes.","Tasa de mortalidad general por 100.000 habitantes","476,8 x 100.000 habitantes","476,8 x 100.000 habitantes","Capacitar a 1400 docentes de las Instituciones Educativas y representantes de las Instituciones Públicas, en las medidas establecidas en la ley 1335 de 2009, (ley de prevención y control de consumo de cigarrillo y tabaco).",null,null,null,null,"Talleres lúdico pedagógicos para la socialización de la estrategia \"Tomate la vida con un segundo aire\", orientada a la prevención de EPOC.",null,"Número",null,null,null,null,null,"PROMOCIÓN_DE_LA_SALUD","PIC - Educación y comunicación en salud",null,"Recursos_Provenientes_del_Sistema_General_de_Participaciones_SGP",null,"Secretaría de salud Municipal","Secretaria de salud Municipal","Yaneth Sofia Ortiz Parra"]
["DIMENSIÓN_DE_VIDA_SALUDABLE_Y_CONDICIONES_NO_TRANSMISIBLES",20902,"ESTILOS DE VIDA SALUDABLE Y CONDICIONES NO TRANSMISIBLES PARA UN PITALITO IDEAL","MODOS_CONDICIONES_Y__ESTILOS_DE_VIDA_SALUDABLES","NA","NA",null,null,"Mantener la mortalidad general por debajo de 476,8 muertes x100.000 habitantes.","Tasa de mortalidad general por 100.000 habitantes","476,8 x 100.000 habitantes","476,8 x 100.000 habitantes","Capacitar a 1400 docentes de las Instituciones Educativas y representantes de las Instituciones Públicas, en las medidas establecidas en la ley 1335 de 2009, (ley de prevención y control de consumo de cigarrillo y tabaco).",null,null,null,null,"Conmemoración del día Mundial sin tabaco (31 de Mayo).",1,"Número",null,null,null,null,null,"PROMOCIÓN_DE_LA_SALUD","PIC - Información en salud",null,"Recursos_Provenientes_del_Sistema_General_de_Participaciones_SGP",null,"Secretaría de salud Municipal","Secretaria de salud Municipal","Yaneth Sofia Ortiz Parra"]
["DIMENSIÓN_DE_VIDA_SALUDABLE_Y_CONDICIONES_NO_TRANSMISIBLES",20902,"ESTILOS DE VIDA SALUDABLE Y CONDICIONES NO TRANSMISIBLES PARA UN PITALITO IDEAL","MODOS_CONDICIONES_Y__ESTILOS_DE_VIDA_SALUDABLES","NA","NA",null,null,"Mantener la mortalidad general por debajo de 476,8 muertes x100.000 habitantes.","Tasa de mortalidad general por 100.000 habitantes","476,8 x 100.000 habitantes","476,8 x 100.000 habitantes","Capacitar a 4000 docentes y estudiantes de Instituciones Educativas, funcionarios de ONG,s y otras instituciones en actividades propias de vida saludable.","Número de docentes y estudiantes de Instituciones Educativas, funcionarios de ONG,s y otras instituciones capacitados en actividades propias de vida saludable.",200,12000,"Conjunto de intervenciones poblacionales, colectivas e individuales incluyentes y diferenciales, que se gestionan y promueven desde lo sectorial, transectorial y comunitario para propiciar entornos cotidianos que favorezcan una vida saludable","Talleres lúdico pedagógicos para Promover la actividad física, peso saludable, el incremento del consumo diario de frutas y verduras, reducción del consumo de grasas, sal/sodio y azúcar a 4.000 docentes, estudiantes  y/o funcionarios de instituciones del Municipio.",null,"Número",null,null,null,null,0,"PROMOCIÓN_DE_LA_SALUD","PIC - Educación y comunicación en salud",null,"Recursos_Provenientes_del_Sistema_General_de_Participaciones_SGP",null,"Secretaría de salud Municipal","Secretaria de salud Municipal","Yaneth Sofia Ortiz Parra",{"$error":"#DIV/0!"},null,null,null,{"$error":"#DIV/0!"},null,null,{"$error":"#DIV/0!"}]
["DIMENSIÓN_DE_VIDA_SALUDABLE_Y_CONDICIONES_NO_TRANSMISIBLES",20902,"ESTILOS DE VIDA SALUDABLE Y CONDICIONES NO TRANSMISIBLES PARA UN PITALITO IDEAL","MODOS_CONDICIONES_Y__ESTILOS_DE_VIDA_SALUDABLES","NA","NA",null,null,"Mantener la mortalidad general por debajo de 476,8 muertes x100.000 habitantes.","Tasa de mortalidad general por 100.000 habitantes","476,8 x 100.000 habitantes","476,8 x 100.000 habitantes","Capacitar a 4000 docentes y estudiantes de Instituciones Educativas, funcionarios de ONG,s y otras instituciones en actividades propias de vida saludable.",null,null,null,null,"Talleres lúdicos a la población general  orientados a la disminución del consumo nocivo de alcohol (de riesgo y perjudicial) y a posponer la edad promedio de inicio de consumo de alcohol en adolescentes por encima de 14 años.",null,"Número",null,null,null,null,null,"PROMOCIÓN_DE_LA_SALUD","PIC - Educación y comunicación en salud",null,"Recursos_Provenientes_del_Sistema_General_de_Participaciones_SGP",null,"Secretaría de salud Municipal","Secretaria de salud Municipal","Yaneth Sofia Ortiz Parra"]
["DIMENSIÓN_DE_VIDA_SALUDABLE_Y_CONDICIONES_NO_TRANSMISIBLES",20902,"ESTILOS DE VIDA SALUDABLE Y CONDICIONES NO TRANSMISIBLES PARA UN PITALITO IDEAL","MODOS_CONDICIONES_Y__ESTILOS_DE_VIDA_SALUDABLES","NA","NA",null,null,"Mantener la mortalidad general por debajo de 476,8 muertes x100.000 habitantes.","Tasa de mortalidad general por 100.000 habitantes","476,8 x 100.000 habitantes","476,8 x 100.000 habitantes","Capacitar a 4000 docentes y estudiantes de Instituciones Educativas, funcionarios de ONG,s y otras instituciones en actividades propias de vida saludable.",null,null,null,null,"Celebrar el día mundial de la Actividad Física (6 de abril).",1,"Número",null,null,null,null,null,"PROMOCIÓN_DE_LA_SALUD","PIC - Información en salud",null,"Recursos_Provenientes_del_Sistema_General_de_Participaciones_SGP",null,"Secretaría de salud Municipal","Secretaria de salud Municipal","Yaneth Sofia Ortiz Parra"]
["DIMENSIÓN_DE_VIDA_SALUDABLE_Y_CONDICIONES_NO_TRANSMISIBLES",20902,"ESTILOS DE VIDA SALUDABLE Y CONDICIONES NO TRANSMISIBLES PARA UN PITALITO IDEAL","MODOS_CONDICIONES_Y__ESTILOS_DE_VIDA_SALUDABLES","NA","NA",null,null,"Mantener la mortalidad general por debajo de 476,8 muertes x100.000 habitantes.","Tasa de mortalidad general por 100.000 habitantes","476,8 x 100.000 habitantes","476,8 x 100.000 habitantes","Capacitar a 4000 docentes y estudiantes de Instituciones Educativas, funcionarios de ONG,s y otras instituciones en actividades propias de vida saludable.",null,null,null,null,"Conmemoración de la Semana de Estilos de Vida Saludable-EVS, en el marco de la Ley 1355/2009 comprendida entre el 19 y el 24 de Septiembre.",1,"Número",null,null,null,null,null,"PROMOCIÓN_DE_LA_SALUD","PIC - Información en salud",null,"Recursos_Provenientes_del_Sistema_General_de_Participaciones_SGP",null,"Secretaría de salud Municipal","Secretaria de salud Municipal","Yaneth Sofia Ortiz Parra"]
["DIMENSIÓN_DE_VIDA_SALUDABLE_Y_CONDICIONES_NO_TRANSMISIBLES",20902,"ESTILOS DE VIDA SALUDABLE Y CONDICIONES NO TRANSMISIBLES PARA UN PITALITO IDEAL","MODOS_CONDICIONES_Y__ESTILOS_DE_VIDA_SALUDABLES","NA","NA",null,null,"Mantener la mortalidad general por debajo de 476,8 muertes x100.000 habitantes.","Tasa de mortalidad general por 100.000 habitantes","476,8 x 100.000 habitantes","476,8 x 100.000 habitantes","Vincular a 5000 personas a la promoción de la actividad física en espacios públicos en el municipio.",null,null,null,null,"Acciones lúdicas para promover la inclusión mínima de 300 minutos de actividad física a la semana en instituciones de formación de niños y jóvenes, además de fomentar el deporte recreativo y la sana competencia.",null,"Número",null,null,null,null,null,"PROMOCIÓN_DE_LA_SALUD","PIC - Educación y comunicación en salud",null,"Recursos_Provenientes_del_Sistema_General_de_Participaciones_SGP",null,"Secretaría de salud Municipal","Secretaria de salud Municipal","Yaneth Sofia Ortiz Parra"]
["DIMENSIÓN_DE_VIDA_SALUDABLE_Y_CONDICIONES_NO_TRANSMISIBLES",20902,"ESTILOS DE VIDA SALUDABLE Y CONDICIONES NO TRANSMISIBLES PARA UN PITALITO IDEAL","MODOS_CONDICIONES_Y__ESTILOS_DE_VIDA_SALUDABLES","NA","NA",null,null,"Mantener la mortalidad general por debajo de 476,8 muertes x100.000 habitantes.","Tasa de mortalidad general por 100.000 habitantes","476,8 x 100.000 habitantes","476,8 x 100.000 habitantes","Vincular a 5000 personas a la promoción de la actividad física en espacios públicos en el municipio.","Número de personas vinculadas a la promoción de la actividad física en espacios públicos en el municipio.",1660,5000,"Conjunto de intervenciones poblacionales, colectivas e individuales incluyentes y diferenciales, que se gestionan y promueven desde lo sectorial, transectorial y comunitario para propiciar entornos cotidianos que favorezcan una vida saludable","Establecer y desarrollar rutinas o programas dirigidos de Actividad Física, de acuerdo a la clasificación del riesgo de la población y grupos etáreos de los 6 a los 17 años y de los 18 a los 64 años, vinculando a 5.000 personas.",null,"Número",null,null,null,null,0,"PROMOCIÓN_DE_LA_SALUD","PIC - Educación y comunicación en salud",null,"Recursos_Provenientes_del_Sistema_General_de_Participaciones_SGP",null,"Secretaría de salud Municipal","Secretaria de salud Municipal","Yaneth Sofia Ortiz Parra",{"$error":"#DIV/0!"},null,null,null,{"$error":"#DIV/0!"},null,null,{"$error":"#DIV/0!"}]
["DIMENSIÓN_DE_VIDA_SALUDABLE_Y_CONDICIONES_NO_TRANSMISIBLES",20902,"ESTILOS DE VIDA SALUDABLE Y CONDICIONES NO TRANSMISIBLES PARA UN PITALITO IDEAL","MODOS_CONDICIONES_Y__ESTILOS_DE_VIDA_SALUDABLES","NA","NA",null,null,"Mantener la mortalidad general por debajo de 476,8 muertes x100.000 habitantes.","Tasa de mortalidad general por 100.000 habitantes","476,8 x 100.000 habitantes","476,8 x 100.000 habitantes","Vincular a 5000 personas a la promoción de la actividad física en espacios públicos en el municipio.",null,null,null,null,"Seguimiento a usuarios que participan en los programas de actividad física teniendo en cuenta la clasificación del riesgo.",null,"Número",null,null,null,null,null,"PROMOCIÓN_DE_LA_SALUD","PIC - Educación y comunicación en salud",null,"Recursos_Provenientes_del_Sistema_General_de_Participaciones_SGP",null,"Secretaría de salud Municipal","Secretaria de salud Municipal","Yaneth Sofia Ortiz Parra"]
["DIMENSIÓN_DE_VIDA_SALUDABLE_Y_CONDICIONES_NO_TRANSMISIBLES",20902,"ESTILOS DE VIDA SALUDABLE Y CONDICIONES NO TRANSMISIBLES PARA UN PITALITO IDEAL","MODOS_CONDICIONES_Y__ESTILOS_DE_VIDA_SALUDABLES","NA","NA",null,null,"Mantener la mortalidad general por debajo de 476,8 muertes x100.000 habitantes.","Tasa de mortalidad general por 100.000 habitantes","476,8 x 100.000 habitantes","476,8 x 100.000 habitantes","Vincular a 5000 personas a la promoción de la actividad física en espacios públicos en el municipio.",null,null,null,null,"Canalizar a servicios de salud al 100% de la población según el perfil del riesgo cardiovascular y metabólico identificado en el proceso de actividad fisica.",null,"Número",null,null,null,null,null,"PROMOCIÓN_DE_LA_SALUD","PIC - Canalización",null,"Recursos_Provenientes_del_Sistema_General_de_Participaciones_SGP",null,"Secretaría de salud Municipal","Secretaria de salud Municipal","Yaneth Sofia Ortiz Parra"]
["DIMENSIÓN_DE_VIDA_SALUDABLE_Y_CONDICIONES_NO_TRANSMISIBLES",20902,"ESTILOS DE VIDA SALUDABLE Y CONDICIONES NO TRANSMISIBLES PARA UN PITALITO IDEAL","CONDICIONES_CRONICAS_PREVALENTES","NA","NA",null,null,"Mantener la mortalidad general por debajo de 476,8 muertes x100.000 habitantes.","Tasa de mortalidad general por 100.000 habitantes","476,8 x 100.000 habitantes","476,8 x 100.000 habitantes","Implementar una estrategia para la promoción de prácticas de autocuidado,  prevención y manejo de las Enfermedades No Transmisibles, la salud bucal, visual y auditiva, desde la primera infancia y la importancia de la detección temprana de sobrepeso y obesidad, diabetes, hipertensión, enfermedad renal crónica, enfermedades cardiovasculares.",null,null,null,null,"Realizar 44 acciones de Educación y Comunicación para la Salud en promoción de prácticas de autocuidado para la prevención y manejo de las Enfermedades No Transmisibles-ENT, la Salud Visual y Auditiva, desde la primera infancia, en los entornos y programas sociales de las sedes educativas de básica primaria y básica secundaria.",44,"Número",null,null,null,null,null,"PROMOCIÓN_DE_LA_SALUD","PIC - Educación y comunicación en salud",null,"Recursos_Provenientes_del_Sistema_General_de_Participaciones_SGP",null,"Secretaría de salud Municipal","Secretaria de salud Municipal","Yaneth Sofia Ortiz Parra"]
["DIMENSIÓN_DE_VIDA_SALUDABLE_Y_CONDICIONES_NO_TRANSMISIBLES",20902,"ESTILOS DE VIDA SALUDABLE Y CONDICIONES NO TRANSMISIBLES PARA UN PITALITO IDEAL","CONDICIONES_CRONICAS_PREVALENTES","NA","NA",null,null,"Mantener la mortalidad general por debajo de 476,8 muertes x100.000 habitantes.","Tasa de mortalidad general por 100.000 habitantes","476,8 x 100.000 habitantes","476,8 x 100.000 habitantes","Implementar una estrategia para la promoción de prácticas de autocuidado,  prevención y manejo de las Enfermedades No Transmisibles, la salud bucal, visual y auditiva, desde la primera infancia y la importancia de la detección temprana de sobrepeso y obesidad, diabetes, hipertensión, enfermedad renal crónica, enfermedades cardiovasculares.",null,null,null,null,"Talleres educativos a estudiantes de Instituciones Educativas en temáticas como: diagnóstico y desarrollo de habilidades motrices en bicicleta, mantenimiento de la bici, impacto y cuidado ambiental, normas de tránsito, comportamiento en la vía, partes y uso de la bicicleta.",null,"Número",null,null,null,null,null,"PROMOCIÓN_DE_LA_SALUD","PIC - Educación y comunicación en salud",null,"Recursos_Provenientes_del_Sistema_General_de_Participaciones_SGP",null,"Secretaría de salud Municipal","Secretaria de salud Municipal","Yaneth Sofia Ortiz Parra"]
["DIMENSIÓN_DE_VIDA_SALUDABLE_Y_CONDICIONES_NO_TRANSMISIBLES",20902,"ESTILOS DE VIDA SALUDABLE Y CONDICIONES NO TRANSMISIBLES PARA UN PITALITO IDEAL","CONDICIONES_CRONICAS_PREVALENTES","NA","NA",null,null,"Mantener la mortalidad general por debajo de 476,8 muertes x100.000 habitantes.","Tasa de mortalidad general por 100.000 habitantes","476,8 x 100.000 habitantes","476,8 x 100.000 habitantes","Implementar una estrategia para la promoción de prácticas de autocuidado,  prevención y manejo de las Enfermedades No Transmisibles, la salud bucal, visual y auditiva, desde la primera infancia y la importancia de la detección temprana de sobrepeso y obesidad, diabetes, hipertensión, enfermedad renal crónica, enfermedades cardiovasculares.",null,null,null,null,"2 Acciones masivas de información en cada comuna y corregimiento para la promoción de la donación de sangre, organos  y tejidos y apoyar las jornadas de donacion masivas lideradas por la Secretaría de Salud.",24,"Número",null,null,null,null,null,"PROMOCIÓN_DE_LA_SALUD","PIC - Información en salud",null,"Recursos_Provenientes_del_Sistema_General_de_Participaciones_SGP",null,"Secretaría de salud Municipal","Secretaria de salud Municipal","Yaneth Sofia Ortiz Parra"]
["DIMENSIÓN_DE_VIDA_SALUDABLE_Y_CONDICIONES_NO_TRANSMISIBLES",20902,"ESTILOS DE VIDA SALUDABLE Y CONDICIONES NO TRANSMISIBLES PARA UN PITALITO IDEAL","CONDICIONES_CRONICAS_PREVALENTES","NA","NA",null,null,"Mantener la mortalidad general por debajo de 476,8 muertes x100.000 habitantes.","Tasa de mortalidad general por 100.000 habitantes","476,8 x 100.000 habitantes","476,8 x 100.000 habitantes","Lograr un índice de (Cariados, obturados y perdidos) -COP por debajo de 3,0 en menores de 12 años.",null,null,null,null,"Acciones de Educación y Comunicación para la Salud sobre promoción y prevención con el fin de disminuir la perdida dental por enfermedades bucales, además de adoptar e implementar la estrategia “Soy Generación Más Sonriente”, tanto en Organizaciones Comunitarias, ONGs, Empresas Públicas y Privadas y Sedes Educativas.",null,"Número",null,null,null,null,null,"PROMOCIÓN_DE_LA_SALUD","PIC - Educación y comunicación en salud",null,"Recursos_Provenientes_del_Sistema_General_de_Participaciones_SGP",null,"Secretaría de salud Municipal","Secretaria de salud Municipal","Yaneth Sofia Ortiz Parra"]
["DIMENSIÓN_DE_VIDA_SALUDABLE_Y_CONDICIONES_NO_TRANSMISIBLES",20902,"ESTILOS DE VIDA SALUDABLE Y CONDICIONES NO TRANSMISIBLES PARA UN PITALITO IDEAL","CONDICIONES_CRONICAS_PREVALENTES","NA","NA",null,null,"Mantener la mortalidad general por debajo de 476,8 muertes x100.000 habitantes.","Tasa de mortalidad general por 100.000 habitantes","476,8 x 100.000 habitantes","476,8 x 100.000 habitantes","Lograr un índice de (Cariados, obturados y perdidos) -COP por debajo de 3,0 en menores de 12 años.","Índice de COP",0,3,"Desarrollo de una linea de cuidado a las personas con Enfermedades No Transmisibles (ENT), incluidas las alteraciones bucales, visuales y auditivas que garanticen un proyecto terapéutico adecuado que incluya la promoción del auto cuidado, la prescripción y dispensación de medicamentos, la vinculación entre el cuidador y el equipo de atención primario en salud, así como la integralidad y la continuidad en el acompañamiento","Talleres lúdicos para fomento de la salud oral en la comunidad, padres de familia, hogares de bienestar y escolares promoviendo el acceso a los servicios de salud y creando hábitos en la familia en salud bucal articulado con la estrategia IAMI y AIEPI.",null,"Número",null,null,null,null,0,"PROMOCIÓN_DE_LA_SALUD","PIC - Educación y comunicación en salud",null,"Recursos_Provenientes_del_Sistema_General_de_Participaciones_SGP",null,"Secretaría de salud Municipal","Secretaria de salud Municipal","Yaneth Sofia Ortiz Parra",{"$error":"#DIV/0!"},null,null,null,{"$error":"#DIV/0!"},null,null,{"$error":"#DIV/0!"}]
["DIMENSIÓN_DE_VIDA_SALUDABLE_Y_CONDICIONES_NO_TRANSMISIBLES",20902,"ESTILOS DE VIDA SALUDABLE Y CONDICIONES NO TRANSMISIBLES PARA UN PITALITO IDEAL","CONDICIONES_CRONICAS_PREVALENTES","NA","NA",null,null,"Mantener la mortalidad general por debajo de 476,8 muertes x100.000 habitantes.","Tasa de mortalidad general por 100.000 habitantes","476,8 x 100.000 habitantes","476,8 x 100.000 habitantes","Construir y actualizar anualmente la línea base de personas menores de 18 años diagnosticadas con cáncer.","Línea base actualizada de personas menores de 18 años diagnosticados con cáncer.",0,1,"Desarrollo de una linea de cuidado a las personas con Enfermedades No Transmisibles (ENT), incluidas las alteraciones bucales, visuales y auditivas que garanticen un proyecto terapéutico adecuado que incluya la promoción del auto cuidado, la prescripción y dispensación de medicamentos, la vinculación entre el cuidador y el equipo de atención primario en salud, así como la integralidad y la continuidad en el acompañamiento","Conmemoración de los días de Cáncer de Ovario (8 de mayo), Linfoma (16 de septiembre), Cáncer de Mama (19 de octubre), Cáncer de Pulmón (17 de Noviembre).",4,"Número",null,null,null,null,0,"PROMOCIÓN_DE_LA_SALUD","PIC - Información en salud",null,"Recursos_Provenientes_del_Sistema_General_de_Participaciones_SGP",null,"Secretaría de salud Municipal","Secretaria de salud Municipal","Yaneth Sofia Ortiz Parra",{"$error":"#DIV/0!"},null,null,null,{"$error":"#DIV/0!"},null,null,{"$error":"#DIV/0!"}]
["DIMENSIÓN_CONVIVENCIA_SOCIAL_Y_SALUD_MENTAL",20903,"CONVIVENCIA SOCIAL Y SALUD MENTAL POR UN PITALITO IDEAL","PROMOCION_DE_LA_SALUD_MENTAL_Y_LA_CONVIVENCIA","NA","NA",null,null,"Mantener la mortalidad general por debajo de 476,8 muertes x100.000 habitantes.","Tasa de mortalidad general por 100.000 habitantes","476,8 x 100.000 habitantes","476,8 x 100.000 habitantes","Diseñar, ejecutar y evaluar un Plan municipal de reducción del consumo de sustancias psicoactivas.","Un Plan municipal de reducción del consumo de sustancias psicoactivas diseñado y evaluado.",0,1,"participación social y comunitaria para la prevención, atención y mitigación de los problemas, trastornos y eventos vinculados a la salud mental y al consumo de sustancias psicoactivas","Aumentar la cobertura de establecimientos de expendio de licores con la implementación de la estrategia “Pactos Por la Vida” (Decreto 120/2010)",null,null,null,null,null,null,0,"PROMOCIÓN_DE_LA_SALUD","PIC - Educación y comunicación en salud",null,null,null,"Secretaría de salud Municipal","Secretaria de salud Municipal","Yaneth Sofia Ortiz Parra",{"$error":"#DIV/0!"},null,null,null,{"$error":"#DIV/0!"},null,null,{"$error":"#DIV/0!"}]
["DIMENSIÓN_CONVIVENCIA_SOCIAL_Y_SALUD_MENTAL",20903,"CONVIVENCIA SOCIAL Y SALUD MENTAL POR UN PITALITO IDEAL","PROMOCION_DE_LA_SALUD_MENTAL_Y_LA_CONVIVENCIA","NA","NA",null,null,"Mantener la mortalidad general por debajo de 476,8 muertes x100.000 habitantes.","Tasa de mortalidad general por 100.000 habitantes","476,8 x 100.000 habitantes","476,8 x 100.000 habitantes","Diseñar, ejecutar y evaluar un Plan municipal de reducción del consumo de sustancias psicoactivas.",null,null,null,null,"Elaborar un diagnóstico de la situación de consumo de sustancias psicoactivas en el Municipio de Pitalito"]
["DIMENSIÓN_CONVIVENCIA_SOCIAL_Y_SALUD_MENTAL",20903,"CONVIVENCIA SOCIAL Y SALUD MENTAL POR UN PITALITO IDEAL","PROMOCION_DE_LA_SALUD_MENTAL_Y_LA_CONVIVENCIA","NA","NA",null,null,"Mantener la mortalidad general por debajo de 476,8 muertes x100.000 habitantes.","Tasa de mortalidad general por 100.000 habitantes","476,8 x 100.000 habitantes","476,8 x 100.000 habitantes","Diseñar, ejecutar y evaluar un Plan municipal de reducción del consumo de sustancias psicoactivas.",null,null,null,null,"Realizar ## acciones de Información en Salud y Educación y Comunicación para la Salud para la prevención y reducción del consumo de sustancias psicoactivas con involucramiento parental en las Organizaciones Comunitarias, Empresas Públicas y Privadas y Sedes Educativas."]
["DIMENSIÓN_CONVIVENCIA_SOCIAL_Y_SALUD_MENTAL",20903,"CONVIVENCIA SOCIAL Y SALUD MENTAL POR UN PITALITO IDEAL","PROMOCION_DE_LA_SALUD_MENTAL_Y_LA_CONVIVENCIA","NA","NA",null,null,"Mantener la mortalidad general por debajo de 476,8 muertes x100.000 habitantes.","Tasa de mortalidad general por 100.000 habitantes","476,8 x 100.000 habitantes","476,8 x 100.000 habitantes","Diseñar, ejecutar y evaluar un Plan municipal de reducción del consumo de sustancias psicoactivas."]
["DIMENSIÓN_CONVIVENCIA_SOCIAL_Y_SALUD_MENTAL",20903,"CONVIVENCIA SOCIAL Y SALUD MENTAL POR UN PITALITO IDEAL","PROMOCION_DE_LA_SALUD_MENTAL_Y_LA_CONVIVENCIA","NA","NA"]
["DIMENSIÓN_CONVIVENCIA_SOCIAL_Y_SALUD_MENTAL",20903,"CONVIVENCIA SOCIAL Y SALUD MENTAL POR UN PITALITO IDEAL","PREVENCION_Y_ATENCION_INTEGRAL_A_PROBLEMAS_Y_TRASTORNOS_MENTALES_Y_A_DIFERENTES_FORMAS_DE_VIOLENCIA","NA","NA",null,null,"Mantener la mortalidad general por debajo de 476,8 muertes x100.000 habitantes.","Tasa de mortalidad general por 100.000 habitantes","476,8 x 100.000 habitantes","476,8 x 100.000 habitantes","97% de intervenciones a los intentos de suicidio, suicidio y otros eventos en salud mental, reportados mediante el sistema de vigilancia en salud pública.","Porcentaje de intervenciones a los intentos de suicidio, suicidio y otros eventos en salud mental reportados, mediante el sistema de vigilancia en salud pública.",0.8,0.97,"participación social y comunitaria para la prevención, atención y mitigación de los problemas, trastornos y eventos vinculados a la salud mental y al consumo de sustancias psicoactivas","Garantizar el funcionamiento y seguimiento de la linea para la vida ofreciendo orientación psicosocial a la demanda de situaciones de riesgo por consumo de drogas y otros eventos de salud mental.",null,null,null,null,null,null,0,"PROMOCIÓN_DE_LA_SALUD","PIC - Zonas de orientación y centros de escucha",null,null,null,"Secretaría de salud Municipal","Secretaria de salud Municipal","Yaneth Sofia Ortiz Parra",{"$error":"#DIV/0!"},null,null,null,{"$error":"#DIV/0!"},null,null,{"$error":"#DIV/0!"}]
["DIMENSIÓN_CONVIVENCIA_SOCIAL_Y_SALUD_MENTAL",20903,"CONVIVENCIA SOCIAL Y SALUD MENTAL POR UN PITALITO IDEAL","PREVENCION_Y_ATENCION_INTEGRAL_A_PROBLEMAS_Y_TRASTORNOS_MENTALES_Y_A_DIFERENTES_FORMAS_DE_VIOLENCIA","NA","NA",null,null,"Mantener la mortalidad general por debajo de 476,8 muertes x100.000 habitantes.","Tasa de mortalidad general por 100.000 habitantes","476,8 x 100.000 habitantes","476,8 x 100.000 habitantes","Mantener por debajo de 7,2 x 100.000 habitantes, la tasa anual de mortalidad por suicidio.","Tasa anual de suicidio x 100.000 habitantes ",null,null,"participación social y comunitaria para la prevención, atención y mitigación de los problemas, trastornos y eventos vinculados a la salud mental y al consumo de sustancias psicoactivas",null,null,null,null,null,null,null,0,null,null,null,null,null,"Secretaría de salud Municipal","Secretaria de salud Municipal","Yaneth Sofia Ortiz Parra",{"$error":"#DIV/0!"},null,null,null,{"$error":"#DIV/0!"},null,null,{"$error":"#DIV/0!"}]
["DIMENSIÓN_CONVIVENCIA_SOCIAL_Y_SALUD_MENTAL",20903,"CONVIVENCIA SOCIAL Y SALUD MENTAL POR UN PITALITO IDEAL","PREVENCION_Y_ATENCION_INTEGRAL_A_PROBLEMAS_Y_TRASTORNOS_MENTALES_Y_A_DIFERENTES_FORMAS_DE_VIOLENCIA","NA","NA",null,null,"Mantener la mortalidad general por debajo de 476,8 muertes x100.000 habitantes.","Tasa de mortalidad general por 100.000 habitantes","476,8 x 100.000 habitantes","476,8 x 100.000 habitantes","Diseñar, ejecutar y evaluar un plan local intersectorial de salud mental (suicidio, intento de suicidio  y violencias).","Un plan local intersectorial de salud mental (suicidio, consumo de SPA y violencias).",0,1,"participación social y comunitaria para la prevención, atención y mitigación de los problemas, trastornos y eventos vinculados a la salud mental y al consumo de sustancias psicoactivas",null,null,null,null,null,null,null,0,null,null,null,null,null,"Secretaría de salud Municipal","Secretaria de salud Municipal","Yaneth Sofia Ortiz Parra",{"$error":"#DIV/0!"},null,null,null,{"$error":"#DIV/0!"},null,null,{"$error":"#DIV/0!"}]
["DIMENSIÓN_SEGURIDAD_ALIMENTARIA_Y_NUTRICIONAL",20904,"SEGURIDAD ALIMENTARIA Y NUTRICIONAL PARA UN PITALITO IDEAL","CONSUMO_Y_APROVECHAMIENTO_BIOLOGICO_DE_ALIMENTOS","NA","NA",null,null,"Reducir la mortalidad en menores de 5 años por debajo de 7,9 x 1000 nacidos vivos","Tasa de mortalidad en menores de 5 años x 1.000 nacidos vivos.","8,4 x 1000 nacidos vivos","7,9 x 1000 nacidos vivos","Mantener por debajo de 1,9% el índice de desnutrición aguda en niños menores de 5 años.","Porcentaje de desnutrición aguda en niños y niñas menores de 5 años.",1.9,1.9,"Gestión del conocimiento para la provisión de información clara, pertinente, eficaz y actualizada desde una perspectiva integral que incorpore cada uno de los aspectos que abarca la seguridad alimentaria y Nutricional (SAN)",null,null,null,null,null,null,null,0,null,null,null,null,null,"Secretaría de salud Municipal","Secretaria de salud Municipal","Yaneth Sofia Ortiz Parra",{"$error":"#DIV/0!"},null,null,null,{"$error":"#DIV/0!"},null,null,{"$error":"#DIV/0!"}]
["DIMENSIÓN_SEGURIDAD_ALIMENTARIA_Y_NUTRICIONAL",20904,"SEGURIDAD ALIMENTARIA Y NUTRICIONAL PARA UN PITALITO IDEAL","CONSUMO_Y_APROVECHAMIENTO_BIOLOGICO_DE_ALIMENTOS","NA","NA",null,null,"Reducir la mortalidad en menores de 5 años por debajo de 7,9 x 1000 nacidos vivos","Tasa de mortalidad en menores de 5 años x 1.000 nacidos vivos.","8,4 x 1000 nacidos vivos","7,9 x 1000 nacidos vivos","Incrementar en 2 meses la duración de la lactancia materna exclusiva en menores de 6 meses.","Duración de la lactancia materna exclusiva en menores de 6 meses.","ND",2,"Gestión del conocimiento para la provisión de información clara, pertinente, eficaz y actualizada desde una perspectiva integral que incorpore cada uno de los aspectos que abarca la seguridad alimentaria y Nutricional (SAN)",null,null,null,null,null,null,null,0,null,null,null,null,null,"Secretaría de salud Municipal","Secretaria de salud Municipal","Yaneth Sofia Ortiz Parra",{"$error":"#DIV/0!"},null,null,null,{"$error":"#DIV/0!"},null,null,{"$error":"#DIV/0!"}]
["DIMENSIÓN_SEGURIDAD_ALIMENTARIA_Y_NUTRICIONAL",20904,"SEGURIDAD ALIMENTARIA Y NUTRICIONAL PARA UN PITALITO IDEAL","CONSUMO_Y_APROVECHAMIENTO_BIOLOGICO_DE_ALIMENTOS","NA","NA",null,null,"Reducir la mortalidad en menores de 5 años por debajo de 7,9 x 1000 nacidos vivos","Tasa de mortalidad en menores de 5 años x 1.000 nacidos vivos.","8,4 x 1000 nacidos vivos","7,9 x 1000 nacidos vivos","Diseñar, ejecutar y evaluar un Plan Local Intersectorial de Seguridad Alimentaria y Nutricional.","Un Plan Local Intersectorial de Seguridad Alimentaria y Nutricional diseñado, en ejecución y evaluado.",0,1,"Planes territoriales de SAN: concreción de la institucionalidad a nivel territorial expresada en planes departamentales y municipales de SAN, construidos a través de instancias legitimadas por las Asambleas Departamentales o los Concejos Municipales, con participación social y comunitaria, y que incluyan los instrumentos\nbásicos de planificación del desarrollo territorial, en el marco de planes de desarrollo, planes de ordenamiento territorial y planes indicativos, que permitan la implementación efectiva de acciones en SAN en lo local.",null,null,null,null,null,null,null,0,null,null,null,null,null,"Secretaría de salud Municipal","Secretaria de salud Municipal","Yaneth Sofia Ortiz Parra",{"$error":"#DIV/0!"},null,null,null,{"$f":"AH42+AI42+AJ42+AK42","v":{"$error":"#DIV/0!"}},null,null,{"$f":"AL42","v":{"$error":"#DIV/0!"}}]
["DIMENSIÓN_SEGURIDAD_ALIMENTARIA_Y_NUTRICIONAL",20904,"SEGURIDAD ALIMENTARIA Y NUTRICIONAL PARA UN PITALITO IDEAL","CONSUMO_Y_APROVECHAMIENTO_BIOLOGICO_DE_ALIMENTOS","NA","NA",null,null,"Reducir la mortalidad en menores de 5 años por debajo de 7,9 x 1000 nacidos vivos","Tasa de mortalidad en menores de 5 años x 1.000 nacidos vivos.","8,4 x 1000 nacidos vivos","7,9 x 1000 nacidos vivos","Mantener por debajo de 3,9% el índice de desnutrición global en niños menores de 5 años.","Porcentaje de desnutrición global  en niños y niñas menores de 5 años.",3.5,3.9,"Gestión del conocimiento para la provisión de información clara, pertinente, eficaz y actualizada desde una perspectiva integral que incorpore cada uno de los aspectos que abarca la seguridad alimentaria y Nutricional (SAN)",null,null,null,null,null,null,null,0,null,null,null,null,null,"Secretaría de salud Municipal","Secretaria de salud Municipal","Yaneth Sofia Ortiz Parra",{"$error":"#DIV/0!"},null,null,null,{"$error":"#DIV/0!"},null,null,{"$error":"#DIV/0!"}]
["DIMENSIÓN_SEGURIDAD_ALIMENTARIA_Y_NUTRICIONAL",20904,"SEGURIDAD ALIMENTARIA Y NUTRICIONAL PARA UN PITALITO IDEAL","CONSUMO_Y_APROVECHAMIENTO_BIOLOGICO_DE_ALIMENTOS","NA","NA",null,null,"Reducir la mortalidad en menores de 5 años por debajo de 7,9 x 1000 nacidos vivos","Tasa de mortalidad en menores de 5 años x 1.000 nacidos vivos.","8,4 x 1000 nacidos vivos","7,9 x 1000 nacidos vivos","Mantener por debajo de 13,8% el índice de desnutrición crónica en niños menores de 5 años.","Porcentaje de desnutrición crónica en niños y niñas menores de 5 años.",13.8,13.8,"Gestión del conocimiento para la provisión de información clara, pertinente, eficaz y actualizada desde una perspectiva integral que incorpore cada uno de los aspectos que abarca la seguridad alimentaria y Nutricional (SAN)",null,null,null,null,null,null,null,0,null,null,null,null,null,"Secretaría de salud Municipal","Secretaria de salud Municipal","Yaneth Sofia Ortiz Parra",{"$error":"#DIV/0!"},null,null,null,{"$error":"#DIV/0!"},null,null,{"$error":"#DIV/0!"}]
["DIMENSIÓN_SEGURIDAD_ALIMENTARIA_Y_NUTRICIONAL",20904,"SEGURIDAD ALIMENTARIA Y NUTRICIONAL PARA UN PITALITO IDEAL","CONSUMO_Y_APROVECHAMIENTO_BIOLOGICO_DE_ALIMENTOS","NA","NA",null,null,"Reducir la mortalidad en menores de 5 años por debajo de 7,9 x 1000 nacidos vivos","Tasa de mortalidad en menores de 5 años x 1.000 nacidos vivos.","8,4 x 1000 nacidos vivos","7,9 x 1000 nacidos vivos","Mantener por debajo de 3,2%  el porcentaje de niños y niñas con bajo peso al nacer.","Porcentaje de bajo peso al nacer",2.2000000000000002,3.2,"Gestión del conocimiento para la provisión de información clara, pertinente, eficaz y actualizada desde una perspectiva integral que incorpore cada uno de los aspectos que abarca la seguridad alimentaria y Nutricional (SAN)",null,null,null,null,null,null,null,0,null,null,null,null,null,"Secretaría de salud Municipal","Secretaria de salud Municipal","Yaneth Sofia Ortiz Parra",{"$error":"#DIV/0!"},null,null,null,{"$error":"#DIV/0!"},null,null,{"$error":"#DIV/0!"}]
["DIMENSIÓN_SEGURIDAD_ALIMENTARIA_Y_NUTRICIONAL",20904,"SEGURIDAD ALIMENTARIA Y NUTRICIONAL PARA UN PITALITO IDEAL","CONSUMO_Y_APROVECHAMIENTO_BIOLOGICO_DE_ALIMENTOS","NA","NA",null,null,"Reducir la mortalidad en menores de 5 años por debajo de 7,9 x 1000 nacidos vivos","Tasa de mortalidad en menores de 5 años x 1.000 nacidos vivos.","8,4 x 1000 nacidos vivos","7,9 x 1000 nacidos vivos","Construir y actualizar trimestral la línea base de anemia en gestantes de 13 a 49 años","Actualización trimestral de la línea base de anemia en gestantes.",0,1,"Gestión del conocimiento para la provisión de información clara, pertinente, eficaz y actualizada desde una perspectiva integral que incorpore cada uno de los aspectos que abarca la seguridad alimentaria y Nutricional (SAN)",null,null,null,null,null,null,null,0,null,null,null,null,null,"Secretaría de salud Municipal","Secretaria de salud Municipal","Yaneth Sofia Ortiz Parra",{"$error":"#DIV/0!"},null,null,null,{"$error":"#DIV/0!"},null,null,{"$error":"#DIV/0!"}]
["DIMENSIÓN_SEGURIDAD_ALIMENTARIA_Y_NUTRICIONAL",20904,"SEGURIDAD ALIMENTARIA Y NUTRICIONAL PARA UN PITALITO IDEAL","CONSUMO_Y_APROVECHAMIENTO_BIOLOGICO_DE_ALIMENTOS","NA","NA",null,null,"Reducir la mortalidad en menores de 5 años por debajo de 7,9 x 1000 nacidos vivos","Tasa de mortalidad en menores de 5 años x 1.000 nacidos vivos.","8,4 x 1000 nacidos vivos","7,9 x 1000 nacidos vivos","Mantener por debajo de 23,1% el índice de exceso de peso en niños y niñas menores de 5 años.","Porcentaje de exceso de peso en niños y niñas menores de 5 años.",23.1,23.1,"Gestión del conocimiento para la provisión de información clara, pertinente, eficaz y actualizada desde una perspectiva integral que incorpore cada uno de los aspectos que abarca la seguridad alimentaria y Nutricional (SAN)",null,null,null,null,null,null,null,0,null,null,null,null,null,"Secretaría de salud Municipal","Secretaria de salud Municipal","Yaneth Sofia Ortiz Parra",{"$error":"#DIV/0!"},null,null,null,{"$error":"#DIV/0!"},null,null,{"$error":"#DIV/0!"}]
["DIMENSIÓN_SEXUALIDAD_DERECHOS_SEXUALES_Y_REPRODUCTIVOS",20905,"DERECHOS SEXUALES Y REPRODUCTIVOS PARA UN PITALITO IDEAL","PROMOCION_DE_LOS_DERECHOS_SEXUALES_Y_REPRODUCTIVOS_Y_EQUIDAD_DE_GENERO","NA","NA",null,null,"Mantener la mortalidad general por debajo de 476,8 muertes x100.000 habitantes.","Tasa de mortalidad general por 100.000 habitantes","476,8 x 100.000 habitantes","476,8 x 100.000 habitantes","Mantener por debajo de 94,2 x 1000 nacidos vivos la tasa específica de fecundidad en mujeres adolescentes de 15 a 19 años.","Tasa de fecundidad especifica en mujeres adolescentes de 15 a 19 años x 1000 nacidos vivos.",88.6,94.2,"Fomento de estrategias educativas para la prevención de embarazos en adolescentes, infección de Transmisión sexual por VIH/sida y la reducción del estigma social y la discriminación","Realizar acompañamiento y seguimiento a las IPS públicas y privadas para la implementación y operatividad de los Servicios de Salud Amigables para adolescentes y Jóvenes (SSAAJ).",null,null,null,null,null,null,0,"GESTIÓN_DE_LA_SALUD_PÚBLICA","GSP - Gestión de la prestación de servicios individuales",null,null,null,"Secretaría de salud Municipal","Secretaria de salud Municipal","Yaneth Sofia Ortiz Parra",{"$error":"#DIV/0!"},null,null,null,{"$error":"#DIV/0!"},null,null,{"$error":"#DIV/0!"}]
["DIMENSIÓN_SEXUALIDAD_DERECHOS_SEXUALES_Y_REPRODUCTIVOS",20905,"DERECHOS SEXUALES Y REPRODUCTIVOS PARA UN PITALITO IDEAL","PREVENCION_Y_ATENCION_INTEGRAL_EN_SALUD_SEXUAL_Y_REPRODUCTIVA_DESDE_UN_ENFOQUE_DE_DERECHOS","NA","NA",null,null,"Mantener la mortalidad general por debajo de 476,8 muertes x100.000 habitantes.","Tasa de mortalidad general por 100.000 habitantes","476,8 x 100.000 habitantes","476,8 x 100.000 habitantes","Mantener por debajo de 2 la tasa de incidencia de sífilis congénita x 1000 nacidos vivos.","Tasa de incidencia de sífilis congénita x 1000 nacidos vivos.",1.6,2,"Empoderamiento de las mujeres, hombres, familias y comunidad para seguimiento de las rutas de atención segura de las mujeres antes, durante y después de un evento obstétrico, y de sus hijos e hijas.",null,null,null,null,null,null,null,0,null,null,null,null,null,"Secretaría de salud Municipal","Secretaria de salud Municipal","Yaneth Sofia Ortiz Parra",{"$error":"#DIV/0!"},null,null,null,{"$error":"#DIV/0!"},null,null,{"$error":"#DIV/0!"}]
["DIMENSIÓN_SEXUALIDAD_DERECHOS_SEXUALES_Y_REPRODUCTIVOS",20905,"DERECHOS SEXUALES Y REPRODUCTIVOS PARA UN PITALITO IDEAL","PREVENCION_Y_ATENCION_INTEGRAL_EN_SALUD_SEXUAL_Y_REPRODUCTIVA_DESDE_UN_ENFOQUE_DE_DERECHOS","NA","NA",null,null,"Mantener la mortalidad general por debajo de 476,8 muertes x100.000 habitantes.","Tasa de mortalidad general por 100.000 habitantes","476,8 x 100.000 habitantes","476,8 x 100.000 habitantes","Mantener en 0 el porcentaje de transmisión vertical de VIH.","Porcentaje de transmisión vertical de VIH",0,0,"Fomento de estrategias educativas para la prevención de embarazos en adolescentes, infección de Transmisión sexual por VIH/sida y la reducción del estigma social y la discriminación",null,null,null,null,null,null,null,0,null,null,null,null,null,"Secretaría de salud Municipal","Secretaria de salud Municipal","Yaneth Sofia Ortiz Parra",{"$error":"#DIV/0!"},null,null,null,{"$error":"#DIV/0!"},null,null,{"$error":"#DIV/0!"}]
["DIMENSIÓN_SEXUALIDAD_DERECHOS_SEXUALES_Y_REPRODUCTIVOS",20905,"DERECHOS SEXUALES Y REPRODUCTIVOS PARA UN PITALITO IDEAL","PREVENCION_Y_ATENCION_INTEGRAL_EN_SALUD_SEXUAL_Y_REPRODUCTIVA_DESDE_UN_ENFOQUE_DE_DERECHOS","NA","NA",null,null,"Mantener la mortalidad general por debajo de 476,8 muertes x100.000 habitantes.","Tasa de mortalidad general por 100.000 habitantes","476,8 x 100.000 habitantes","476,8 x 100.000 habitantes","Mantener por debajo de 3,4 la tasa de mortalidad de VIH/SIDA x 100.000 habitantes.","Tasa de mortalidad de VIH/SIDA por 100.000 habitantes.",2.4,3.4,"Fomento de estrategias educativas para la prevención de embarazos en adolescentes, infección de Transmisión sexual por VIH/sida y la reducción del estigma social y la discriminación",null,null,null,null,null,null,null,0,null,null,null,null,null,"Secretaría de salud Municipal","Secretaria de salud Municipal","Yaneth Sofia Ortiz Parra",{"$error":"#DIV/0!"},null,null,null,{"$error":"#DIV/0!"},null,null,{"$error":"#DIV/0!"}]
["DIMENSIÓN_SEXUALIDAD_DERECHOS_SEXUALES_Y_REPRODUCTIVOS",20905,"DERECHOS SEXUALES Y REPRODUCTIVOS PARA UN PITALITO IDEAL","PREVENCION_Y_ATENCION_INTEGRAL_EN_SALUD_SEXUAL_Y_REPRODUCTIVA_DESDE_UN_ENFOQUE_DE_DERECHOS","NA","NA",null,null,"Mantener la mortalidad general por debajo de 476,8 muertes x100.000 habitantes.","Tasa de mortalidad general por 100.000 habitantes","476,8 x 100.000 habitantes","476,8 x 100.000 habitantes","Mantener por debajo de 18,7 la tasa de  incidencia de VIH x 100.000 habitantes. ","Tasa de incidencia de VIH x 100.000 habitantes",16.7,18.7,"Fomento de estrategias educativas para la prevención de embarazos en adolescentes, infección de Transmisión sexual por VIH/sida y la reducción del estigma social y la discriminación",null,null,null,null,null,null,null,0,null,null,null,null,null,"Secretaría de salud Municipal","Secretaria de salud Municipal","Yaneth Sofia Ortiz Parra",{"$error":"#DIV/0!"},null,null,null,{"$error":"#DIV/0!"},null,null,{"$error":"#DIV/0!"}]
["DIMENSIÓN_SEXUALIDAD_DERECHOS_SEXUALES_Y_REPRODUCTIVOS",20905,"DERECHOS SEXUALES Y REPRODUCTIVOS PARA UN PITALITO IDEAL","PREVENCION_Y_ATENCION_INTEGRAL_EN_SALUD_SEXUAL_Y_REPRODUCTIVA_DESDE_UN_ENFOQUE_DE_DERECHOS","NA","NA",null,null,"Mantener la mortalidad general por debajo de 476,8 muertes x100.000 habitantes.","Tasa de mortalidad general por 100.000 habitantes","476,8 x 100.000 habitantes","476,8 x 100.000 habitantes","100% de mujeres gestantes con prueba de VIH en el año con sus respectivas asesorías.","Porcentaje de mujeres gestantes con prueba de VIH.",87,100,"Fomento de estrategias educativas para la prevención de embarazos en adolescentes, infección de Transmisión sexual por VIH/sida y la reducción del estigma social y la discriminación",null,null,null,null,null,null,null,0,null,null,null,null,null,"Secretaría de salud Municipal","Secretaria de salud Municipal","Yaneth Sofia Ortiz Parra",{"$error":"#DIV/0!"},null,null,null,{"$error":"#DIV/0!"},null,null,{"$error":"#DIV/0!"}]
["DIMENSIÓN_SEXUALIDAD_DERECHOS_SEXUALES_Y_REPRODUCTIVOS",20905,"DERECHOS SEXUALES Y REPRODUCTIVOS PARA UN PITALITO IDEAL","PREVENCION_Y_ATENCION_INTEGRAL_EN_SALUD_SEXUAL_Y_REPRODUCTIVA_DESDE_UN_ENFOQUE_DE_DERECHOS","NA","NA",null,null,"Mantener la mortalidad general por debajo de 476,8 muertes x100.000 habitantes.","Tasa de mortalidad general por 100.000 habitantes","476,8 x 100.000 habitantes","476,8 x 100.000 habitantes","Incrementar al 80% el ingreso de gestantes a control prenatal antes de la semana 12 de gestación.","Porcentaje de ingreso de la gestante a control prenatal antes de la semana 12.",74.5,80,"Empoderamiento de las mujeres, hombres, familias y comunidad para seguimiento de las rutas de atención segura de las mujeres antes, durante y después de un evento obstétrico, y de sus hijos e hijas.",null,null,null,null,null,null,null,0,null,null,null,null,null,"Secretaría de salud Municipal","Secretaria de salud Municipal","Yaneth Sofia Ortiz Parra",{"$error":"#DIV/0!"},null,null,null,{"$error":"#DIV/0!"},null,null,{"$error":"#DIV/0!"}]
["DIMENSIÓN_SEXUALIDAD_DERECHOS_SEXUALES_Y_REPRODUCTIVOS",20905,"DERECHOS SEXUALES Y REPRODUCTIVOS PARA UN PITALITO IDEAL","PREVENCION_Y_ATENCION_INTEGRAL_EN_SALUD_SEXUAL_Y_REPRODUCTIVA_DESDE_UN_ENFOQUE_DE_DERECHOS","NA","NA",null,null,"Mantener la mortalidad general por debajo de 476,8 muertes x100.000 habitantes.","Tasa de mortalidad general por 100.000 habitantes","476,8 x 100.000 habitantes","476,8 x 100.000 habitantes","Mantener por encima de 99,5 el porcentaje de mujeres gestantes con cuatro (4) o más controles prenatales.","Porcentaje de gestantes con cuatro (4) o más controles.",99.5,99.5,"Empoderamiento de las mujeres, hombres, familias y comunidad para seguimiento de las rutas de atención segura de las mujeres antes, durante y después de un evento obstétrico, y de sus hijos e hijas.",null,null,null,null,null,null,null,0,null,null,null,null,null,"Secretaría de salud Municipal","Secretaria de salud Municipal","Yaneth Sofia Ortiz Parra",{"$error":"#DIV/0!"},null,null,null,{"$error":"#DIV/0!"},null,null,{"$error":"#DIV/0!"}]
["DIMENSIÓN_SEXUALIDAD_DERECHOS_SEXUALES_Y_REPRODUCTIVOS",20905,"DERECHOS SEXUALES Y REPRODUCTIVOS PARA UN PITALITO IDEAL","PREVENCION_Y_ATENCION_INTEGRAL_EN_SALUD_SEXUAL_Y_REPRODUCTIVA_DESDE_UN_ENFOQUE_DE_DERECHOS","NA","NA",null,null,"Mantener la mortalidad general por debajo de 476,8 muertes x100.000 habitantes.","Tasa de mortalidad general por 100.000 habitantes","476,8 x 100.000 habitantes","476,8 x 100.000 habitantes","Mantener por encima del 95% la cobertura de parto institucional cada año","Porcentaje de parto institucional.",95,95,"Empoderamiento de las mujeres, hombres, familias y comunidad para seguimiento de las rutas de atención segura de las mujeres antes, durante y después de un evento obstétrico, y de sus hijos e hijas.",null,null,null,null,null,null,null,0,null,null,null,null,null,"Secretaría de salud Municipal","Secretaria de salud Municipal","Yaneth Sofia Ortiz Parra",{"$error":"#DIV/0!"},null,null,null,{"$error":"#DIV/0!"},null,null,{"$error":"#DIV/0!"}]
["DIMENSIÓN_SEXUALIDAD_DERECHOS_SEXUALES_Y_REPRODUCTIVOS",20905,"DERECHOS SEXUALES Y REPRODUCTIVOS PARA UN PITALITO IDEAL","PREVENCION_Y_ATENCION_INTEGRAL_EN_SALUD_SEXUAL_Y_REPRODUCTIVA_DESDE_UN_ENFOQUE_DE_DERECHOS","NA","NA",null,null,"Mantener la mortalidad general por debajo de 476,8 muertes x100.000 habitantes.","Tasa de mortalidad general por 100.000 habitantes","476,8 x 100.000 habitantes","476,8 x 100.000 habitantes","Mantener la razon de mortalidad materna por debajo de 42,03 x 100000 nacido vivos","Razón de mortalidad materna x 100000 nacidos vivos.",42.03,42.03,"Empoderamiento de las mujeres, hombres, familias y comunidad para seguimiento de las rutas de atención segura de las mujeres antes, durante y después de un evento obstétrico, y de sus hijos e hijas.","Seguimiento a la ruta de atención materno perinatal en las IPS públicas y privadas, EAPB y formulación de acciones para el cumplimiento de las metas del Plan de Desarrollo Municipal orientadas a garantizar maternidad segura. ",null,null,null,null,null,null,0,"GESTIÓN_DE_LA_SALUD_PÚBLICA","GSP - Gestión de la prestación de servicios individuales",null,null,null,"Secretaría de salud Municipal","Secretaria de salud Municipal","Yaneth Sofia Ortiz Parra",{"$f":"AD57/(U57+V57+W57+X57)*U57","v":{"$error":"#DIV/0!"}},null,null,null,{"$error":"#DIV/0!"},null,null,{"$error":"#DIV/0!"}]
["DIMENSIÓN_SEXUALIDAD_DERECHOS_SEXUALES_Y_REPRODUCTIVOS",20905,"DERECHOS SEXUALES Y REPRODUCTIVOS PARA UN PITALITO IDEAL","PREVENCION_Y_ATENCION_INTEGRAL_EN_SALUD_SEXUAL_Y_REPRODUCTIVA_DESDE_UN_ENFOQUE_DE_DERECHOS","NA","NA",null,null,"Mantener la mortalidad general por debajo de 476,8 muertes x100.000 habitantes.","Tasa de mortalidad general por 100.000 habitantes","476,8 x 100.000 habitantes","476,8 x 100.000 habitantes","Incrementar al 74% el porcentaje de mujeres entre 15 a 49 años que usan métodos de anticoncepción en el año.","Porcentaje de mujeres entre 15 a 49 años que usan métodos de anticoncepción.",67.7,74,"Empoderamiento de las mujeres, hombres, familias y comunidad para seguimiento de las rutas de atención segura de las mujeres antes, durante y después de un evento obstétrico, y de sus hijos e hijas.","Revisión del modelo de atención de las IPS públicas y privadas para garantizar la integralidad, accesibilidad y continuidad en el proceso de consejería y suministro de métodos de planificación familiar, diseñar e implementar acciones encaminadas a Incrementar el porcentaje de mujeres que usan métodos de anticoncepción.",null,null,null,null,null,null,0,"GESTIÓN_DE_LA_SALUD_PÚBLICA","GSP - Gestión de la prestación de servicios individuales",null,null,null,"Secretaría de salud Municipal","Secretaria de salud Municipal","Yaneth Sofia Ortiz Parra",{"$error":"#DIV/0!"},null,null,null,{"$error":"#DIV/0!"},null,null,{"$error":"#DIV/0!"}]
["DIMENSIÓN_SEXUALIDAD_DERECHOS_SEXUALES_Y_REPRODUCTIVOS",20905,"DERECHOS SEXUALES Y REPRODUCTIVOS PARA UN PITALITO IDEAL","PREVENCION_Y_ATENCION_INTEGRAL_EN_SALUD_SEXUAL_Y_REPRODUCTIVA_DESDE_UN_ENFOQUE_DE_DERECHOS","NA","NA",null,null,"Mantener la mortalidad general por debajo de 476,8 muertes x100.000 habitantes.","Tasa de mortalidad general por 100.000 habitantes","476,8 x 100.000 habitantes","476,8 x 100.000 habitantes","Aumentar a 60% el tamizaje de cáncer cervicouterino por medio de toma de citología cervicouterina en mujeres de 25 a 69 años.","Porcentaje de tamizaje de cáncer cervicouterino en mujeres de 25 a 49 años.",50.7,60,"Fomento de estrategias educativas para la prevención del cancer de cuello uterino.","Seguimiento al cumplimiento de coberturas de citología cervicouterina en cada una de las EAPB y la aplicación de las normas técnicas para promover la oportunidad, accesibilidad y calidad de los procedimientos diagnósticos.",null,null,null,null,null,null,0,"GESTIÓN_DE_LA_SALUD_PÚBLICA","GSP - Gestión de la prestación de servicios individuales",null,null,null,"Secretaría de salud Municipal","Secretaria de salud Municipal","Yaneth Sofia Ortiz Parra",{"$error":"#DIV/0!"},null,null,null,{"$error":"#DIV/0!"},null,null,{"$error":"#DIV/0!"}]
["DIMENSIÓN_SEXUALIDAD_DERECHOS_SEXUALES_Y_REPRODUCTIVOS",20905,"DERECHOS SEXUALES Y REPRODUCTIVOS PARA UN PITALITO IDEAL","PREVENCION_Y_ATENCION_INTEGRAL_EN_SALUD_SEXUAL_Y_REPRODUCTIVA_DESDE_UN_ENFOQUE_DE_DERECHOS","NA","NA",null,null,"Mantener la mortalidad general por debajo de 476,8 muertes x100.000 habitantes.","Tasa de mortalidad general por 100.000 habitantes","476,8 x 100.000 habitantes","476,8 x 100.000 habitantes","Alcanzar el 50% de IPS públicas y EAPB con socialización de la ruta de atención integral en equidad de género.","Porcentaje de IPS públicas y EAPB con socialización de la ruta de atención integral en equidad de género.","ND",50,"Fortalecimiento institucional y desarrollo de capacidades del talento humano para la atención integral de genero.",null,null,null,null,null,null,null,0,null,null,null,null,null,"Secretaría de salud Municipal","Secretaria de salud Municipal","Yaneth Sofia Ortiz Parra",{"$error":"#DIV/0!"},null,null,null,{"$error":"#DIV/0!"},null,null,{"$error":"#DIV/0!"}]
["DIMENSIÓN_SEXUALIDAD_DERECHOS_SEXUALES_Y_REPRODUCTIVOS",20905,"DERECHOS SEXUALES Y REPRODUCTIVOS PARA UN PITALITO IDEAL","PREVENCION_Y_ATENCION_INTEGRAL_EN_SALUD_SEXUAL_Y_REPRODUCTIVA_DESDE_UN_ENFOQUE_DE_DERECHOS","NA","NA",null,null,"Mantener la mortalidad general por debajo de 476,8 muertes x100.000 habitantes.","Tasa de mortalidad general por 100.000 habitantes","476,8 x 100.000 habitantes","476,8 x 100.000 habitantes","Diseñar, ejecutar y evaluar un Plan Municipal de Salud Sexual y Reproductiva.","Un Plan Municipal de Salud Sexual y Reproductiva diseñado, en funcionamiento y evaluado.",0,1,"Coordinación, transectorial y comunitaria a los procesos que permitan garantizar los derechos relacionados con la sexualidad, en el marco del ejercicio de la ciudadanía.","Liderar el comité de Salud Sexual y Reproductiva y garantizar su operatividad y efectividad. ",null,null,null,null,null,null,0,"GESTIÓN_DE_LA_SALUD_PÚBLICA","GSP - Coordinación Intersectorial",null,null,null,"Secretaría de salud Municipal","Secretaria de salud Municipal","Yaneth Sofia Ortiz Parra",{"$error":"#DIV/0!"},null,null,null,{"$error":"#DIV/0!"},null,null,{"$error":"#DIV/0!"}]
["DIMENSIÓN_SEXUALIDAD_DERECHOS_SEXUALES_Y_REPRODUCTIVOS",20906,"DERECHOS SEXUALES Y REPRODUCTIVOS PARA UN PITALITO IDEAL","PREVENCION_Y_ATENCION_INTEGRAL_EN_SALUD_SEXUAL_Y_REPRODUCTIVA_DESDE_UN_ENFOQUE_DE_DERECHOS","NA","NA",null,null,"Mantener la mortalidad general por debajo de 476,8 muertes x100.000 habitantes.","Tasa de mortalidad general por 100.000 habitantes","476,8 x 100.000 habitantes","476,8 x 100.000 habitantes","Diseñar, ejecutar y evaluar un Plan Municipal de Salud Sexual y Reproductiva.",null,null,null,null,"Ejecutar acciones enfocadas al desarrollo de capacidades del talento humano en salud sobre sexualidad, derechos sexuales y reproductivos.",null,null,null,null,null,null,null,"GESTIÓN_DE_LA_SALUD_PÚBLICA","GSP - Desarrollo de capacidades"]
["DIMENSIÓN_VIDA_SALUDABLE_Y_ENFERMEDADES_TRANSMISIBLES",20906,"VIDA SALUDABLE Y PREVENCION DE ENFERMEDADES TRANSMISIBLES POR UN PITALITO IDEAL","ENFERMEDADES_EMERGENTES_RE_EMERGENTES_Y_DESATENDIDAS","NA","NA",null,null,"Mantener la mortalidad general por debajo de 476,8 muertes x100.000 habitantes.","Tasa de mortalidad general por 100.000 habitantes","476,8 x 100.000 habitantes","476,8 x 100.000 habitantes","Mantener por debajo de 16,2 x 100.000 habitantes la incidencia de tuberculosis.","Tasa de incidencia de tuberculosis  x 100.000 habitantes.","15.1",16.2,"Gestión integral para la promoción de la salud, prevención y control de las enfermedades emergentes, re-emergentes y desatendidas, a traves del fomento a la participación comunitaria.","Realizar 50 acciones en el año de Información en Salud  y Educación y Comunicación para la Salud en prevención de Tuberculosis-TB y su tratamiento.",null,null,null,null,null,null,0,"PROMOCIÓN_DE_LA_SALUD","PIC - Información en salud",null,null,null,"Secretaría de salud Municipal","Secretaria de salud Municipal","Yaneth Sofia Ortiz Parra",{"$error":"#DIV/0!"},null,null,null,{"$error":"#DIV/0!"},null,null,{"$error":"#DIV/0!"},{"$f":"147000000/37","v":3972972.9729729728}]
["DIMENSIÓN_VIDA_SALUDABLE_Y_ENFERMEDADES_TRANSMISIBLES",20906,"VIDA SALUDABLE Y PREVENCION DE ENFERMEDADES TRANSMISIBLES POR UN PITALITO IDEAL","ENFERMEDADES_EMERGENTES_RE_EMERGENTES_Y_DESATENDIDAS","NA","NA",null,null,"Mantener la mortalidad general por debajo de 476,8 muertes x100.000 habitantes.","Tasa de mortalidad general por 100.000 habitantes","476,8 x 100.000 habitantes","476,8 x 100.000 habitantes","Mantener por encima de 80% las búsquedas activas al año de sintomáticos respiratorios de la meta planteada de la plantilla de programa anual.",null,null,null,null,"Realizar Búsqueda Activa Comunitaria-BAC de Sintomáticos Respiratorio con base a la plantilla de programación anual municipal y reportar de manera mensual sus resultados.",null,null,null,null,null,null,null,"GESTIÓN_DE_RIESGO_EN_SALUD","PIC - Canalización"]
["DIMENSIÓN_VIDA_SALUDABLE_Y_ENFERMEDADES_TRANSMISIBLES",20906,"VIDA SALUDABLE Y PREVENCION DE ENFERMEDADES TRANSMISIBLES POR UN PITALITO IDEAL","ENFERMEDADES_EMERGENTES_RE_EMERGENTES_Y_DESATENDIDAS","NA","NA",null,null,"Mantener la mortalidad general por debajo de 476,8 muertes x100.000 habitantes.","Tasa de mortalidad general por 100.000 habitantes","476,8 x 100.000 habitantes","476,8 x 100.000 habitantes","Mantener por encima de 80% las búsquedas activas al año de sintomáticos respiratorios de la meta planteada de la plantilla de programa anual.",null,null,null,null,"Seguimiento a los convivientes de pacientes con tuberculosis verificando que cumplan con la aplicación del biológico BCG y la adherencia al tratamiento.",null,null,null,null,null,null,null,"GESTIÓN_DE_RIESGO_EN_SALUD","PIC - Canalización"]
["DIMENSIÓN_VIDA_SALUDABLE_Y_ENFERMEDADES_TRANSMISIBLES",20906,"VIDA SALUDABLE Y PREVENCION DE ENFERMEDADES TRANSMISIBLES POR UN PITALITO IDEAL","ENFERMEDADES_EMERGENTES_RE_EMERGENTES_Y_DESATENDIDAS","NA","NA",null,null,"Mantener la mortalidad general por debajo de 476,8 muertes x100.000 habitantes.","Tasa de mortalidad general por 100.000 habitantes","476,8 x 100.000 habitantes","476,8 x 100.000 habitantes","Mantener por encima de 80% las búsquedas activas al año de sintomáticos respiratorios de la meta planteada de la plantilla de programa anual.","Porcentaje de búsquedas activas al año de sintomáticos respiratorios de la meta planteada de la plantilla de programa anual.",80,80,"Gestión integral para la promoción de la salud, prevención y control de las enfermedades emergentes, re-emergentes y desatendidas, a traves del fomento a la participación comunitaria.","Hacer seguimiento mensual a búsquedas activas institucionales de sintomáticos respiratorios en la ESE e IPS del municipio.",null,null,null,null,null,null,0,"GESTIÓN_DE_LA_SALUD_PÚBLICA","GSP -  Vigilancia en Salud Pública",null,null,null,"Secretaría de salud Municipal","Secretaria de salud Municipal","Yaneth Sofia Ortiz Parra",{"$error":"#DIV/0!"},null,null,null,{"$error":"#DIV/0!"},null,null,{"$error":"#DIV/0!"}]
["DIMENSIÓN_VIDA_SALUDABLE_Y_ENFERMEDADES_TRANSMISIBLES",20907,"VIDA SALUDABLE Y PREVENCION DE ENFERMEDADES TRANSMISIBLES POR UN PITALITO IDEAL","ENFERMEDADES_EMERGENTES_RE_EMERGENTES_Y_DESATENDIDAS","NA","NA",null,null,"Mantener la mortalidad general por debajo de 476,8 muertes x100.000 habitantes.","Tasa de mortalidad general por 100.000 habitantes","476,8 x 100.000 habitantes","476,8 x 100.000 habitantes","Mantener por encima de 80% las búsquedas activas al año de sintomáticos respiratorios de la meta planteada de la plantilla de programa anual.",null,null,null,null,"Hacer seguimiento mensual a búsquedas activas  comunitarias de Sintomáticos Respiratorios a la población mayor de 15 años.",null,null,null,null,null,null,null,"GESTIÓN_DE_LA_SALUD_PÚBLICA","GSP -  Vigilancia en Salud Pública"]
["DIMENSIÓN_VIDA_SALUDABLE_Y_ENFERMEDADES_TRANSMISIBLES",20906,"VIDA SALUDABLE Y PREVENCION DE ENFERMEDADES TRANSMISIBLES POR UN PITALITO IDEAL","ENFERMEDADES_EMERGENTES_RE_EMERGENTES_Y_DESATENDIDAS","NA","NA",null,null,"Mantener la mortalidad general por debajo de 476,8 muertes x100.000 habitantes.","Tasa de mortalidad general por 100.000 habitantes","476,8 x 100.000 habitantes","476,8 x 100.000 habitantes","Mantener por debajo de 1,6 x100.000 habitantes la tasa de Hansen en el año.","Tasa de Hansen x 100.000 habitantes.",2.4,1.6,"Gestión integral para la promoción de la salud, prevención y control de las enfermedades emergentes, re-emergentes y desatendidas, a traves del fomento a la participación comunitaria.","Realizar acciones  de Educación en Salud a Grupos Comunitarios y adulto mayor en prevención de Hansen y sensibilización para disminución del estigma social. ",null,null,null,null,null,null,0,"PROMOCIÓN_DE_LA_SALUD","PIC - Información en salud",null,null,null,"Secretaría de salud Municipal","Secretaria de salud Municipal","Yaneth Sofia Ortiz Parra",{"$error":"#DIV/0!"},null,null,null,{"$error":"#DIV/0!"},null,null,{"$error":"#DIV/0!"}]
["DIMENSIÓN_VIDA_SALUDABLE_Y_ENFERMEDADES_TRANSMISIBLES",20906,"VIDA SALUDABLE Y PREVENCION DE ENFERMEDADES TRANSMISIBLES POR UN PITALITO IDEAL","ENFERMEDADES_EMERGENTES_RE_EMERGENTES_Y_DESATENDIDAS","NA","NA",null,null,"Mantener la mortalidad general por debajo de 476,8 muertes x100.000 habitantes.","Tasa de mortalidad general por 100.000 habitantes","476,8 x 100.000 habitantes","476,8 x 100.000 habitantes","Mantener por debajo de 1,6 x100.000 habitantes la tasa de Hansen en el año.",null,null,null,null,"Actualizar la Base de Datos de las personas con hansen en el Municipio, además de sus contactos. ",null,null,null,null,null,null,null,"GESTIÓN_DE_LA_SALUD_PÚBLICA","GSP -  Vigilancia en Salud Pública"]
["DIMENSIÓN_VIDA_SALUDABLE_Y_ENFERMEDADES_TRANSMISIBLES",20906,"VIDA SALUDABLE Y PREVENCION DE ENFERMEDADES TRANSMISIBLES POR UN PITALITO IDEAL","ENFERMEDADES_EMERGENTES_RE_EMERGENTES_Y_DESATENDIDAS","NA","NA",null,null,"Mantener la mortalidad general por debajo de 476,8 muertes x100.000 habitantes.","Tasa de mortalidad general por 100.000 habitantes","476,8 x 100.000 habitantes","476,8 x 100.000 habitantes","Mantener por debajo de 33,3% el porcentaje de discapacidad severa grado 2 por enfermedad de Hansen, entre los casos nuevos.","Porcentaje de discapacidad grado 2 por enfermedad de Hansen.",33.299999999999997,33.299999999999997,"Gestión integral para la promoción de la salud, prevención y control de las enfermedades emergentes, re-emergentes y desatendidas, a traves del fomento a la participación comunitaria.","Realizar búsquedas activas comunitarias de Sintomáticos de Piel (SP) y Sintomáticos de Sistema Nervioso Periférico (SNP) a la población mayor de 15 años en el municipio, incluyendo centros carcelarios, batallón y demás instituciones con población cautiva. ",null,"NUMERO",null,null,null,null,0,"PROMOCIÓN_DE_LA_SALUD","PIC - Canalización"]
["DIMENSIÓN_VIDA_SALUDABLE_Y_ENFERMEDADES_TRANSMISIBLES",20906,"VIDA SALUDABLE Y PREVENCION DE ENFERMEDADES TRANSMISIBLES POR UN PITALITO IDEAL","ENFERMEDADES_EMERGENTES_RE_EMERGENTES_Y_DESATENDIDAS","NA","NA",null,null,"Mantener la mortalidad general por debajo de 476,8 muertes x100.000 habitantes.","Tasa de mortalidad general por 100.000 habitantes","476,8 x 100.000 habitantes","476,8 x 100.000 habitantes","Mantener por debajo de 33,3% el porcentaje de discapacidad severa grado 2 por enfermedad de Hansen, entre los casos nuevos.","Porcentaje de discapacidad grado 2 por enfermedad de Hansen.",33.299999999999997,33.299999999999997,"Gestión integral para la promoción de la salud, prevención y control de las enfermedades emergentes, re-emergentes y desatendidas, a traves del fomento a la participación comunitaria.","Realizar  seguimiento anual a convivientes de pacientes de Hansen en el municipio para identificar posibles factores de riesgo, signos y sintomas.",null,"NUMERO",null,null,null,null,0,"PROMOCIÓN_DE_LA_SALUD","PIC - Canalización"]
["DIMENSIÓN_VIDA_SALUDABLE_Y_ENFERMEDADES_TRANSMISIBLES",20906,"VIDA SALUDABLE Y PREVENCION DE ENFERMEDADES TRANSMISIBLES POR UN PITALITO IDEAL","ENFERMEDADES_EMERGENTES_RE_EMERGENTES_Y_DESATENDIDAS","NA","NA",null,null,"Mantener la mortalidad general por debajo de 476,8 muertes x100.000 habitantes.","Tasa de mortalidad general por 100.000 habitantes","476,8 x 100.000 habitantes","476,8 x 100.000 habitantes","Mantener por debajo de 33,3% el porcentaje de discapacidad severa grado 2 por enfermedad de Hansen, entre los casos nuevos.","Porcentaje de discapacidad grado 2 por enfermedad de Hansen.",33.299999999999997,33.299999999999997,"Gestión integral para la promoción de la salud, prevención y control de las enfermedades emergentes, re-emergentes y desatendidas, a traves del fomento a la participación comunitaria.","Realizar canalización a vacunación de convivientes sanos en el momento del diagnóstico de Hansen según protocolo de vigilancia y guía de atención. ",null,"NUMERO",null,null,null,null,0,"GESTIÓN_DE_RIESGO_EN_SALUD","PIC - Canalización"]
["DIMENSIÓN_VIDA_SALUDABLE_Y_ENFERMEDADES_TRANSMISIBLES",20906,"VIDA SALUDABLE Y PREVENCION DE ENFERMEDADES TRANSMISIBLES POR UN PITALITO IDEAL","ENFERMEDADES_EMERGENTES_RE_EMERGENTES_Y_DESATENDIDAS","NA","NA",null,null,"Mantener la mortalidad general por debajo de 476,8 muertes x100.000 habitantes.","Tasa de mortalidad general por 100.000 habitantes","476,8 x 100.000 habitantes","476,8 x 100.000 habitantes","Mantener por debajo de 33,3% el porcentaje de discapacidad severa grado 2 por enfermedad de Hansen, entre los casos nuevos.","Porcentaje de discapacidad grado 2 por enfermedad de Hansen.",33.299999999999997,33.299999999999997,"Gestión integral para la promoción de la salud, prevención y control de las enfermedades emergentes, re-emergentes y desatendidas, a traves del fomento a la participación comunitaria.","Hacer seguimiento mensual  a búsquedas activas institucionales a través de diagnósticos diferenciales,  sello de sintomáticos de piel y sintomático de piel en la ESE y IPS del municipio.",null,"NUMERO",null,null,null,null,0,"GESTIÓN_DE_LA_SALUD_PÚBLICA","GSP -  Vigilancia en Salud Pública"]
["DIMENSIÓN_VIDA_SALUDABLE_Y_ENFERMEDADES_TRANSMISIBLES",20906,"VIDA SALUDABLE Y PREVENCION DE ENFERMEDADES TRANSMISIBLES POR UN PITALITO IDEAL","ENFERMEDADES_EMERGENTES_RE_EMERGENTES_Y_DESATENDIDAS","NA","NA",null,null,"Mantener la mortalidad general por debajo de 476,8 muertes x100.000 habitantes.","Tasa de mortalidad general por 100.000 habitantes","476,8 x 100.000 habitantes","476,8 x 100.000 habitantes","Mantener por debajo de 33,3% el porcentaje de discapacidad severa grado 2 por enfermedad de Hansen, entre los casos nuevos.","Porcentaje de discapacidad grado 2 por enfermedad de Hansen.",33.299999999999997,33.299999999999997,"Gestión integral para la promoción de la salud, prevención y control de las enfermedades emergentes, re-emergentes y desatendidas, a traves del fomento a la participación comunitaria.","Hacer seguimiento al 100% de los casos de Lepra  diagnosticados en el  municipio.",null,"NUMERO",null,null,null,null,0,"GESTIÓN_DE_LA_SALUD_PÚBLICA","GSP -  Vigilancia en Salud Pública"]
["DIMENSIÓN_VIDA_SALUDABLE_Y_ENFERMEDADES_TRANSMISIBLES",20906,"VIDA SALUDABLE Y PREVENCION DE ENFERMEDADES TRANSMISIBLES POR UN PITALITO IDEAL","ENFERMEDADES_EMERGENTES_RE_EMERGENTES_Y_DESATENDIDAS","NA","NA",null,null,"Mantener la mortalidad general por debajo de 476,8 muertes x100.000 habitantes.","Tasa de mortalidad general por 100.000 habitantes","476,8 x 100.000 habitantes","476,8 x 100.000 habitantes","Mantener por debajo de 33,3% el porcentaje de discapacidad severa grado 2 por enfermedad de Hansen, entre los casos nuevos.","Porcentaje de discapacidad grado 2 por enfermedad de Hansen.",33.299999999999997,33.299999999999997,"Gestión integral para la promoción de la salud, prevención y control de las enfermedades emergentes, re-emergentes y desatendidas, a traves del fomento a la participación comunitaria.","Hacer seguimiento trimestral  y anual a los informes de casos y actividades de Lepra de la ESE e IPSs del municipio.",null,"NUMERO",null,null,null,null,0,"GESTIÓN_DE_LA_SALUD_PÚBLICA","GSP -  Vigilancia en Salud Pública"]
["DIMENSIÓN_VIDA_SALUDABLE_Y_ENFERMEDADES_TRANSMISIBLES",20906,"VIDA SALUDABLE Y PREVENCION DE ENFERMEDADES TRANSMISIBLES POR UN PITALITO IDEAL","ENFERMEDADES_EMERGENTES_RE_EMERGENTES_Y_DESATENDIDAS","NA","NA",null,null,"Mantener la mortalidad general por debajo de 476,8 muertes x100.000 habitantes.","Tasa de mortalidad general por 100.000 habitantes","476,8 x 100.000 habitantes","476,8 x 100.000 habitantes","Mantener por debajo de 33,3% el porcentaje de discapacidad severa grado 2 por enfermedad de Hansen, entre los casos nuevos.","Porcentaje de discapacidad grado 2 por enfermedad de Hansen.",33.299999999999997,33.299999999999997,"Gestión integral para la promoción de la salud, prevención y control de las enfermedades emergentes, re-emergentes y desatendidas, a traves del fomento a la participación comunitaria.","Realizar gestión para capacitación a personal de laboratorios de la ESE e IPS por parte de la Secretaría de Salud  Departamental de Huila",null,"NUMERO",null,null,null,null,0,"GESTIÓN_DE_LA_SALUD_PÚBLICA","GSP - Desarrollo de capacidades"]
["DIMENSIÓN_VIDA_SALUDABLE_Y_ENFERMEDADES_TRANSMISIBLES",20906,"VIDA SALUDABLE Y PREVENCION DE ENFERMEDADES TRANSMISIBLES POR UN PITALITO IDEAL","ENFERMEDADES_EMERGENTES_RE_EMERGENTES_Y_DESATENDIDAS","NA","NA",null,null,"Mantener la mortalidad general por debajo de 476,8 muertes x100.000 habitantes.","Tasa de mortalidad general por 100.000 habitantes","476,8 x 100.000 habitantes","476,8 x 100.000 habitantes","Mantener por debajo de 33,3% el porcentaje de discapacidad severa grado 2 por enfermedad de Hansen, entre los casos nuevos.",null,null,null,null,"Realizar acciones de la Estrategia Rehabilitación Basada en la Comunidad en pacientes con discapacidad por enfermedad de Hansen. ",null,"NUMERO",null,null,null,null,null,"PROMOCIÓN_DE_LA_SALUD","PIC - Rehabilitación basada en comunidad"]
["DIMENSIÓN_VIDA_SALUDABLE_Y_ENFERMEDADES_TRANSMISIBLES",20906,"VIDA SALUDABLE Y PREVENCION DE ENFERMEDADES TRANSMISIBLES POR UN PITALITO IDEAL","ENFERMEDADES_INMUNOPREVENIBLES","NA","NA",null,null,"Mantener la mortalidad general por debajo de 476,8 muertes x100.000 habitantes.","Tasa de mortalidad general por 100.000 habitantes","476,8 x 100.000 habitantes","476,8 x 100.000 habitantes","Alcanzar el 95% o más de cobertura en todos los biológicos que hacen parte del esquema nacional, en la población objeto del programa.","Cobertura de vacunación con esquema completo para la edad.",95.2,95,"Implementación de la estrategia de vacunación sin barreras, que disminuya las oportunidades perdidas y garantice el acceso a la vacunación.","Realizar asistencia técnica a las IPS que prestan el servicio de vacunación.",null,null,null,null,null,null,0,"GESTIÓN_DE_LA_SALUD_PÚBLICA","GSP - Desarrollo de capacidades",null,null,null,"Secretaría de salud Municipal","Secretaria de salud Municipal","Yaneth Sofia Ortiz Parra",{"$error":"#DIV/0!"},null,null,null,{"$error":"#DIV/0!"},null,null,{"$error":"#DIV/0!"}]
["DIMENSIÓN_VIDA_SALUDABLE_Y_ENFERMEDADES_TRANSMISIBLES",20907,"VIDA SALUDABLE Y PREVENCION DE ENFERMEDADES TRANSMISIBLES POR UN PITALITO IDEAL","ENFERMEDADES_INMUNOPREVENIBLES","NA","NA",null,null,"Mantener la mortalidad general por debajo de 476,8 muertes x100.000 habitantes.","Tasa de mortalidad general por 100.000 habitantes","476,8 x 100.000 habitantes","476,8 x 100.000 habitantes","Alcanzar el 95% o más de cobertura en todos los biológicos que hacen parte del esquema nacional, en la población objeto del programa.",null,null,null,null,"Hacer seguimiento a las cohortes y RUAF.",null,null,null,null,null,null,null,"GESTIÓN_DE_LA_SALUD_PÚBLICA","GSP - Gestión de la prestación de servicios individuales"]
["DIMENSIÓN_VIDA_SALUDABLE_Y_ENFERMEDADES_TRANSMISIBLES",20908,"VIDA SALUDABLE Y PREVENCION DE ENFERMEDADES TRANSMISIBLES POR UN PITALITO IDEAL","ENFERMEDADES_INMUNOPREVENIBLES","NA","NA",null,null,"Mantener la mortalidad general por debajo de 476,8 muertes x100.000 habitantes.","Tasa de mortalidad general por 100.000 habitantes","476,8 x 100.000 habitantes","476,8 x 100.000 habitantes","Alcanzar el 95% o más de cobertura en todos los biológicos que hacen parte del esquema nacional, en la población objeto del programa.",null,null,null,null,"Hacer seguimiento a coberturas de PAI e informes de monitoreo solicitados a nivel Departamental.",null,null,null,null,null,null,null,"GESTIÓN_DE_LA_SALUD_PÚBLICA","GSP - Gestión de la prestación de servicios individuales"]
["DIMENSIÓN_VIDA_SALUDABLE_Y_ENFERMEDADES_TRANSMISIBLES",20909,"VIDA SALUDABLE Y PREVENCION DE ENFERMEDADES TRANSMISIBLES POR UN PITALITO IDEAL","ENFERMEDADES_INMUNOPREVENIBLES","NA","NA",null,null,"Mantener la mortalidad general por debajo de 476,8 muertes x100.000 habitantes.","Tasa de mortalidad general por 100.000 habitantes","476,8 x 100.000 habitantes","476,8 x 100.000 habitantes","Alcanzar el 95% o más de cobertura en todos los biológicos que hacen parte del esquema nacional, en la población objeto del programa.",null,null,null,null,"Verificar la calidad del dato y lugar de residencia de la población objeto en la PAIWEB.",null,null,null,null,null,null,null,"GESTIÓN_DE_LA_SALUD_PÚBLICA","GSP -  Gestión del conocimiento"]
["DIMENSIÓN_VIDA_SALUDABLE_Y_ENFERMEDADES_TRANSMISIBLES",20909,"VIDA SALUDABLE Y PREVENCION DE ENFERMEDADES TRANSMISIBLES POR UN PITALITO IDEAL","ENFERMEDADES_INMUNOPREVENIBLES","NA","NA",null,null,"Mantener la mortalidad general por debajo de 476,8 muertes x100.000 habitantes.","Tasa de mortalidad general por 100.000 habitantes","476,8 x 100.000 habitantes","476,8 x 100.000 habitantes","Alcanzar el 95% o más de cobertura en todos los biológicos que hacen parte del esquema nacional, en la población objeto del programa.",null,null,null,null,"Apoyar la realización y difusión de las 4 jornadas de vacunación que a nivel Nacional  implementa el Ministerio de Salud y Protección Social-MSPS en todo el País.",null,null,null,null,null,null,null,"PROMOCIÓN_DE_LA_SALUD","PIC - Información en salud"]
["DIMENSIÓN_VIDA_SALUDABLE_Y_ENFERMEDADES_TRANSMISIBLES",20909,"VIDA SALUDABLE Y PREVENCION DE ENFERMEDADES TRANSMISIBLES POR UN PITALITO IDEAL","ENFERMEDADES_INMUNOPREVENIBLES","NA","NA",null,null,"Mantener la mortalidad general por debajo de 476,8 muertes x100.000 habitantes.","Tasa de mortalidad general por 100.000 habitantes","476,8 x 100.000 habitantes","476,8 x 100.000 habitantes","Alcanzar el 95% o más de cobertura en todos los biológicos que hacen parte del esquema nacional, en la población objeto del programa.",null,null,null,null,"Realizar 48 acciones en el año de Información en Salud y Educación y Comunicación para la Salud a Grupos Comunitarios, ONGs, Empresas Públicas y Privadas y Sedes Educativas, promoviendo la adopción de la vacunación con los biológicos del esquema PAI. ",null,null,null,null,null,null,null,"PROMOCIÓN_DE_LA_SALUD","PIC - Información en salud"]
["DIMENSIÓN_VIDA_SALUDABLE_Y_ENFERMEDADES_TRANSMISIBLES",20909,"VIDA SALUDABLE Y PREVENCION DE ENFERMEDADES TRANSMISIBLES POR UN PITALITO IDEAL","ENFERMEDADES_INMUNOPREVENIBLES","NA","NA",null,null,"Mantener la mortalidad general por debajo de 476,8 muertes x100.000 habitantes.","Tasa de mortalidad general por 100.000 habitantes","476,8 x 100.000 habitantes","476,8 x 100.000 habitantes","Alcanzar el 95% o más de cobertura en todos los biológicos que hacen parte del esquema nacional, en la población objeto del programa.",null,null,null,null,"Canalización mensual del total de niños menores de 6 años inasistentes, de acuerdo a cohortes suministradas por el programa de vacunación.",null,null,null,null,null,null,null,"GESTIÓN_DE_RIESGO_EN_SALUD","PIC - Canalización"]
["DIMENSIÓN_VIDA_SALUDABLE_Y_ENFERMEDADES_TRANSMISIBLES",20906,"VIDA SALUDABLE Y PREVENCION DE ENFERMEDADES TRANSMISIBLES POR UN PITALITO IDEAL","CONDICIONES_Y_SITUACIONES_ENDEMO_EPIDEMICAS","NA","NA",null,null,"Mantener la mortalidad general por debajo de 476,8 muertes x100.000 habitantes.","Tasa de mortalidad general por 100.000 habitantes","476,8 x 100.000 habitantes","476,8 x 100.000 habitantes","Fortalecer al 100% las acciones anuales de información en salud y educación y comunicación para la salud en prevención  de enfermedades transmitidas por vectores ETV.","Número de acciones de información en salud y educación y comunicación para la salud en prevención  de enfermedades transmitidas por vectores.",100,100,"Gestión integral para la promoción de la salud, prevención y control de las Enfermedades Transmitidas por Vectores ETV y Zoonosis, mediante el desarrollo de acciones preventivas de la exposición a factores.","Realizar acciones de Educación y Comunicación para la Salud en prevención de Enfermedades Transmitida por Vectores-ETV a Organizaciones Comunitarias, Empresas Públicas, Privadas y Sedes Educativas",null,null,null,null,null,null,0,"PROMOCIÓN_DE_LA_SALUD","PIC - Educación y comunicación en salud",null,null,null,"Secretaría de salud Municipal","Secretaria de salud Municipal","Yaneth Sofia Ortiz Parra",{"$error":"#DIV/0!"},null,null,null,{"$error":"#DIV/0!"},null,null,{"$error":"#DIV/0!"}]
["DIMENSIÓN_VIDA_SALUDABLE_Y_ENFERMEDADES_TRANSMISIBLES",20906,"VIDA SALUDABLE Y PREVENCION DE ENFERMEDADES TRANSMISIBLES POR UN PITALITO IDEAL","CONDICIONES_Y_SITUACIONES_ENDEMO_EPIDEMICAS","NA","NA",null,null,"Mantener la mortalidad general por debajo de 476,8 muertes x100.000 habitantes.","Tasa de mortalidad general por 100.000 habitantes","476,8 x 100.000 habitantes","476,8 x 100.000 habitantes","Fortalecer al 100% las acciones anuales de información en salud y educación y comunicación para la salud en prevención  de enfermedades transmitidas por vectores ETV.",null,null,null,null,"difundir a través del Plan de medios acciones de informacion en salud para promover las actividades de promocion, prevencion y control de enfermedades transmitidas por vectores.",null,null,null,null,null,null,null,"GESTIÓN_DE_LA_SALUD_PÚBLICA","GSP -  Vigilancia en Salud Pública"]
["DIMENSIÓN_VIDA_SALUDABLE_Y_ENFERMEDADES_TRANSMISIBLES",20906,"VIDA SALUDABLE Y PREVENCION DE ENFERMEDADES TRANSMISIBLES POR UN PITALITO IDEAL","CONDICIONES_Y_SITUACIONES_ENDEMO_EPIDEMICAS","NA","NA",null,null,"Mantener la mortalidad general por debajo de 476,8 muertes x100.000 habitantes.","Tasa de mortalidad general por 100.000 habitantes","476,8 x 100.000 habitantes","476,8 x 100.000 habitantes","Disminuir la tasa de incidencia de dengue a 101 x 100.000 habitantes en el año, durante el cuatrienio.",null,null,null,null,"Registrar y consolidar el número de casos reportados de diagnóstico de Dengue",null,null,null,null,null,null,null,"GESTIÓN_DE_LA_SALUD_PÚBLICA","GSP -  Vigilancia en Salud Pública"]
["DIMENSIÓN_VIDA_SALUDABLE_Y_ENFERMEDADES_TRANSMISIBLES",20906,"VIDA SALUDABLE Y PREVENCION DE ENFERMEDADES TRANSMISIBLES POR UN PITALITO IDEAL","CONDICIONES_Y_SITUACIONES_ENDEMO_EPIDEMICAS","NA","NA",null,null,"Mantener la mortalidad general por debajo de 476,8 muertes x100.000 habitantes.","Tasa de mortalidad general por 100.000 habitantes","476,8 x 100.000 habitantes","476,8 x 100.000 habitantes","Disminuir la tasa de incidencia de dengue a 101 x 100.000 habitantes en el año, durante el cuatrienio.","Tasa de dengue x 100.000 habitantes.",109,101,"Gestión integral para la promoción de la salud, prevención y control de las Enfermedades Transmitidas por Vectores ETV y Zoonosis, mediante el desarrollo de acciones preventivas de la exposición a factores.","Realizar talleres educativos prácticos en salud de lavado de tanques y albercas para prevenir ETV.",null,null,null,null,null,null,0,"PROMOCIÓN_DE_LA_SALUD","PIC - Prevención y control de vectores",null,null,null,"Secretaría de salud Municipal","Secretaria de salud Municipal","Yaneth Sofia Ortiz Parra",{"$error":"#DIV/0!"},null,null,null,{"$f":"AH88+AI88+AJ88+AK88","v":{"$error":"#DIV/0!"}},null,null,{"$f":"AL88","v":{"$error":"#DIV/0!"}}]
["DIMENSIÓN_VIDA_SALUDABLE_Y_ENFERMEDADES_TRANSMISIBLES",20906,"VIDA SALUDABLE Y PREVENCION DE ENFERMEDADES TRANSMISIBLES POR UN PITALITO IDEAL","CONDICIONES_Y_SITUACIONES_ENDEMO_EPIDEMICAS","NA","NA",null,null,"Mantener la mortalidad general por debajo de 476,8 muertes x100.000 habitantes.","Tasa de mortalidad general por 100.000 habitantes","476,8 x 100.000 habitantes","476,8 x 100.000 habitantes","Disminuir la tasa de incidencia de dengue a 101 x 100.000 habitantes en el año, durante el cuatrienio.",null,null,null,null,"Educar a la comunidad en el manejo de residuos solidos, reciclables y organicos que generan riesgo para ETV en el hogar",null,null,null,null,null,null,null,"PROMOCIÓN_DE_LA_SALUD","PIC - Prevención y control de vectores"]
["DIMENSIÓN_VIDA_SALUDABLE_Y_ENFERMEDADES_TRANSMISIBLES",20906,"VIDA SALUDABLE Y PREVENCION DE ENFERMEDADES TRANSMISIBLES POR UN PITALITO IDEAL","CONDICIONES_Y_SITUACIONES_ENDEMO_EPIDEMICAS","NA","NA",null,null,"Mantener la mortalidad general por debajo de 476,8 muertes x100.000 habitantes.","Tasa de mortalidad general por 100.000 habitantes","476,8 x 100.000 habitantes","476,8 x 100.000 habitantes","Disminuir la tasa de incidencia de dengue a 101 x 100.000 habitantes en el año, durante el cuatrienio.",null,null,null,null,"Realizar jornada de recoleccion y adecuada disposición de inservibles para prevención de ETV",null,null,null,null,null,null,null,"GESTIÓN_DE_LA_SALUD_PÚBLICA","GSP - Coordinación Intersectorial"]
["DIMENSIÓN_VIDA_SALUDABLE_Y_ENFERMEDADES_TRANSMISIBLES",20906,"VIDA SALUDABLE Y PREVENCION DE ENFERMEDADES TRANSMISIBLES POR UN PITALITO IDEAL","CONDICIONES_Y_SITUACIONES_ENDEMO_EPIDEMICAS","NA","NA",null,null,"Mantener la mortalidad general por debajo de 476,8 muertes x100.000 habitantes.","Tasa de mortalidad general por 100.000 habitantes","476,8 x 100.000 habitantes","476,8 x 100.000 habitantes","Disminuir a 7,1 el índice aédico en el año.","Índice aédico.",7.8,7.1,"Gestión integral para la promoción de la salud, prevención y control de las Enfermedades Transmitidas por Vectores ETV y Zoonosis, mediante el desarrollo de acciones preventivas de la exposición a factores.","Visitar trimestralmente de manera aleatoria 300 viviendas del área urbana del Municipio, con el objetivo de determinar el grado de infestación larvaria y los criaderos a intervenir.",null,null,null,null,null,null,0,"GESTIÓN_DE_RIESGO_EN_SALUD","PIC - Prevención y control de vectores",null,null,null,"Secretaría de salud Municipal","Secretaria de salud Municipal","Yaneth Sofia Ortiz Parra",{"$error":"#DIV/0!"},null,null,null,{"$error":"#DIV/0!"},null,null,{"$error":"#DIV/0!"}]
["DIMENSIÓN_VIDA_SALUDABLE_Y_ENFERMEDADES_TRANSMISIBLES",20906,"VIDA SALUDABLE Y PREVENCION DE ENFERMEDADES TRANSMISIBLES POR UN PITALITO IDEAL","CONDICIONES_Y_SITUACIONES_ENDEMO_EPIDEMICAS","NA","NA",null,null,"Mantener la mortalidad general por debajo de 476,8 muertes x100.000 habitantes.","Tasa de mortalidad general por 100.000 habitantes","476,8 x 100.000 habitantes","476,8 x 100.000 habitantes","Disminuir a 7,1 el índice aédico en el año.",null,null,null,null,"Desarrollo del Plan de Accion por cada uno de los componentes (gerencia, inteligencia, promocion, prevencion, atencion de pacientes y contingencia).",null,null,null,null,null,null,null,"GESTIÓN_DE_RIESGO_EN_SALUD","PIC - Prevención y control de vectores"]
["DIMENSIÓN_VIDA_SALUDABLE_Y_ENFERMEDADES_TRANSMISIBLES",20906,"VIDA SALUDABLE Y PREVENCION DE ENFERMEDADES TRANSMISIBLES POR UN PITALITO IDEAL","CONDICIONES_Y_SITUACIONES_ENDEMO_EPIDEMICAS","NA","NA",null,null,"Mantener la mortalidad general por debajo de 476,8 muertes x100.000 habitantes.","Tasa de mortalidad general por 100.000 habitantes","476,8 x 100.000 habitantes","476,8 x 100.000 habitantes","Mantener en 0 la tasa anual de mortalidad asociada al dengue.",null,null,null,null,"Desarrollar la estrategia de movilización social “Día D” contra el Dengue (10 de agosto). Reportar mensualmente lo realizado",null,null,null,null,null,null,null,"GESTIÓN_DE_LA_SALUD_PÚBLICA","GSP - Coordinación Intersectorial"]
["DIMENSIÓN_VIDA_SALUDABLE_Y_ENFERMEDADES_TRANSMISIBLES",20906,"VIDA SALUDABLE Y PREVENCION DE ENFERMEDADES TRANSMISIBLES POR UN PITALITO IDEAL","CONDICIONES_Y_SITUACIONES_ENDEMO_EPIDEMICAS","NA","NA",null,null,"Mantener la mortalidad general por debajo de 476,8 muertes x100.000 habitantes.","Tasa de mortalidad general por 100.000 habitantes","476,8 x 100.000 habitantes","476,8 x 100.000 habitantes","Mantener en 0 la tasa anual de mortalidad asociada al dengue.","Tasa de mortalidad asociada al dengue x 100.000 habitantes.",0,0,"Gestión integral para la promoción de la salud, prevención y control de las Enfermedades Transmitidas por Vectores ETV y Zoonosis, mediante el desarrollo de acciones preventivas de la exposición a factores.","Realizar visitas domiciliarias a cada caso reportado de Dengue, Inspección y Vigilancia a la vivienda y a su entorno y educar y capacitar a ese núcleo familiar.",null,null,null,null,null,null,0,"GESTIÓN_DE_LA_SALUD_PÚBLICA","GSP -  Vigilancia en Salud Pública",null,null,null,"Secretaría de salud Municipal","Secretaria de salud Municipal","Yaneth Sofia Ortiz Parra",{"$error":"#DIV/0!"},null,null,null,{"$error":"#DIV/0!"},null,null,{"$error":"#DIV/0!"}]
["DIMENSIÓN_VIDA_SALUDABLE_Y_ENFERMEDADES_TRANSMISIBLES",20906,"VIDA SALUDABLE Y PREVENCION DE ENFERMEDADES TRANSMISIBLES POR UN PITALITO IDEAL","CONDICIONES_Y_SITUACIONES_ENDEMO_EPIDEMICAS","NA","NA",null,null,"Mantener la mortalidad general por debajo de 476,8 muertes x100.000 habitantes.","Tasa de mortalidad general por 100.000 habitantes","476,8 x 100.000 habitantes","476,8 x 100.000 habitantes","Mantener en 0 la tasa anual de mortalidad asociada al dengue.",null,null,null,null,"Gestión para la capacitacion del personal medico y asistencial en las rutas, guias y protocolos del Ministerio de salud.",null,null,null,null,null,null,null,"GESTIÓN_DE_LA_SALUD_PÚBLICA","GSP - Desarrollo de capacidades"]
["DIMENSIÓN_SALUD_PÚBLICA_EN_EMERGENCIAS_Y_DESASTRES",20907,"SALUD PUBLICA EN EMERGENCIAS Y DESASTRES POR UN PITALITO IDEAL","GESTION_INTEGRAL_DE_RIESGOS_EN_EMERGENCIAS_Y_DESASTRES","NA","NA",null,null,"Mantener la mortalidad general por debajo de 476,8 muertes x100.000 habitantes.","Tasa de mortalidad general por 100.000 habitantes","476,8 x 100.000 habitantes","476,8 x 100.000 habitantes","Cumplir el 90% de actividades programadas para fortalecer la capacidad de respuesta en salud en emergencias y desastres mediante acciones de  información en salud y educación y comunicación para la salud, (anexo técnico resolución 518 de 2015).","Numero de acciones en información en salud y educación y comunicación para la salud desarrolladas.",90,90,"Gestión intersectorial para el mantenimiento y fortalecimiento de las capacidades básicas mediante acciones de capacitación, asistencia técnica y asesoría en planeación, vigilancia, monitoreo y supervisión de la respuesta municipal en emergencias y deastres.",null,null,null,null,null,null,null,0,"PROMOCIÓN_DE_LA_SALUD","PIC - Información en salud",null,null,null,"Secretaría de salud Municipal","Secretaria de salud Municipal","Yaneth Sofia Ortiz Parra",{"$error":"#DIV/0!"},null,null,null,{"$error":"#DIV/0!"},null,null,{"$error":"#DIV/0!"}]
["DIMENSIÓN_SALUD_PÚBLICA_EN_EMERGENCIAS_Y_DESASTRES",20907,"SALUD PUBLICA EN EMERGENCIAS Y DESASTRES POR UN PITALITO IDEAL","GESTION_INTEGRAL_DE_RIESGOS_EN_EMERGENCIAS_Y_DESASTRES","NA","NA",null,null,"Mantener la mortalidad general por debajo de 476,8 muertes x100.000 habitantes.","Tasa de mortalidad general por 100.000 habitantes","476,8 x 100.000 habitantes","476,8 x 100.000 habitantes","Cumplir el 90% de actividades programadas para fortalecer la capacidad de respuesta en salud en emergencias y desastres mediante acciones de  información en salud y educación y comunicación para la salud, (anexo técnico resolución 518 de 2015).","Numero de acciones en información en salud y educación y comunicación para la salud desarrolladas.",90,90,"Gestión intersectorial para el mantenimiento y fortalecimiento de las capacidades básicas mediante acciones de capacitación, asistencia técnica y asesoría en planeación, vigilancia, monitoreo y supervisión de la respuesta municipal en emergencias y deastres.",null,null,null,null,null,null,null,null,"PROMOCIÓN_DE_LA_SALUD","PIC - Información en salud"]
["DIMENSIÓN_SALUD_PÚBLICA_EN_EMERGENCIAS_Y_DESASTRES",20907,"SALUD PUBLICA EN EMERGENCIAS Y DESASTRES POR UN PITALITO IDEAL","GESTION_INTEGRAL_DE_RIESGOS_EN_EMERGENCIAS_Y_DESASTRES","NA","NA",null,null,"Mantener la mortalidad general por debajo de 476,8 muertes x100.000 habitantes.","Tasa de mortalidad general por 100.000 habitantes","476,8 x 100.000 habitantes","476,8 x 100.000 habitantes","Cumplir el 90% de actividades programadas para fortalecer la capacidad de respuesta en salud en emergencias y desastres mediante acciones de  información en salud y educación y comunicación para la salud, (anexo técnico resolución 518 de 2015).","Numero de acciones en información en salud y educación y comunicación para la salud desarrolladas.",90,90,"Gestión intersectorial para el mantenimiento y fortalecimiento de las capacidades básicas mediante acciones de capacitación, asistencia técnica y asesoría en planeación, vigilancia, monitoreo y supervisión de la respuesta municipal en emergencias y deastres.","Educar a la comunidad de las diferentes Comunas y Corregimiento del Municipio en planes de emergencia familiar.",null,null,null,null,null,null,null,"PROMOCIÓN_DE_LA_SALUD","PIC - Educación y comunicación en salud"]
["DIMENSIÓN_SALUD_PÚBLICA_EN_EMERGENCIAS_Y_DESASTRES",null,null,"GESTION_INTEGRAL_DE_RIESGOS_EN_EMERGENCIAS_Y_DESASTRES",null,null,null,null,null,null,null,null,"Cumplir el 90% de actividades programadas para fortalecer la capacidad de respuesta en salud en emergencias y desastres mediante acciones de  información en salud y educación y comunicación para la salud, (anexo técnico resolución 518 de 2015).",null,null,null,null,"Acciones de educación a nivel rural y urbano con líderes comunitarios en cultura preventiva en emergencias y desastres."]
["DIMENSIÓN_SALUD_PÚBLICA_EN_EMERGENCIAS_Y_DESASTRES",20907,"SALUD PUBLICA EN EMERGENCIAS Y DESASTRES POR UN PITALITO IDEAL","GESTION_INTEGRAL_DE_RIESGOS_EN_EMERGENCIAS_Y_DESASTRES","NA","NA",null,null,"Mantener la mortalidad general por debajo de 476,8 muertes x100.000 habitantes.","Tasa de mortalidad general por 100.000 habitantes","476,8 x 100.000 habitantes","476,8 x 100.000 habitantes","Alcanzar el 67% en Comunas y Corregimientos con mapas de riesgo en salud.","Porcentaje en comunas y corregimientos con  mapas de riesgo en salud",4,4,"Gestión intersectorial para el mantenimiento y fortalecimiento de las capacidades básicas mediante acciones de capacitación, asistencia técnica y asesoría en planeación, vigilancia, monitoreo y supervisión de la respuesta municipal en emergencias y deastres.",null,null,null,null,null,null,null,0,null,null,null,null,null,"Secretaría de salud Municipal","Secretaria de salud Municipal","Yaneth Sofia Ortiz Parra",{"$error":"#DIV/0!"},null,null,null,{"$error":"#DIV/0!"},null,null,{"$error":"#DIV/0!"}]
["DIMENSIÓN_SALUD_Y_ÁMBITO_LABORAL",20908,"SALUD Y AMBITO LABORAL POR UN PITALITO IDEAL","SEGURIDAD_Y_SALUD_EN_EL_TRABAJO","NA","NA",null,null,"Mantener la mortalidad general por debajo de 476,8 muertes x100.000 habitantes.","Tasa de mortalidad general por 100.000 habitantes","476,8 x 100.000 habitantes","476,8 x 100.000 habitantes","Fortalecer en 90% las acciones de promoción de la seguridad y riesgos  laborales en el sector formal e informal de la economía. (Lustra botas, braceros, venta de alimentos crudos y preparados entre otros.","Porcentaje de acciones de promoción de la seguridad y riesgos  laborales en el sector formal e informal de la economía fortalecidas.",20,90,"Promover a nivel sectorial y transectorial la generación y adopción condiciones saludables en el ámbito laboral enmarcado en el Sistema General de Riesgos Laborales a través de un trabajo mancomunado con empleados y empleadores","Realizar acciones de promoción de la afiliación al  Sistema  General de Riesgos Laborales de conformidad con la Ley 1562 de 2012 y demás normas que la adicionen, modifiquen o sustituyan. ",null,null,null,null,null,null,0,"PROMOCIÓN_DE_LA_SALUD","PIC - Información en salud",null,null,null,"Secretaría de salud Municipal","Secretaria de salud Municipal","Yaneth Sofia Ortiz Parra",{"$error":"#DIV/0!"},null,null,null,{"$error":"#DIV/0!"},null,null,{"$error":"#DIV/0!"}]
["DIMENSIÓN_SALUD_Y_ÁMBITO_LABORAL",20908,"SALUD Y AMBITO LABORAL POR UN PITALITO IDEAL","SEGURIDAD_Y_SALUD_EN_EL_TRABAJO","NA","NA",null,null,"Mantener la mortalidad general por debajo de 476,8 muertes x100.000 habitantes.","Tasa de mortalidad general por 100.000 habitantes","476,8 x 100.000 habitantes","476,8 x 100.000 habitantes","Fortalecer en 90% las acciones de promoción de la seguridad y riesgos  laborales en el sector formal e informal de la economía. (Lustra botas, braceros, venta de alimentos crudos y preparados entre otros.",null,null,null,"Promover a nivel sectorial y transectorial la generación y adopción condiciones saludables en el ámbito laboral enmarcado en el Sistema General de Riesgos Laborales a través de un trabajo mancomunado con empleados y empleadores","Realizar visitas técnicas de inspección y seguimiento de las condiciones de salud y ambiente de trabajo de la población trabajadora del municipio de Pitalito.",null,null,null,null,null,null,null,"GESTIÓN_DE_LA_SALUD_PÚBLICA","GSP - Inspección, Vigilancia y Control "]
["DIMENSIÓN_SALUD_Y_ÁMBITO_LABORAL",20908,"SALUD Y AMBITO LABORAL POR UN PITALITO IDEAL","SEGURIDAD_Y_SALUD_EN_EL_TRABAJO","NA","NA",null,null,"Mantener la mortalidad general por debajo de 476,8 muertes x100.000 habitantes.","Tasa de mortalidad general por 100.000 habitantes","476,8 x 100.000 habitantes","476,8 x 100.000 habitantes","Fortalecer en 90% las acciones de promoción de la seguridad y riesgos  laborales en el sector formal e informal de la economía. (Lustra botas, braceros, venta de alimentos crudos y preparados entre otros.",null,null,null,"Promover a nivel sectorial y transectorial la generación y adopción condiciones saludables en el ámbito laboral enmarcado en el Sistema General de Riesgos Laborales a través de un trabajo mancomunado con empleados y empleadores","Diseñar la encuesta para la identificación de riegos y factores determinantes en  la población  formal e informal de la economía y consolidar  sus resultados.",null,null,null,null,null,null,null,"GESTIÓN_DE_LA_SALUD_PÚBLICA","GSP -  Gestión del conocimiento"]
["DIMENSIÓN_SALUD_Y_ÁMBITO_LABORAL",20908,"SALUD Y AMBITO LABORAL POR UN PITALITO IDEAL","SEGURIDAD_Y_SALUD_EN_EL_TRABAJO","NA","NA",null,null,"Mantener la mortalidad general por debajo de 476,8 muertes x100.000 habitantes.","Tasa de mortalidad general por 100.000 habitantes","476,8 x 100.000 habitantes","476,8 x 100.000 habitantes","Fortalecer en 90% las acciones de promoción de la seguridad y riesgos  laborales en el sector formal e informal de la economía. (Lustra botas, braceros, venta de alimentos crudos y preparados entre otros.",null,null,null,"Promover a nivel sectorial y transectorial la generación y adopción condiciones saludables en el ámbito laboral enmarcado en el Sistema General de Riesgos Laborales a través de un trabajo mancomunado con empleados y empleadores","Aplicación de encuesta en la población informal con enfoque diferencial, para la identificación de  los riesgos a que estan expuestos  priorizando las siguientes poblaciones por actividades: agricultura (exposición a plaguicidas, riesgos biológicos y ergonómicos); ganadería (riesgo biológico, ergonómico y de accidentes); silvicultura y pesca (riesgos físicos, biológicos y de accidentes);  manufactura  (riesgo  químico  y  accidentes);  minería (riesgos  químicos, ergonómicos  y  accidentes);  comercio  (riesgos ergonómicos,  psicosociales  y  accidentes);  artesanos  (riesgos  de accidentes y ergonómicos); manufactura (riesgos químicos, psicosociales y accidentes).",null,null,null,null,null,null,null,"GESTIÓN_DE_RIESGO_EN_SALUD","PIC - Intervención de la población trabajadora informal"]
["DIMENSIÓN_SALUD_Y_ÁMBITO_LABORAL",20908,"SALUD Y AMBITO LABORAL POR UN PITALITO IDEAL","SEGURIDAD_Y_SALUD_EN_EL_TRABAJO","NA","NA",null,null,"Mantener la mortalidad general por debajo de 476,8 muertes x100.000 habitantes.","Tasa de mortalidad general por 100.000 habitantes","476,8 x 100.000 habitantes","476,8 x 100.000 habitantes","Fortalecer en 90% las acciones de promoción de la seguridad y riesgos  laborales en el sector formal e informal de la economía. (Lustra botas, braceros, venta de alimentos crudos y preparados entre otros.",null,null,null,"Promover a nivel sectorial y transectorial la generación y adopción condiciones saludables en el ámbito laboral enmarcado en el Sistema General de Riesgos Laborales a través de un trabajo mancomunado con empleados y empleadores","Diseñar las guías  de prevención y mitigación de riesgos ocupacionales de la población informal.",null,null,null,null,null,null,null,"GESTIÓN_DE_LA_SALUD_PÚBLICA","GSP -  Gestión del conocimiento"]
["DIMENSIÓN_SALUD_Y_ÁMBITO_LABORAL",null,null,"SEGURIDAD_Y_SALUD_EN_EL_TRABAJO",null,null,null,null,null,null,null,null,"Fortalecer en 90% las acciones de promoción de la seguridad y riesgos  laborales en el sector formal e informal de la economía. (Lustra botas, braceros, venta de alimentos crudos y preparados entre otros.",null,null,null,"Promover a nivel sectorial y transectorial la generación y adopción condiciones saludables en el ámbito laboral enmarcado en el Sistema General de Riesgos Laborales a través de un trabajo mancomunado con empleados y empleadores","Socializar las guías  de prevención y mitigación de riesgos ocupacionales de la población informal.",null,null,null,null,null,null,null,"PROMOCIÓN_DE_LA_SALUD","PIC - Intervención de la población trabajadora informal"]
["DIMENSIÓN_SALUD_Y_ÁMBITO_LABORAL",20908,"SALUD Y AMBITO LABORAL POR UN PITALITO IDEAL","SEGURIDAD_Y_SALUD_EN_EL_TRABAJO","NA","NA",null,null,"Mantener la mortalidad general por debajo de 476,8 muertes x100.000 habitantes.","Tasa de mortalidad general por 100.000 habitantes","476,8 x 100.000 habitantes","476,8 x 100.000 habitantes","Fortalecer en 90% las acciones de promoción de la seguridad y riesgos  laborales en el sector formal e informal de la economía. (Lustra botas, braceros, venta de alimentos crudos y preparados entre otros.",null,null,null,"Promover a nivel sectorial y transectorial la generación y adopción condiciones saludables en el ámbito laboral enmarcado en el Sistema General de Riesgos Laborales a través de un trabajo mancomunado con empleados y empleadores","Realizar coordinación intersectorial y participación social  con el  Ministerios del Trabajo ( Comité Paritario De Seguridad y Salud en el Trabajo, COLOSST),  oficina de Ambiente y Gestión del Riesgo,   Policía de Turismo y Ambiente, Secretaria de Planeación, Secretaria de Gobierno y  gremios, para articular esfuerzos que favorezcan la protección de la salud de los trabajadores.",null,null,null,null,null,null,null,"GESTIÓN_DE_LA_SALUD_PÚBLICA","GSP - Coordinación Intersectorial"]
["DIMENSIÓN_SALUD_Y_ÁMBITO_LABORAL",20908,"SALUD Y AMBITO LABORAL POR UN PITALITO IDEAL","SEGURIDAD_Y_SALUD_EN_EL_TRABAJO","NA","NA",null,null,"Mantener la mortalidad general por debajo de 476,8 muertes x100.000 habitantes.","Tasa de mortalidad general por 100.000 habitantes","476,8 x 100.000 habitantes","476,8 x 100.000 habitantes","Fortalecer en 90% las acciones de promoción de la seguridad y riesgos  laborales en el sector formal e informal de la economía. (Lustra botas, braceros, venta de alimentos crudos y preparados entre otros.",null,null,null,"Promover a nivel sectorial y transectorial la generación y adopción condiciones saludables en el ámbito laboral enmarcado en el Sistema General de Riesgos Laborales a través de un trabajo mancomunado con empleados y empleadores","Caracterizar la población laboral vulnerable del sector formal en el municipio en sus  condiciones de salud y los riesgos propios de sus actividades económicas.",null,null,null,null,null,null,null,"GESTIÓN_DE_LA_SALUD_PÚBLICA","GSP -  Gestión del conocimiento"]
["DIMENSIÓN_SALUD_Y_ÁMBITO_LABORAL",20908,"SALUD Y AMBITO LABORAL POR UN PITALITO IDEAL","SEGURIDAD_Y_SALUD_EN_EL_TRABAJO","NA","NA",null,null,"Mantener la mortalidad general por debajo de 476,8 muertes x100.000 habitantes.","Tasa de mortalidad general por 100.000 habitantes","476,8 x 100.000 habitantes","476,8 x 100.000 habitantes","Fortalecer en 90% las acciones de promoción de la seguridad y riesgos  laborales en el sector formal e informal de la economía. (Lustra botas, braceros, venta de alimentos crudos y preparados entre otros.",null,null,null,"Promover a nivel sectorial y transectorial la generación y adopción condiciones saludables en el ámbito laboral enmarcado en el Sistema General de Riesgos Laborales a través de un trabajo mancomunado con empleados y empleadores","Realizar acciones  de promoción y fortalecimiento de la conformación de instancias organizativas de grupos de trabajadores y su participación en la protección de la salud en el trabajo, mediante el fomento de una cultura preventiva.",null,null,null,null,null,null,null,"GESTIÓN_DE_LA_SALUD_PÚBLICA","GSP - Desarrollo de capacidades"]
["DIMENSIÓN_SALUD_Y_ÁMBITO_LABORAL",20908,"SALUD Y AMBITO LABORAL POR UN PITALITO IDEAL","SEGURIDAD_Y_SALUD_EN_EL_TRABAJO","NA","NA",null,null,"Mantener la mortalidad general por debajo de 476,8 muertes x100.000 habitantes.","Tasa de mortalidad general por 100.000 habitantes","476,8 x 100.000 habitantes","476,8 x 100.000 habitantes","Fortalecer en 90% las acciones de promoción de la seguridad y riesgos  laborales en el sector formal e informal de la economía. (Lustra botas, braceros, venta de alimentos crudos y preparados entre otros.",null,null,null,"Promover a nivel sectorial y transectorial la generación y adopción condiciones saludables en el ámbito laboral enmarcado en el Sistema General de Riesgos Laborales a través de un trabajo mancomunado con empleados y empleadores","Diseñar y ejecucutar el  plan de acción de promoción y prevención por fases, para lograr el cubrimiento progresivo de las poblaciones laborales vulnerables para lograr el impacto social.",null,null,null,null,null,null,null,"GESTIÓN_DE_LA_SALUD_PÚBLICA","GSP - Planeación Integral en Salud "]
["DIMENSIÓN_SALUD_Y_ÁMBITO_LABORAL",20908,"SALUD Y AMBITO LABORAL POR UN PITALITO IDEAL","SEGURIDAD_Y_SALUD_EN_EL_TRABAJO","NA","NA",null,null,"Mantener la mortalidad general por debajo de 476,8 muertes x100.000 habitantes.","Tasa de mortalidad general por 100.000 habitantes","476,8 x 100.000 habitantes","476,8 x 100.000 habitantes","Fortalecer en 90% las acciones de promoción de la seguridad y riesgos  laborales en el sector formal e informal de la economía. (Lustra botas, braceros, venta de alimentos crudos y preparados entre otros.",null,null,null,"Promover a nivel sectorial y transectorial la generación y adopción condiciones saludables en el ámbito laboral enmarcado en el Sistema General de Riesgos Laborales a través de un trabajo mancomunado con empleados y empleadores","Conmemorar la semana de la seguridad y salud en el trabajo.",null,null,null,null,null,null,null,"GESTIÓN_DE_LA_SALUD_PÚBLICA","GSP - Coordinación Intersectorial"]
["DIMENSIÓN_SALUD_Y_ÁMBITO_LABORAL",20908,"SALUD Y AMBITO LABORAL POR UN PITALITO IDEAL","SEGURIDAD_Y_SALUD_EN_EL_TRABAJO","NA","NA",null,null,"Mantener la mortalidad general por debajo de 476,8 muertes x100.000 habitantes.","Tasa de mortalidad general por 100.000 habitantes","476,8 x 100.000 habitantes","476,8 x 100.000 habitantes","Fortalecer en 90% las acciones de promoción de la seguridad y riesgos  laborales en el sector formal e informal de la economía. (Lustra botas, braceros, venta de alimentos crudos y preparados entre otros.",null,null,null,"Promover a nivel sectorial y transectorial la generación y adopción condiciones saludables en el ámbito laboral enmarcado en el Sistema General de Riesgos Laborales a través de un trabajo mancomunado con empleados y empleadores","Realizar acciones de  promoción de  entornos laborales saludables en el sector formal e informal dirigido al fomento del autocuidado y prevención de accidentes y enfermedades laborales.",null,null,null,null,null,null,null,"PROMOCIÓN_DE_LA_SALUD","PIC - Información en salud"]
["DIMENSIÓN_SALUD_Y_ÁMBITO_LABORAL",20908,"SALUD Y AMBITO LABORAL POR UN PITALITO IDEAL","SEGURIDAD_Y_SALUD_EN_EL_TRABAJO","NA","NA",null,null,"Mantener la mortalidad general por debajo de 476,8 muertes x100.000 habitantes.","Tasa de mortalidad general por 100.000 habitantes","476,8 x 100.000 habitantes","476,8 x 100.000 habitantes","Fortalecer en 90% las acciones de promoción de la seguridad y riesgos  laborales en el sector formal e informal de la economía. (Lustra botas, braceros, venta de alimentos crudos y preparados entre otros.",null,null,null,"Promover a nivel sectorial y transectorial la generación y adopción condiciones saludables en el ámbito laboral enmarcado en el Sistema General de Riesgos Laborales a través de un trabajo mancomunado con empleados y empleadores","Realizar acciones de informacion en salud  en lo relacionado a la salud y ámbito laboral a traves de medios de comunicación fisicos y electronicos.",null,null,null,null,null,null,null,"PROMOCIÓN_DE_LA_SALUD","PIC - Información en salud"]
["DIMENSIÓN_SALUD_Y_ÁMBITO_LABORAL",20908,"SALUD Y AMBITO LABORAL POR UN PITALITO IDEAL","SEGURIDAD_Y_SALUD_EN_EL_TRABAJO","NA","NA",null,null,"Mantener la mortalidad general por debajo de 476,8 muertes x100.000 habitantes.","Tasa de mortalidad general por 100.000 habitantes","476,8 x 100.000 habitantes","476,8 x 100.000 habitantes","Fortalecer en 90% las acciones de promoción de la seguridad y riesgos  laborales en el sector formal e informal de la economía. (Lustra botas, braceros, venta de alimentos crudos y preparados entre otros.",null,null,null,"Promover a nivel sectorial y transectorial la generación y adopción condiciones saludables en el ámbito laboral enmarcado en el Sistema General de Riesgos Laborales a través de un trabajo mancomunado con empleados y empleadores","Realizar visitas técnicas de seguimiento en la implementación y/o operatividad de los   Sistemas  de Gestión de Seguridad y Salud en el Trabajo de las entidades públicas, descentralizadas y mixtas del municipio.",null,null,null,null,null,null,null,"GESTIÓN_DE_LA_SALUD_PÚBLICA","GSP - Inspección, Vigilancia y Control "]
["DIMENSIÓN_SALUD_Y_ÁMBITO_LABORAL",20908,"SALUD Y AMBITO LABORAL POR UN PITALITO IDEAL","SEGURIDAD_Y_SALUD_EN_EL_TRABAJO","NA","NA",null,null,"Mantener la mortalidad general por debajo de 476,8 muertes x100.000 habitantes.","Tasa de mortalidad general por 100.000 habitantes","476,8 x 100.000 habitantes","476,8 x 100.000 habitantes","Fortalecer en 90% las acciones de promoción de la seguridad y riesgos  laborales en el sector formal e informal de la economía. (Lustra botas, braceros, venta de alimentos crudos y preparados entre otros.",null,null,null,"Promover a nivel sectorial y transectorial la generación y adopción condiciones saludables en el ámbito laboral enmarcado en el Sistema General de Riesgos Laborales a través de un trabajo mancomunado con empleados y empleadores","Realizar visitas técnicas de seguimiento en la implementación y/o operatividad de los   Sistemas  de Gestión de Seguridad y Salud en el Trabajo de las entidades privadas con mayor relevancia de oferta de trabajadores, riesgo y actividad económica.",null,null,null,null,null,null,null,"GESTIÓN_DE_LA_SALUD_PÚBLICA","GSP - Inspección, Vigilancia y Control "]
["DIMENSIÓN_SALUD_Y_ÁMBITO_LABORAL",20908,"SALUD Y AMBITO LABORAL POR UN PITALITO IDEAL","SEGURIDAD_Y_SALUD_EN_EL_TRABAJO","NA","NA",null,null,"Mantener la mortalidad general por debajo de 476,8 muertes x100.000 habitantes.","Tasa de mortalidad general por 100.000 habitantes","476,8 x 100.000 habitantes","476,8 x 100.000 habitantes","Fortalecer en 90% las acciones de promoción de la seguridad y riesgos  laborales en el sector formal e informal de la economía. (Lustra botas, braceros, venta de alimentos crudos y preparados entre otros.",null,null,null,"Promover a nivel sectorial y transectorial la generación y adopción condiciones saludables en el ámbito laboral enmarcado en el Sistema General de Riesgos Laborales a través de un trabajo mancomunado con empleados y empleadores","Realizar acciones de prevención, mitigación y superación de riesgos ocupacionales focalizados en su  intervención en grupos poblacionales vulnerables de jóvenes trabajadores entre 15 y 18 años de edad, las mujeres rurales trabajadoras, los adultos mayores trabajadores, las personas  trabajadoras  en condición de discapacidad y otros  grupos diferenciales.",null,null,null,null,null,null,null,"GESTIÓN_DE_RIESGO_EN_SALUD","PIC - Intervención de la población trabajadora informal"]
["DIMENSIÓN_SALUD_Y_ÁMBITO_LABORAL",20908,"SALUD Y AMBITO LABORAL POR UN PITALITO IDEAL","SEGURIDAD_Y_SALUD_EN_EL_TRABAJO","NA","NA",null,null,"Mantener la mortalidad general por debajo de 476,8 muertes x100.000 habitantes.","Tasa de mortalidad general por 100.000 habitantes","476,8 x 100.000 habitantes","476,8 x 100.000 habitantes","Fortalecer en 90% las acciones de promoción de la seguridad y riesgos  laborales en el sector formal e informal de la economía. (Lustra botas, braceros, venta de alimentos crudos y preparados entre otros.",null,null,null,"Promover a nivel sectorial y transectorial la generación y adopción condiciones saludables en el ámbito laboral enmarcado en el Sistema General de Riesgos Laborales a través de un trabajo mancomunado con empleados y empleadores","Realizar acciones de fortalecimiento de promoción y prevención  de  los  riesgos  laborales  en  PYMES  que presenten alta siniestralidad o estén clasificadas como de alto riesgo.",null,null,null,null,null,null,null,"PROMOCIÓN_DE_LA_SALUD","PIC - Información en salud"]
["DIMENSIÓN_SALUD_Y_ÁMBITO_LABORAL",20908,"SALUD Y AMBITO LABORAL POR UN PITALITO IDEAL","SEGURIDAD_Y_SALUD_EN_EL_TRABAJO","NA","NA",null,null,"Mantener la mortalidad general por debajo de 476,8 muertes x100.000 habitantes.","Tasa de mortalidad general por 100.000 habitantes","476,8 x 100.000 habitantes","476,8 x 100.000 habitantes","Fortalecer en 90% las acciones de promoción de la seguridad y riesgos  laborales en el sector formal e informal de la economía. (Lustra botas, braceros, venta de alimentos crudos y preparados entre otros.",null,null,null,"Promover a nivel sectorial y transectorial la generación y adopción condiciones saludables en el ámbito laboral enmarcado en el Sistema General de Riesgos Laborales a través de un trabajo mancomunado con empleados y empleadores","Realizar visita técnica a empresas con casos reportados en la secretaria de salud municipal  de vulneración de los derechos de atención en salud.",null,null,null,null,null,null,null,"GESTIÓN_DE_LA_SALUD_PÚBLICA","GSP -  Vigilancia en Salud Pública"]
["DIMENSIÓN_SALUD_Y_ÁMBITO_LABORAL",20908,"SALUD Y AMBITO LABORAL POR UN PITALITO IDEAL","SEGURIDAD_Y_SALUD_EN_EL_TRABAJO","NA","NA",null,null,"Mantener la mortalidad general por debajo de 476,8 muertes x100.000 habitantes.","Tasa de mortalidad general por 100.000 habitantes","476,8 x 100.000 habitantes","476,8 x 100.000 habitantes","Fortalecer en 90% las acciones de promoción de la seguridad y riesgos  laborales en el sector formal e informal de la economía. (Lustra botas, braceros, venta de alimentos crudos y preparados entre otros.",null,null,null,"Promover a nivel sectorial y transectorial la generación y adopción condiciones saludables en el ámbito laboral enmarcado en el Sistema General de Riesgos Laborales a través de un trabajo mancomunado con empleados y empleadores","Desarrollar línea base municipal  de enfermedades laborales de acuerdo a la información de las ARL presentes en el municipio o de información entregada por empresas.",null,null,null,null,null,null,null,"GESTIÓN_DE_LA_SALUD_PÚBLICA","GSP -  Gestión del conocimiento"]
["DIMENSIÓN_SALUD_Y_ÁMBITO_LABORAL",20908,"SALUD Y AMBITO LABORAL POR UN PITALITO IDEAL","SEGURIDAD_Y_SALUD_EN_EL_TRABAJO","NA","NA",null,null,"Mantener la mortalidad general por debajo de 476,8 muertes x100.000 habitantes.","Tasa de mortalidad general por 100.000 habitantes","476,8 x 100.000 habitantes","476,8 x 100.000 habitantes","Fortalecer en 90% las acciones de promoción de la seguridad y riesgos  laborales en el sector formal e informal de la economía. (Lustra botas, braceros, venta de alimentos crudos y preparados entre otros.",null,null,null,"Promover a nivel sectorial y transectorial la generación y adopción condiciones saludables en el ámbito laboral enmarcado en el Sistema General de Riesgos Laborales a través de un trabajo mancomunado con empleados y empleadores","Suministrar información al area de vigilancia epidemiológica para determinar los perfiles de morbimortalidad de la población trabajadora.",null,null,null,null,null,null,null,"GESTIÓN_DE_LA_SALUD_PÚBLICA","GSP -  Gestión del conocimiento"]
["DIMENSIÓN_SALUD_Y_ÁMBITO_LABORAL",20908,"SALUD Y AMBITO LABORAL POR UN PITALITO IDEAL","SEGURIDAD_Y_SALUD_EN_EL_TRABAJO","NA","NA",null,null,"Mantener la mortalidad general por debajo de 476,8 muertes x100.000 habitantes.","Tasa de mortalidad general por 100.000 habitantes","476,8 x 100.000 habitantes","476,8 x 100.000 habitantes","Fortalecer en 90% las acciones de promoción de la seguridad y riesgos  laborales en el sector formal e informal de la economía. (Lustra botas, braceros, venta de alimentos crudos y preparados entre otros.",null,null,null,"Promover a nivel sectorial y transectorial la generación y adopción condiciones saludables en el ámbito laboral enmarcado en el Sistema General de Riesgos Laborales a través de un trabajo mancomunado con empleados y empleadores","Realizar visitas técnicas a empresas de construcción, mineras, canteras que manejen asbesto, sílice, benceno, radiaciones ionizantes y demás sustancias cancerígenas, con el objeto de proteger la salud de la población",null,null,null,null,null,null,null,"GESTIÓN_DE_LA_SALUD_PÚBLICA","GSP - Inspección, Vigilancia y Control "]
["DIMENSIÓN_SALUD_Y_ÁMBITO_LABORAL",20908,"SALUD Y AMBITO LABORAL POR UN PITALITO IDEAL","SEGURIDAD_Y_SALUD_EN_EL_TRABAJO","NA","NA",null,null,"Mantener la mortalidad general por debajo de 476,8 muertes x100.000 habitantes.","Tasa de mortalidad general por 100.000 habitantes","476,8 x 100.000 habitantes","476,8 x 100.000 habitantes","Fortalecer en 90% las acciones de promoción de la seguridad y riesgos  laborales en el sector formal e informal de la economía. (Lustra botas, braceros, venta de alimentos crudos y preparados entre otros.",null,null,null,"Promover a nivel sectorial y transectorial la generación y adopción condiciones saludables en el ámbito laboral enmarcado en el Sistema General de Riesgos Laborales a través de un trabajo mancomunado con empleados y empleadores","Desarrollar acciones de identificación de riesgos ocupacionales dirigidas a la prevención y erradicación del trabajo infantil y la promoción del trabajo adolescente protegido.",null,null,null,null,null,null,null,"GESTIÓN_DE_LA_SALUD_PÚBLICA","GSP -  Gestión del conocimiento"]
["DIMENSIÓN_SALUD_Y_ÁMBITO_LABORAL",20908,"SALUD Y AMBITO LABORAL POR UN PITALITO IDEAL","SEGURIDAD_Y_SALUD_EN_EL_TRABAJO","NA","NA",null,null,"Mantener la mortalidad general por debajo de 476,8 muertes x100.000 habitantes.","Tasa de mortalidad general por 100.000 habitantes","476,8 x 100.000 habitantes","476,8 x 100.000 habitantes","Fortalecer en 90% las acciones de promoción de la seguridad y riesgos  laborales en el sector formal e informal de la economía. (Lustra botas, braceros, venta de alimentos crudos y preparados entre otros.",null,null,null,"Promover a nivel sectorial y transectorial la generación y adopción condiciones saludables en el ámbito laboral enmarcado en el Sistema General de Riesgos Laborales a través de un trabajo mancomunado con empleados y empleadores","Actualizar línea base de la población informal y formal del municipio.",null,null,null,null,null,null,null,"GESTIÓN_DE_LA_SALUD_PÚBLICA","GSP -  Gestión del conocimiento"]
["DIMENSIÓN_SALUD_Y_ÁMBITO_LABORAL",20908,"SALUD Y AMBITO LABORAL POR UN PITALITO IDEAL","SEGURIDAD_Y_SALUD_EN_EL_TRABAJO","NA","NA",null,null,"Mantener la mortalidad general por debajo de 476,8 muertes x100.000 habitantes.","Tasa de mortalidad general por 100.000 habitantes","476,8 x 100.000 habitantes","476,8 x 100.000 habitantes","Fortalecer en 90% las acciones de promoción de la seguridad y riesgos  laborales en el sector formal e informal de la economía. (Lustra botas, braceros, venta de alimentos crudos y preparados entre otros.",null,null,null,"Promover a nivel sectorial y transectorial la generación y adopción condiciones saludables en el ámbito laboral enmarcado en el Sistema General de Riesgos Laborales a través de un trabajo mancomunado con empleados y empleadores","Seguimiento a los eventos de intoxicación por plaguicidas ocupacionales.",null,null,null,null,null,null,null,"GESTIÓN_DE_LA_SALUD_PÚBLICA","GSP - Inspección, Vigilancia y Control "]
["DIMENSIÓN_SALUD_Y_ÁMBITO_LABORAL",20908,"SALUD Y AMBITO LABORAL POR UN PITALITO IDEAL","SEGURIDAD_Y_SALUD_EN_EL_TRABAJO","NA","NA",null,null,"Mantener la mortalidad general por debajo de 476,8 muertes x100.000 habitantes.","Tasa de mortalidad general por 100.000 habitantes","476,8 x 100.000 habitantes","476,8 x 100.000 habitantes","Fortalecer en 90% las acciones de promoción de la seguridad y riesgos  laborales en el sector formal e informal de la economía. (Lustra botas, braceros, venta de alimentos crudos y preparados entre otros.",null,null,null,"Promover a nivel sectorial y transectorial la generación y adopción condiciones saludables en el ámbito laboral enmarcado en el Sistema General de Riesgos Laborales a través de un trabajo mancomunado con empleados y empleadores","Seguimiento a los reportes de riesgos sanitarios y fitosanitarios, relacionados con el ámbito laboral.",null,null,null,null,null,null,null,"GESTIÓN_DE_LA_SALUD_PÚBLICA","GSP -  Vigilancia en Salud Pública"]
["DIMENSIÓN_SALUD_Y_ÁMBITO_LABORAL",20908,"SALUD Y AMBITO LABORAL POR UN PITALITO IDEAL","SEGURIDAD_Y_SALUD_EN_EL_TRABAJO","NA","NA",null,null,"Mantener la mortalidad general por debajo de 476,8 muertes x100.000 habitantes.","Tasa de mortalidad general por 100.000 habitantes","476,8 x 100.000 habitantes","476,8 x 100.000 habitantes","Fortalecer en 90% las acciones de promoción de la seguridad y riesgos  laborales en el sector formal e informal de la economía. (Lustra botas, braceros, venta de alimentos crudos y preparados entre otros.",null,null,null,"Promover a nivel sectorial y transectorial la generación y adopción condiciones saludables en el ámbito laboral enmarcado en el Sistema General de Riesgos Laborales a través de un trabajo mancomunado con empleados y empleadores","Hacer seguimiento a las EAPB y ARL por accidentes laborales mortales ocurridos.",null,null,null,null,null,null,null,"GESTIÓN_DE_LA_SALUD_PÚBLICA","GSP -  Vigilancia en Salud Pública"]
["DIMENSIÓN_SALUD_Y_ÁMBITO_LABORAL",20908,"SALUD Y AMBITO LABORAL POR UN PITALITO IDEAL","SEGURIDAD_Y_SALUD_EN_EL_TRABAJO","NA","NA",null,null,"Mantener la mortalidad general por debajo de 476,8 muertes x100.000 habitantes.","Tasa de mortalidad general por 100.000 habitantes","476,8 x 100.000 habitantes","476,8 x 100.000 habitantes","Fortalecer en 90% las acciones de promoción de la seguridad y riesgos  laborales en el sector formal e informal de la economía. (Lustra botas, braceros, venta de alimentos crudos y preparados entre otros.",null,null,null,"Promover a nivel sectorial y transectorial la generación y adopción condiciones saludables en el ámbito laboral enmarcado en el Sistema General de Riesgos Laborales a través de un trabajo mancomunado con empleados y empleadores","Orientar acciones para mejorar la calidad de los servicios de salud a los trabajadores mediante resultado de los análisis de la información recolectada.",null,null,null,null,null,null,null,"GESTIÓN_DE_LA_SALUD_PÚBLICA","GSP - Planeación Integral en Salud "]
["DIMENSIÓN_SALUD_Y_ÁMBITO_LABORAL",20908,"SALUD Y AMBITO LABORAL POR UN PITALITO IDEAL","SITUACIONES_PREVALENTES_DE_ORIGEN_LABORAL","NA","NA",null,null,"Mantener la mortalidad general por debajo de 476,8 muertes x100.000 habitantes.","Tasa de mortalidad general por 100.000 habitantes","476,8 x 100.000 habitantes","476,8 x 100.000 habitantes","Fortalecer acciones  de sensibilización  para la inclusión de personas en condición de discapacidad  en el sector productivo de la economía tanto en el sector público y privado.","Número de acciones de sensibilización  para la inclusión de personas en condición de discapacidad  en el sector productivo de la economía tanto en el sector público y privado fortalecidas. ",1,3,"Acciones de sensibilización para la inclusión de las personas con discapacidad en el sector productivo, a través de mecanismos de integración social, dando alcance a la legislación vigente.","Realizar acciones de promoción a los empresarios de los beneficios legales que tiene una entidad por la incorporación de personas con discapacidad (Ley 361 de 1997) y demás normas que la adicionen, modifiquen o sustituyan",null,null,null,null,null,null,0,"PROMOCIÓN_DE_LA_SALUD","PIC - Información en salud",null,null,null,"Secretaría de salud Municipal","Secretaria de salud Municipal","Yaneth Sofia Ortiz Parra",{"$error":"#DIV/0!"},null,null,null,{"$f":"AH128+AI128+AJ128+AK128","v":{"$error":"#DIV/0!"}},null,null,{"$f":"AL128","v":{"$error":"#DIV/0!"}}]
["DIMENSIÓN_SALUD_Y_ÁMBITO_LABORAL",20908,"SALUD Y AMBITO LABORAL POR UN PITALITO IDEAL","SITUACIONES_PREVALENTES_DE_ORIGEN_LABORAL","NA","NA",null,null,"Mantener la mortalidad general por debajo de 476,8 muertes x100.000 habitantes.","Tasa de mortalidad general por 100.000 habitantes","476,8 x 100.000 habitantes","476,8 x 100.000 habitantes","Fortalecer acciones  de sensibilización  para la inclusión de personas en condición de discapacidad  en el sector productivo de la economía tanto en el sector público y privado.",null,null,null,"Acciones de sensibilización para la inclusión de las personas con discapacidad en el sector productivo, a través de mecanismos de integración social, dando alcance a la legislación vigente.","Realizar acciones de sensibilización  para la rehabilitación e inclusión de las personas con discapacidad en el sector productivo, a través de mecanismos de integración social, dando alcance a la legislación vigente. ",null,null,null,null,null,null,null,"PROMOCIÓN_DE_LA_SALUD","PIC - Información en salud"]
["DIMENSIÓN_VIDA_SALUDABLE_Y_ENFERMEDADES_TRANSMISIBLES",20906,"VIDA SALUDABLE Y PREVENCION DE ENFERMEDADES TRANSMISIBLES POR UN PITALITO IDEAL","CONDICIONES_Y_SITUACIONES_ENDEMO_EPIDEMICAS","NA","NA",null,null,"Mantener la mortalidad general por debajo de 476,8 muertes x100.000 habitantes.","Tasa de mortalidad general por 100.000 habitantes","476,8 x 100.000 habitantes","476,8 x 100.000 habitantes","Mantener en 0 la tasa anual de mortalidad asociada al dengue.",null,null,null,null,"Estratificacion y priorizacion de zonas presentes en los eventos  (Vigilancia de evento y elaboracion de mapas de riesgo, boletines).",null,null,null,null,null,null,null,"GESTIÓN_DE_LA_SALUD_PÚBLICA","GSP -  Vigilancia en Salud Pública"]
["DIMENSIÓN_TRANSVERSAL_GESTIÓN_DIFERENCIAL_DE_POBLACIONES_VULNERABLES",20909,"GESTION DIFERENCIAL DE POBLACIONES VULNERABLES PARA UN PITALITO IDEAL","DESARROLLO_INTEGRAL_DE_LAS_NIÑAS_NIÑOS_Y_ADOLESCENTES","NA","NA",null,null,"Mantener la mortalidad general por debajo de 476,8 muertes x100.000 habitantes.","Tasa de mortalidad general por 100.000 habitantes","476,8 x 100.000 habitantes","476,8 x 100.000 habitantes","Mantener por debajo de 8,1 x 1000 nacidos vivos la tasa de mortalidad infantil en menores de un año, en el cuatrienio.","Tasa de mortalidad en menores de un año por 1000 nacidos vivos.",8.4,8.1,"Educación en salud como herramienta intersectorial que contribuye a alcanzar el desarrollo integral de las niñas, los niños y adolescentes.","Celebración del mes de la Infancia (mes de Abril).",null,null,null,null,null,null,0,null,null,null,null,null,"Secretaría de salud Municipal","Secretaria de salud Municipal","Yaneth Sofia Ortiz Parra",{"$error":"#DIV/0!"},null,null,null,{"$error":"#DIV/0!"},null,null,{"$error":"#DIV/0!"}]
["DIMENSIÓN_TRANSVERSAL_GESTIÓN_DIFERENCIAL_DE_POBLACIONES_VULNERABLES",20909,"GESTION DIFERENCIAL DE POBLACIONES VULNERABLES PARA UN PITALITO IDEAL","DESARROLLO_INTEGRAL_DE_LAS_NIÑAS_NIÑOS_Y_ADOLESCENTES","NA","NA",null,null,"Mantener la mortalidad general por debajo de 476,8 muertes x100.000 habitantes.","Tasa de mortalidad general por 100.000 habitantes","476,8 x 100.000 habitantes","476,8 x 100.000 habitantes","Mantener por debajo de 10,1 x 1000 nacidos vivos la tasa de mortalidad en menores de 5 años durante el cuatrienio.","Tasa de mortalidad en menores de 5 años por 1000 nacidos vivos.",10.4,10.1,"Educación en salud como herramienta intersectorial que contribuye a alcanzar el desarrollo integral de las niñas, los niños y adolescentes.","Talleres lúdico educativos  a nivel rural y urbano enfocados a la prevención de accidentes caseros",null,null,null,null,null,null,0,null,null,null,null,null,"Secretaría de salud Municipal","Secretaria de salud Municipal","Yaneth Sofia Ortiz Parra",{"$error":"#DIV/0!"},null,null,null,{"$error":"#DIV/0!"},null,null,{"$error":"#DIV/0!"}]
["DIMENSIÓN_TRANSVERSAL_GESTIÓN_DIFERENCIAL_DE_POBLACIONES_VULNERABLES",20909,"GESTION DIFERENCIAL DE POBLACIONES VULNERABLES PARA UN PITALITO IDEAL","DESARROLLO_INTEGRAL_DE_LAS_NIÑAS_NIÑOS_Y_ADOLESCENTES","NA","NA",null,null,"Mantener la mortalidad general por debajo de 476,8 muertes x100.000 habitantes.","Tasa de mortalidad general por 100.000 habitantes","476,8 x 100.000 habitantes","476,8 x 100.000 habitantes","Disminuir a 100,3 x 1000 niños de 0 a 5 años, la tasa de morbilidad por enfermedad diarreica aguda -EDA.","Tasa de morbilidad en población de 0 a 5 años por EDA.",120.5,100.5,"Educación en salud como herramienta intersectorial que contribuye a alcanzar el desarrollo integral de las niñas, los niños y adolescentes.",null,null,null,null,null,null,null,0,null,null,null,null,null,"Secretaría de salud Municipal","Secretaria de salud Municipal","Yaneth Sofia Ortiz Parra",{"$error":"#DIV/0!"},null,null,null,{"$error":"#DIV/0!"},null,null,{"$error":"#DIV/0!"}]
["DIMENSIÓN_TRANSVERSAL_GESTIÓN_DIFERENCIAL_DE_POBLACIONES_VULNERABLES",20909,"GESTION DIFERENCIAL DE POBLACIONES VULNERABLES PARA UN PITALITO IDEAL","DESARROLLO_INTEGRAL_DE_LAS_NIÑAS_NIÑOS_Y_ADOLESCENTES","NA","NA",null,null,"Mantener la mortalidad general por debajo de 476,8 muertes x100.000 habitantes.","Tasa de mortalidad general por 100.000 habitantes","476,8 x 100.000 habitantes","476,8 x 100.000 habitantes","Disminuir a 357,4 x 1000 niños de 0 a 5 años, la tasa de morbilidad por infección respiratoria aguda – IRA.","Tasa de morbilidad en población de 0 a 5 años  por IRA.",567.5,357.4,"Educación en salud como herramienta intersectorial que contribuye a alcanzar el desarrollo integral de las niñas, los niños y adolescentes.",null,null,null,null,null,null,null,0,null,null,null,null,null,"Secretaría de salud Municipal","Secretaria de salud Municipal","Yaneth Sofia Ortiz Parra",{"$error":"#DIV/0!"},null,null,null,{"$error":"#DIV/0!"},null,null,{"$error":"#DIV/0!"}]
["DIMENSIÓN_TRANSVERSAL_GESTIÓN_DIFERENCIAL_DE_POBLACIONES_VULNERABLES",20909,"GESTION DIFERENCIAL DE POBLACIONES VULNERABLES PARA UN PITALITO IDEAL","DESARROLLO_INTEGRAL_DE_LAS_NIÑAS_NIÑOS_Y_ADOLESCENTES","NA","NA",null,null,"Mantener la mortalidad general por debajo de 476,8 muertes x100.000 habitantes.","Tasa de mortalidad general por 100.000 habitantes","476,8 x 100.000 habitantes","476,8 x 100.000 habitantes","Fortalecer al 100% la estrategia Atención Integral a Enfermedades Prevalentes de la Infancia – AIEPI.","Porcentaje de fortalecimiento de la estrategia AIEPI.","implementada","fortalecida al 100%","Activación de redes familiares, de pares, comunitarias y sociales para la configuración de entornos que promuevan y favorezcan el desarrollo integral de niñas, niños y adolescentes.",null,null,null,null,null,null,null,0,null,null,null,null,null,"Secretaría de salud Municipal","Secretaria de salud Municipal","Yaneth Sofia Ortiz Parra",{"$error":"#DIV/0!"},null,null,null,{"$error":"#DIV/0!"},null,null,{"$error":"#DIV/0!"}]
["DIMENSIÓN_TRANSVERSAL_GESTIÓN_DIFERENCIAL_DE_POBLACIONES_VULNERABLES",20909,"GESTION DIFERENCIAL DE POBLACIONES VULNERABLES PARA UN PITALITO IDEAL","ENVEJECIMIENTO_Y_VEJEZ","NA","NA",null,null,"Mantener la mortalidad general por debajo de 476,8 muertes x100.000 habitantes.","Tasa de mortalidad general por 100.000 habitantes","476,8 x 100.000 habitantes","476,8 x 100.000 habitantes","A 2019 la Secretaria de Salud de Pitalito ha realizado un diagnostico social de análisis de la situación del envejecimiento y vejez.","Diagnostico social de análisis de la situación de envejecimiento y vejez.",0,1,"Desarrollar estudios para identificar las inequidades sociales en el ciclo de vida, en especial del grupo poblacional de personas mayores. Definición de criterios de focalización que orienten la formulación, implementación, seguimiento y evaluación de las políticas poblacionales.",null,null,null,null,null,null,null,0,null,null,null,null,null,"Secretaría de salud Municipal","Secretaria de salud Municipal","Yaneth Sofia Ortiz Parra",{"$error":"#DIV/0!"},null,null,null,{"$error":"#DIV/0!"},null,null,{"$error":"#DIV/0!"}]
["DIMENSIÓN_TRANSVERSAL_GESTIÓN_DIFERENCIAL_DE_POBLACIONES_VULNERABLES",20909,"GESTION DIFERENCIAL DE POBLACIONES VULNERABLES PARA UN PITALITO IDEAL","SALUD_Y_GENERO","NA","NA",null,null,"Mantener la mortalidad general por debajo de 476,8 muertes x100.000 habitantes.","Tasa de mortalidad general por 100.000 habitantes","476,8 x 100.000 habitantes","476,8 x 100.000 habitantes","A 2019 la Secretaria de Salud de Pitalito ha realizado un diagnostico social orientado a la reducción de inequidades de género en salud, con participación social.","Diagnostico social de análisis de la situación de salud y género.",0,1,"Evaluación de equidad de género en salud, incorporando un análisis de indicadores para identificar la brecha entre hombres y mujeres de acuerdo con: 1) participación y oportunidades económicas; 2) nivel educativo; 3) participación y empoderamiento político; y 4) salud y supervivencia.",null,null,null,null,null,null,null,0,null,null,null,null,null,"Secretaría de salud Municipal","Secretaria de salud Municipal","Yaneth Sofia Ortiz Parra",{"$error":"#DIV/0!"},null,null,null,{"$error":"#DIV/0!"},null,null,{"$error":"#DIV/0!"}]
["DIMENSIÓN_TRANSVERSAL_GESTIÓN_DIFERENCIAL_DE_POBLACIONES_VULNERABLES",20909,"GESTION DIFERENCIAL DE POBLACIONES VULNERABLES PARA UN PITALITO IDEAL","SALUD_EN_POBLACIONES_ETNICAS","NA","NA",null,null,"Mantener la mortalidad general por debajo de 476,8 muertes x100.000 habitantes.","Tasa de mortalidad general por 100.000 habitantes","476,8 x 100.000 habitantes","476,8 x 100.000 habitantes","A 2019 la Secretaria de Salud de Pitalito ha realizado un diagnostico social de análisis de la situación de la población Afro.","Diagnostico social de la situación                                   ",0,1,"Investigación sobre la situación en salud de los grupos étnicos, buscando orientar acciones que mantengan la salud, prevengan la enfermedad y la determinación social asociada, para formular estrategias y acciones que mejoren el estado de salud de estas poblaciones.",null,null,null,null,null,null,null,0,null,null,null,null,null,"Secretaría de salud Municipal","Secretaria de salud Municipal","Yaneth Sofia Ortiz Parra",{"$error":"#DIV/0!"},null,null,null,{"$error":"#DIV/0!"},null,null,{"$error":"#DIV/0!"}]
["DIMENSIÓN_TRANSVERSAL_GESTIÓN_DIFERENCIAL_DE_POBLACIONES_VULNERABLES",20909,"GESTION DIFERENCIAL DE POBLACIONES VULNERABLES PARA UN PITALITO IDEAL","SALUD_EN_POBLACIONES_ETNICAS","NA","NA",null,null,"Mantener la mortalidad general por debajo de 476,8 muertes x100.000 habitantes.","Tasa de mortalidad general por 100.000 habitantes","476,8 x 100.000 habitantes","476,8 x 100.000 habitantes","Fortalecer al 100% el proceso de concertación con la comunidades indígenas las acciones de Atención Primaria en salud –APS y Sistema Indígena de Salud Propio e Intercultural –SISPI.","Porcentaje de concertación con las comunidades indígenas las acciones APS y SISPI.",50,100,"Desarrollo, implementación, seguimiento y evaluación de modelos de atención en salud con enfoque intercultural, en el marco de la concertación de los grupos étnicos.",null,null,null,null,null,null,null,0,null,null,null,null,null,"Secretaría de salud Municipal","Secretaria de salud Municipal","Yaneth Sofia Ortiz Parra",{"$error":"#DIV/0!"},null,null,null,{"$error":"#DIV/0!"},null,null,{"$error":"#DIV/0!"}]
["DIMENSIÓN_TRANSVERSAL_GESTIÓN_DIFERENCIAL_DE_POBLACIONES_VULNERABLES",20909,"GESTION DIFERENCIAL DE POBLACIONES VULNERABLES PARA UN PITALITO IDEAL","DISCAPACIDAD","NA","NA",null,null,"Mantener la mortalidad general por debajo de 476,8 muertes x100.000 habitantes.","Tasa de mortalidad general por 100.000 habitantes","476,8 x 100.000 habitantes","476,8 x 100.000 habitantes","Fortalecer al 100% la estrategia Rehabilitación Basada en la Comunidad –RBC, para la población que presenta condición de discapacidad.","Porcentaje de fortalecimiento de la estrategia RBC para población en condición de discapacidad.",70,100,"Implementación de la estrategia Rehabilitación Basada en la Comunidad, como un proceso de desarrollo local inclusivo de caracter intersectorial","acciones educativas en prevención de accidentes de tránsito como causa de discapacidad evitable y su respectiva ruta de atención en salud.",null,null,null,null,null,null,0,null,null,null,null,null,"Secretaría de salud Municipal","Secretaria de salud Municipal","Yaneth Sofia Ortiz Parra",{"$error":"#DIV/0!"},null,null,null,{"$error":"#DIV/0!"},null,null,{"$error":"#DIV/0!"}]
["DIMENSIÓN_TRANSVERSAL_GESTIÓN_DIFERENCIAL_DE_POBLACIONES_VULNERABLES",20909,"GESTION DIFERENCIAL DE POBLACIONES VULNERABLES PARA UN PITALITO IDEAL","VICTIMAS_DEL_CONFLICTO_ARMADO_INTERNO","NA","NA",null,null,"Mantener la mortalidad general por debajo de 476,8 muertes x100.000 habitantes.","Tasa de mortalidad general por 100.000 habitantes","476,8 x 100.000 habitantes","476,8 x 100.000 habitantes","Atender al 100% de la demanda en acompañamiento psicosocial a la población víctima del conflicto armado.","Porcentaje de atención psicosocial a la población víctima del conflicto armado.",100,100,"Fortalecimiento de la institucionalidad para responder equitativamente al goce efectivo de derechos, a las necesidades y demandas de las víctimas.",null,null,null,null,null,null,null,0,null,null,null,null,null,"Secretaría de salud Municipal","Secretaria de salud Municipal","Yaneth Sofia Ortiz Parra",{"$error":"#DIV/0!"},null,null,null,{"$error":"#DIV/0!"},null,null,{"$error":"#DIV/0!"}]
["DIMENSIÓN_FORTALECIMIENTO_DE_LA_AUTORIDAD_SANITARIA_PARA_LA_GESTIÓN_EN_SALUD",20910,"FORTALECIMIENTO DE LA AUTORIDAD SANITARIA POR UN PITALITO IDEAL","FORTALECIMIENTO_DE_LA_AUTORIDAD_SANITARIA","NA","NA",null,null,"Mantener la mortalidad general por debajo de 476,8 muertes x100.000 habitantes.","Tasa de mortalidad general por 100.000 habitantes","476,8 x 100.000 habitantes","476,8 x 100.000 habitantes","Lograr el cumplimiento del 100% en la notificación de las semanas epidemiológicas por parte de las Unidades Primarias Generadoras de Datos -UPGD en el año.","Porcentaje de la notificación semanal obligatoria al SIVIGILA de los eventos de interés en salud pública.",98,100,"Desarrollo y actualización de instrumentos, modelos de vigilancia del sistema y sus subcomponentes, vigilancia en salud pública y vigilancia sanitaria, y el componente de Inspección, Vigilancia y Control IVC.",null,null,null,null,null,null,null,0,null,null,null,null,null,"Secretaría de salud Municipal","Secretaria de salud Municipal","Yaneth Sofia Ortiz Parra",{"$error":"#DIV/0!"},null,null,null,{"$error":"#DIV/0!"},null,null,{"$error":"#DIV/0!"}]
["DIMENSIÓN_FORTALECIMIENTO_DE_LA_AUTORIDAD_SANITARIA_PARA_LA_GESTIÓN_EN_SALUD",20910,"FORTALECIMIENTO DE LA AUTORIDAD SANITARIA POR UN PITALITO IDEAL","FORTALECIMIENTO_DE_LA_AUTORIDAD_SANITARIA","NA","NA",null,null,"Mantener la mortalidad general por debajo de 476,8 muertes x100.000 habitantes.","Tasa de mortalidad general por 100.000 habitantes","476,8 x 100.000 habitantes","476,8 x 100.000 habitantes","Realizar visitas de seguimiento al 100% de los eventos de interés en salud pública que lo requieran según protocolo. (Notificados al SIVIGILA cada año).","Porcentaje de visitas realizadas de los eventos de interés en salud publica según protocolo, notificados al SIVIGILA.",91,100,"Desarrollo y actualización de instrumentos, modelos de vigilancia del sistema y sus subcomponentes, vigilancia en salud pública y vigilancia sanitaria, y el componente de Inspección, Vigilancia y Control IVC.",null,null,null,null,null,null,null,0,null,null,null,null,null,"Secretaría de salud Municipal","Secretaria de salud Municipal","Yaneth Sofia Ortiz Parra",{"$error":"#DIV/0!"},null,null,null,{"$error":"#DIV/0!"},null,null,{"$error":"#DIV/0!"}]
["DIMENSIÓN_FORTALECIMIENTO_DE_LA_AUTORIDAD_SANITARIA_PARA_LA_GESTIÓN_EN_SALUD",20910,"FORTALECIMIENTO DE LA AUTORIDAD SANITARIA POR UN PITALITO IDEAL","FORTALECIMIENTO_DE_LA_AUTORIDAD_SANITARIA","NA","NA",null,null,"Mantener la mortalidad general por debajo de 476,8 muertes x100.000 habitantes.","Tasa de mortalidad general por 100.000 habitantes","476,8 x 100.000 habitantes","476,8 x 100.000 habitantes","Realizar el 100% de los Comité de Vigilancia Epidemiológica -COVE.","Porcentaje de cumplimiento en la realización del comité de vigilancia epidemiológica  -COVE.",12,12,"Articulacion con otros sectores para la reducción de inequidades sociales a través del abordaje de los Determinantes Sociales de la Salud y sus beneficios para el desarrollo, salud y bienestar del municipio.",null,null,null,null,null,null,null,0,null,null,null,null,null,"Secretaría de salud Municipal","Secretaria de salud Municipal","Yaneth Sofia Ortiz Parra",{"$error":"#DIV/0!"},null,null,null,{"$error":"#DIV/0!"},null,null,{"$error":"#DIV/0!"}]
["DIMENSIÓN_FORTALECIMIENTO_DE_LA_AUTORIDAD_SANITARIA_PARA_LA_GESTIÓN_EN_SALUD",20910,"FORTALECIMIENTO DE LA AUTORIDAD SANITARIA POR UN PITALITO IDEAL","FORTALECIMIENTO_DE_LA_AUTORIDAD_SANITARIA","NA","NA",null,null,"Mantener la mortalidad general por debajo de 476,8 muertes x100.000 habitantes.","Tasa de mortalidad general por 100.000 habitantes","476,8 x 100.000 habitantes","476,8 x 100.000 habitantes","Realizar el 100% de los Comités de Vigilancia en Salud Pública. (Comité de Estadísticas Vitales y Comité de Vigilancia Epidemiológica Comunitaria –COVECOM).","Porcentaje de cumplimiento en la realización de comités de Estadísticas Vitales y  Comité de Vigilancia Epidemiológica Comunitaria–COVECOM).",4,4,"Articulacion con otros sectores para la reducción de inequidades sociales a través del abordaje de los Determinantes Sociales de la Salud y sus beneficios para el desarrollo, salud y bienestar del municipio.",null,null,null,null,null,null,null,{"$f":"SUM(U145:X145)","v":0},null,null,null,null,null,"Secretaría de salud Municipal","Secretaria de salud Municipal","Yaneth Sofia Ortiz Parra",{"$f":"AD145/(U145+V145+W145+X145)*U145","v":{"$error":"#DIV/0!"}},null,null,null,{"$error":"#DIV/0!"},null,null,{"$error":"#DIV/0!"}]
["DIMENSIÓN_FORTALECIMIENTO_DE_LA_AUTORIDAD_SANITARIA_PARA_LA_GESTIÓN_EN_SALUD",20910,"FORTALECIMIENTO DE LA AUTORIDAD SANITARIA POR UN PITALITO IDEAL","FORTALECIMIENTO_DE_LA_AUTORIDAD_SANITARIA","NA","NA",null,null,"Mantener la mortalidad general por debajo de 476,8 muertes x100.000 habitantes.","Tasa de mortalidad general por 100.000 habitantes","476,8 x 100.000 habitantes","476,8 x 100.000 habitantes","Elaborar y aprobar el Plan Territorial de Salud del municipio de Pitalito, durante el cuatrienio","Plan Territorial de Salud de Pitalito elaborado y aprobado.",0,1,"Fortalecer la autoridad sanitaria mediante el desarrollo de actividades continuas e intersectoriales, para el favorecimiento del acceso a los servicios, así como garantizar personal idóneo que desarrolle funciones de regulación, conducción, gestión financiera, vigilancia epiiemiológica y sanitaria, garantía de aseguramiento y la provisión adecuada de los servicios de salud",null,null,null,null,null,null,null,0,null,null,null,null,null,"Secretaría de salud Municipal","Secretaria de salud Municipal","Yaneth Sofia Ortiz Parra",{"$error":"#DIV/0!"},null,null,null,{"$error":"#DIV/0!"},null,null,{"$error":"#DIV/0!"}]
["DIMENSIÓN_FORTALECIMIENTO_DE_LA_AUTORIDAD_SANITARIA_PARA_LA_GESTIÓN_EN_SALUD",20910,"FORTALECIMIENTO DE LA AUTORIDAD SANITARIA POR UN PITALITO IDEAL","FORTALECIMIENTO_DE_LA_AUTORIDAD_SANITARIA","NA","NA",null,null,"Mantener la mortalidad general por debajo de 476,8 muertes x100.000 habitantes.","Tasa de mortalidad general por 100.000 habitantes","476,8 x 100.000 habitantes","476,8 x 100.000 habitantes","Mantener 1 contrato al año, con una empresa interventora para Garantizar el seguimiento a la prestación del servicio del régimen subsidiado","Contratación de empresa interventora.",1,1,"Fortalecer la autoridad sanitaria mediante el desarrollo de actividades continuas e intersectoriales, para el favorecimiento del acceso a los servicios, así como garantizar personal idóneo que desarrolle funciones de regulación, conducción, gestión financiera, vigilancia epiiemiológica y sanitaria, garantía de aseguramiento y la provisión adecuada de los servicios de salud",null,null,null,null,null,null,null,0,null,null,null,null,null,"Secretaría de salud Municipal","Secretaria de salud Municipal","Yaneth Sofia Ortiz Parra",{"$error":"#DIV/0!"},null,null,null,{"$error":"#DIV/0!"},null,null,{"$error":"#DIV/0!"}]
["DIMENSIÓN_FORTALECIMIENTO_DE_LA_AUTORIDAD_SANITARIA_PARA_LA_GESTIÓN_EN_SALUD",20910,"FORTALECIMIENTO DE LA AUTORIDAD SANITARIA POR UN PITALITO IDEAL","FORTALECIMIENTO_DE_LA_AUTORIDAD_SANITARIA","NA","NA",null,null,"Mantener la mortalidad general por debajo de 476,8 muertes x100.000 habitantes.","Tasa de mortalidad general por 100.000 habitantes","476,8 x 100.000 habitantes","476,8 x 100.000 habitantes","Fortalecer a la Secretaria de Salud Municipal a través de la implementación de los procesos para la gestión de la salud pública.","Secretaria de Salud Municipal fortalecida con la implementación de los proceso para la gestión de la salud pública.",1,1,"Desarrollo de herramientas para la Gestión Territorial: incluye el desarrollo de metodologías, guías e instrumentos de planeación en salud, financiera y operativa, y para el seguimiento a la operación del plan de salud en los territorios, con sus componentes de acciones colectivas, acciones transectoriales de promoción de la salud y acciones individuales.",null,null,null,null,null,null,null,0,null,null,null,null,null,"Secretaría de salud Municipal","Secretaria de salud Municipal","Yaneth Sofia Ortiz Parra",{"$error":"#DIV/0!"},null,null,null,{"$error":"#DIV/0!"},null,null,{"$error":"#DIV/0!"}]
["DIMENSIÓN_FORTALECIMIENTO_DE_LA_AUTORIDAD_SANITARIA_PARA_LA_GESTIÓN_EN_SALUD",20910,"FORTALECIMIENTO DE LA AUTORIDAD SANITARIA POR UN PITALITO IDEAL","FORTALECIMIENTO_DE_LA_AUTORIDAD_SANITARIA","NA","NA",null,null,"Mantener la mortalidad general por debajo de 476,8 muertes x100.000 habitantes.","Tasa de mortalidad general por 100.000 habitantes","476,8 x 100.000 habitantes","476,8 x 100.000 habitantes","Identificar en un 100% las EAPB e IPS que generan barreras administrativas en la prestación de servicios, para su notificación a los Entes de Control.","Porcentaje de EAPB e IPS que generan barreras administrativas en la prestación de servicios.",65,100,"Fortalecer la autoridad sanitaria mediante el desarrollo de actividades continuas e intersectoriales, para el favorecimiento del acceso a los servicios, así como garantizar personal idóneo que desarrolle funciones de regulación, conducción, gestión financiera, vigilancia epiiemiológica y sanitaria, garantía de aseguramiento y la provisión adecuada de los servicios de salud",null,null,null,null,null,null,null,0,null,null,null,null,null,"Secretaría de salud Municipal","Secretaria de salud Municipal","Yaneth Sofia Ortiz Parra",{"$error":"#DIV/0!"},null,null,null,{"$error":"#DIV/0!"},null,null,{"$error":"#DIV/0!"}]
["DIMENSIÓN_FORTALECIMIENTO_DE_LA_AUTORIDAD_SANITARIA_PARA_LA_GESTIÓN_EN_SALUD",20910,"FORTALECIMIENTO DE LA AUTORIDAD SANITARIA POR UN PITALITO IDEAL","FORTALECIMIENTO_DE_LA_AUTORIDAD_SANITARIA","NA","NA",null,null,"Mantener la mortalidad general por debajo de 476,8 muertes x100.000 habitantes.","Tasa de mortalidad general por 100.000 habitantes","476,8 x 100.000 habitantes","476,8 x 100.000 habitantes","Mediante mesas de trabajo con los actores del sistema (EAPB e IPS) generar planes de mejora que propendan por el mejoramiento continuo de la calidad.","Número de mesas de trabajo realizadas con los actores del sistema.",6,32,"Fortalecer la autoridad sanitaria mediante el desarrollo de actividades continuas e intersectoriales, para el favorecimiento del acceso a los servicios, así como garantizar personal idóneo que desarrolle funciones de regulación, conducción, gestión financiera, vigilancia epiiemiológica y sanitaria, garantía de aseguramiento y la provisión adecuada de los servicios de salud",null,null,null,null,null,null,null,0,null,null,null,null,null,"Secretaría de salud Municipal","Secretaria de salud Municipal","Yaneth Sofia Ortiz Parra",{"$error":"#DIV/0!"},null,null,null,{"$error":"#DIV/0!"},null,null,{"$error":"#DIV/0!"}]
["DIMENSIÓN_FORTALECIMIENTO_DE_LA_AUTORIDAD_SANITARIA_PARA_LA_GESTIÓN_EN_SALUD",20910,"FORTALECIMIENTO DE LA AUTORIDAD SANITARIA POR UN PITALITO IDEAL","FORTALECIMIENTO_DE_LA_AUTORIDAD_SANITARIA","NA","NA",null,null,"Mantener la mortalidad general por debajo de 476,8 muertes x100.000 habitantes.","Tasa de mortalidad general por 100.000 habitantes","476,8 x 100.000 habitantes","476,8 x 100.000 habitantes","Mantener el 100% de los afiliados al Sistema General de Seguridad Social en Salud -SGSSS régimen subsidiado en continuidad","% de afiliados a SGSSS en régimen subsidiado  en continuidad",97.79,100,"Fortalecer la autoridad sanitaria mediante el desarrollo de actividades continuas e intersectoriales, para el favorecimiento del acceso a los servicios, así como garantizar personal idóneo que desarrolle funciones de regulación, conducción, gestión financiera, vigilancia epiiemiológica y sanitaria, garantía de aseguramiento y la provisión adecuada de los servicios de salud",null,null,null,null,null,null,null,0,null,null,null,null,null,"Secretaría de salud Municipal","Secretaria de salud Municipal","Yaneth Sofia Ortiz Parra",{"$error":"#DIV/0!"},null,null,null,{"$error":"#DIV/0!"},null,null,{"$error":"#DIV/0!"}]
["DIMENSIÓN_FORTALECIMIENTO_DE_LA_AUTORIDAD_SANITARIA_PARA_LA_GESTIÓN_EN_SALUD",20910,"FORTALECIMIENTO DE LA AUTORIDAD SANITARIA POR UN PITALITO IDEAL","FORTALECIMIENTO_DE_LA_AUTORIDAD_SANITARIA","NA","NA",null,null,"Mantener la mortalidad general por debajo de 476,8 muertes x100.000 habitantes.","Tasa de mortalidad general por 100.000 habitantes","476,8 x 100.000 habitantes","476,8 x 100.000 habitantes","Diseñar e implementar una estrategia de vigilancia para evitar la evasión y elución al SGSSS.","Estrategia de vigilancia para evitar la evasión y elución al SGSSS diseñada e implementada.",0,1,"Fortalecer la autoridad sanitaria mediante el desarrollo de actividades continuas e intersectoriales, para el favorecimiento del acceso a los servicios, así como garantizar personal idóneo que desarrolle funciones de regulación, conducción, gestión financiera, vigilancia epiiemiológica y sanitaria, garantía de aseguramiento y la provisión adecuada de los servicios de salud",null,null,null,null,null,null,null,0,null,null,null,null,null,"Secretaría de salud Municipal","Secretaria de salud Municipal","Yaneth Sofia Ortiz Parra",{"$error":"#DIV/0!"},null,null,null,{"$error":"#DIV/0!"},null,null,{"$error":"#DIV/0!"}]
["DIMENSIÓN_FORTALECIMIENTO_DE_LA_AUTORIDAD_SANITARIA_PARA_LA_GESTIÓN_EN_SALUD",20910,"FORTALECIMIENTO DE LA AUTORIDAD SANITARIA POR UN PITALITO IDEAL","FORTALECIMIENTO_DE_LA_AUTORIDAD_SANITARIA","NA","NA",null,null,"Mantener la mortalidad general por debajo de 476,8 muertes x100.000 habitantes.","Tasa de mortalidad general por 100.000 habitantes","476,8 x 100.000 habitantes","476,8 x 100.000 habitantes","Garantizar en un 80% la accesibilidad a los servicios de salud de primer nivel a la población urbana y rural del municipio  mediante el modelo de Atencion Primaria en Salud -APS","Porcentaje de accesibilidad a los servicios de salud de primer nivel a la población urbana y rural del municipio  mediante el modelo de Atención Primaria en Salud -APS",64,80,"Desarrollo de un modelo de atención adaptado a las condiciones territoriales para garantizar acceso real mediante mecanismos acordes con cada territorio (equipos extramurales,  disposición de medios para incrementar la capacidad resolutiva en puntos de primer contacto, personal de salud diferencial en áreas rurales y dispersas).","Realizar 900 actividades de Atencion Primaria en Salud -APS en la zona urbana y rural del municipio.",900,null,100,350,150,300,900,null,null,null,null,null,"Secretaría de salud Municipal","Secretaria de salud Municipal","Yaneth Sofia Ortiz Parra",0,null,null,null,0,null,null,0]
[null,null,null,null,null,null,null,null,null,null,null,null,"Avanzar al 60% en la implementacion de la estrategia IAMI con base a los nuevos lineamientos de la UNICEF emitidos el año 2016, en la ESE municipal Manuel Castro Tovar.",null,null,null,null,"1) Seguimiento trimestral de la estrategia IAMI    ",4,null,1,1,1,1,4]
[null,null,null,null,null,null,null,null,null,null,null,null,null,null,null,null,null,"2) 10 Capacitaciones sobre estrategia IAMI y AIEPI dirigida a los grupos de apoyo, EAPB y entidades públicas y privadas",10,null,1,3,3,3,10]
[null,null,null,null,null,null,null,null,null,null,null,null,null,null,null,null,null,"3) Reporte bimensual en medios de comunicación y/o redes sociales,  de actividades realizadas a través de la estrategia IAMI   ",6,null,1,2,1,2,6]
[null,null,null,null,null,null,null,null,null,null,null,null,null,null,null,null,null,"4) Brindar educación a gestantes y cuidadores de niños menores de 2 años a través de 12 capacitaciones y actividades en convenio con la fundación éxito.",12,null,3,3,3,3,12]
[null,null,null,null,null,null,null,null,null,null,null,null,null,null,null,null,null,"                                                                                                5)Seguimiento a la aplicación de los lineamientos técnicos para la atención integral de las niñas y los niños menores de cinco (5) años con desnutrición aguda ",4,null,1,1,1,1,4]
["DIMENSIÓN_FORTALECIMIENTO_DE_LA_AUTORIDAD_SANITARIA_PARA_LA_GESTIÓN_EN_SALUD",20910,"FORTALECIMIENTO DE LA AUTORIDAD SANITARIA POR UN PITALITO IDEAL","FORTALECIMIENTO_DE_LA_AUTORIDAD_SANITARIA","NA","NA",null,null,"Mantener la mortalidad general por debajo de 476,8 muertes x100.000 habitantes.","Tasa de mortalidad general por 100.000 habitantes","476,8 x 100.000 habitantes","476,8 x 100.000 habitantes",null,"Porcentaje de avance en la implementación de la estrategia IAMI con base a los nuevos lineamientos de la UNICEF emitidos el año 2016, en la ESE municipal Manuel Castro Tovar.",50,60,"Activación de redes familiares de pares comunitarias y sociales para la configuración de entornos que promuevan y favorezcan el desarrollo integral de niños, niñas adolescentes","6) 5 capacitaciones al año en AIEPI comunitario a  las voluntarias responsables de UROCS y UAIRAS       ",5,null,1,2,1,1,5,null,null,null,null,null,"Secretaría de salud Municipal","Secretaria de salud Municipal","Yaneth Sofia Ortiz Parra",0,null,null,null,0,null,null,0]
[null,null,null,null,null,null,null,null,null,null,null,null,"Mantener actualizado el Sistema de Gestion de Calidad en la ESE Municipal Manuel Castro Tovar.",null,null,null,null,"1) Seguimiento trimestral al cumplimiento de los numerales  de la  norma ISO 9001:2015",4,null,1,1,1,1,4]
[null,null,null,null,null,null,null,null,null,null,null,null,null,null,null,null,null,"2)Realizar auditoria interna semestral ",2,null,null,1,null,1,2]
["DIMENSIÓN_FORTALECIMIENTO_DE_LA_AUTORIDAD_SANITARIA_PARA_LA_GESTIÓN_EN_SALUD",20910,"FORTALECIMIENTO DE LA AUTORIDAD SANITARIA POR UN PITALITO IDEAL","FORTALECIMIENTO_DE_LA_AUTORIDAD_SANITARIA","NA","NA",null,null,"Mantener la mortalidad general por debajo de 476,8 muertes x100.000 habitantes.","Tasa de mortalidad general por 100.000 habitantes","476,8 x 100.000 habitantes","476,8 x 100.000 habitantes",null,"ESE municipal Manuel Castro Tovar certificada en ISO9001 durante el cuatrienio",1,1,"Empoderamiento del personal a través de un programa continuo de capacitación que contribuya al desarrollo humano, capacidades técnicas, participación y control social logrando el fortalecimiento de las instituciones en la standarización de procesos y procedimientos","3)  Recibir la visita de una entidad acreditada para veificación del cumplimiento en la norma técnica de calidad ISO 9001: 2015 ",1,null,null,null,null,1,1,null,null,null,null,null,"Secretaría de salud Municipal","Secretaria de salud Municipal","Yaneth Sofia Ortiz Parra",0,null,null,null,0,null,null,0]
["DIMENSIÓN_FORTALECIMIENTO_DE_LA_AUTORIDAD_SANITARIA_PARA_LA_GESTIÓN_EN_SALUD",20910,"FORTALECIMIENTO DE LA AUTORIDAD SANITARIA POR UN PITALITO IDEAL","FORTALECIMIENTO_DE_LA_AUTORIDAD_SANITARIA","NA","NA",null,null,"Mantener la mortalidad general por debajo de 476,8 muertes x100.000 habitantes.","Tasa de mortalidad general por 100.000 habitantes","476,8 x 100.000 habitantes","476,8 x 100.000 habitantes","Fortalecer 1 programa de humanización de servicios de salud (buen trato), en la ESE Manuel Castro Tovar, durante el cuatrienio.","Programa de humanización de servicios de salud (buen trato), en la ESE Manuel Castro Tovar implementado.",1,1,"Empoderamiento del personal a través de un programa continuo de capacitación que contribuya al desarrollo humano, capacidades técnicas, participación y control social logrando el fortalecimiento de las instituciones en la standarización de procesos y procedimientos","Seguimiento a la operativización del programa de humanización ",4,null,0.01,0.01,0.01,0.01,0.04,null,null,null,null,null,"Secretaría de salud Municipal","Secretaria de salud Municipal","Yaneth Sofia Ortiz Parra",0,null,null,null,{"$f":"AH163+AI163+AJ163+AK163","v":0},null,null,{"$f":"AL163","v":0}]
["DIMENSIÓN_FORTALECIMIENTO_DE_LA_AUTORIDAD_SANITARIA_PARA_LA_GESTIÓN_EN_SALUD",20910,"FORTALECIMIENTO DE LA AUTORIDAD SANITARIA POR UN PITALITO IDEAL","FORTALECIMIENTO_DE_LA_AUTORIDAD_SANITARIA","NA","NA",null,null,"Mantener la mortalidad general por debajo de 476,8 muertes x100.000 habitantes.","Tasa de mortalidad general por 100.000 habitantes","476,8 x 100.000 habitantes","476,8 x 100.000 habitantes","Presentar 1 proyecto para la consecución de recursos  destinados a la  construcción de la sede del centro de salud Panorama.","Proyecto elaborado y presentado.",0,1,"Desarrollar proyectos para la gestión de recursos encaminados a la adquisición de nuevas tecnologías e infraestructura que permitan garantizar servicios de salud accesibles e incluyentes en cumplimiento a los standares de habilitación y asegurando la calidad de la prestación","1)Seguimiento a la gestión del  trámite legal de titulación  del predio para el proyecto  ",4,null,1,1,1,1,4,null,null,null,null,null,"Secretaría de salud Municipal","Secretaria de salud Municipal","Yaneth Sofia Ortiz Parra",0,null,null,null,0,null,null,0]
["DIMENSIÓN_FORTALECIMIENTO_DE_LA_AUTORIDAD_SANITARIA_PARA_LA_GESTIÓN_EN_SALUD",20910,"FORTALECIMIENTO DE LA AUTORIDAD SANITARIA POR UN PITALITO IDEAL","FORTALECIMIENTO_DE_LA_AUTORIDAD_SANITARIA","NA","NA",null,null,"Mantener la mortalidad general por debajo de 476,8 muertes x100.000 habitantes.","Tasa de mortalidad general por 100.000 habitantes","476,8 x 100.000 habitantes","476,8 x 100.000 habitantes","Presentar 1 proyecto  durante el cuatrienio destinado para la construcción de hospital de primer nivel","Proyecto elaborado y presentado.",0,1,"Desarrollar proyectos para la gestión de recursos encaminados a la adquisición de nuevas tecnologías e infraestructura que permitan garantizar servicios de salud accesibles e incluyentes en cumplimiento a los standares de habilitación y asegurando la calidad de la prestación","1)Seguimeinto a la gestión de recursos para la elaboración de estudios técnicos y diseños arquitectónicos del proyecto",4,null,1,1,1,1,4,null,null,null,null,null,"Secretaría de salud Municipal","Secretaria de salud Municipal","Yaneth Sofia Ortiz Parra",0,null,null,null,0,null,null,0]
["DIMENSIÓN_FORTALECIMIENTO_DE_LA_AUTORIDAD_SANITARIA_PARA_LA_GESTIÓN_EN_SALUD",20910,"FORTALECIMIENTO DE LA AUTORIDAD SANITARIA POR UN PITALITO IDEAL","FORTALECIMIENTO_DE_LA_AUTORIDAD_SANITARIA","NA","NA",null,null,"Mantener la mortalidad general por debajo de 476,8 muertes x100.000 habitantes.","Tasa de mortalidad general por 100.000 habitantes","476,8 x 100.000 habitantes","476,8 x 100.000 habitantes","Presentar 1 proyecto  durante el cuatrienio  para la gestión de recursos destinados a la compra de terrenos para construcción del puesto de salud de Chillurco y Charguayaco.","Proyecto elaborado y presentado.",0,1,"Desarrollar proyectos para la gestión de recursos encaminados a la adquisición de nuevas tecnologías e infraestructura que permitan garantizar servicios de salud accesibles e incluyentes en cumplimiento a los standares de habilitación y asegurando la calidad de la prestación","1) Renovación del proyecto de autorización de compra de terrenos ante la junta directiva de la ESE,  para la construcción de los puestos de salud de Chillurco y Charguayaco",1,null,1,null,null,null,1,null,null,null,null,null,"Secretaría de salud Municipal","Secretaria de salud Municipal","Yaneth Sofia Ortiz Parra",0,null,null,null,0,null,null,0]
["DIMENSIÓN_FORTALECIMIENTO_DE_LA_AUTORIDAD_SANITARIA_PARA_LA_GESTIÓN_EN_SALUD",20910,"FORTALECIMIENTO DE LA AUTORIDAD SANITARIA POR UN PITALITO IDEAL","FORTALECIMIENTO_DE_LA_AUTORIDAD_SANITARIA","NA","NA",null,null,"Mantener la mortalidad general por debajo de 476,8 muertes x100.000 habitantes.","Tasa de mortalidad general por 100.000 habitantes","476,8 x 100.000 habitantes","476,8 x 100.000 habitantes","Presentar 1  proyecto durante el cuatrienio que permita gestionar los recursos para la construcción de la segunda fase del centro de salud del corregimiento de Bruselas.","Proyecto elaborado y presentado.",0,1,"Desarrollar proyectos para la gestión de recursos encaminados a la adquisición de nuevas tecnologías e infraestructura que permitan garantizar servicios de salud accesibles e incluyentes en cumplimiento a los standares de habilitación y asegurando la calidad de la prestación","1)Elaboración del Estudio de viabilidad técnica y financiera del proyecto ante  Secretaria de Salud Departamental ",1,null,null,null,null,1,1,null,null,null,null,null,"Secretaría de salud Municipal","Secretaria de salud Municipal","Yaneth Sofia Ortiz Parra",0,null,null,null,0,null,null,0]
["DIMENSIÓN_FORTALECIMIENTO_DE_LA_AUTORIDAD_SANITARIA_PARA_LA_GESTIÓN_EN_SALUD",20910,"FORTALECIMIENTO DE LA AUTORIDAD SANITARIA POR UN PITALITO IDEAL","FORTALECIMIENTO_DE_LA_AUTORIDAD_SANITARIA","NA","NA",null,null,"Mantener la mortalidad general por debajo de 476,8 muertes x100.000 habitantes.","Tasa de mortalidad general por 100.000 habitantes","476,8 x 100.000 habitantes","476,8 x 100.000 habitantes","Presentar 1 proyecto para la adquisición de una unidad médico odontológica, durante el cuatrienio","Proyecto elaborado y presentado.",0,1,"Desarrollar proyectos para la gestión de recursos encaminados a la adquisición de nuevas tecnologías e infraestructura que permitan garantizar servicios de salud accesibles e incluyentes en cumplimiento a los standares de habilitación y asegurando la calidad de la prestación","META CUMPLIDA AÑO 2017 (Se elaboró y se presentó el proyecto ante el Ministerio de salud con radicado No. 2017742300154452 de fecha 27 de enero de 2017)\n\n-Seguimiento a la gestión del proyecto y ajustes que se requieran.  ",2,null,null,1,null,1,2,null,null,null,null,null,"Secretaría de salud Municipal","Secretaria de salud Municipal","Yaneth Sofia Ortiz Parra",0,null,null,null,0,null,null,0]
["DIMENSIÓN_FORTALECIMIENTO_DE_LA_AUTORIDAD_SANITARIA_PARA_LA_GESTIÓN_EN_SALUD",20910,"FORTALECIMIENTO DE LA AUTORIDAD SANITARIA POR UN PITALITO IDEAL","FORTALECIMIENTO_DE_LA_AUTORIDAD_SANITARIA","NA","NA",null,null,"Mantener la mortalidad general por debajo de 476,8 muertes x100.000 habitantes.","Tasa de mortalidad general por 100.000 habitantes","476,8 x 100.000 habitantes","476,8 x 100.000 habitantes","Radicar 1 proyecto durante el cuatrienio  para gestión de recursos destinados a Dotación de equipos biomédicos de los puestos de salud de Chillurco y Charguayaco y centros de salud ESE Manuel Castro Tovar.","Proyecto elaborado y presentado.",0,1,"Desarrollar proyectos para la gestión de recursos encaminados a la adquisición de nuevas tecnologías e infraestructura que permitan garantizar servicios de salud accesibles e incluyentes en cumplimiento a los standares de habilitación y asegurando la calidad de la prestación","META CUMPLIDA AÑO 2017 (Radicación del proyecto para dotacion de equipos biomédicos ante Secretaria de salud departamental mediante radicado No.  17992 del 19 de abril de 2017).  \n\n-Seguimiento a la gestión del proyecto y ajustes que se requieran.  ",2,null,null,1,null,1,2,null,null,null,null,null,"Secretaría de salud Municipal","Secretaria de salud Municipal","Yaneth Sofia Ortiz Parra",0,null,null,null,0,null,null,0]
["DIMENSIÓN_FORTALECIMIENTO_DE_LA_AUTORIDAD_SANITARIA_PARA_LA_GESTIÓN_EN_SALUD",20910,"FORTALECIMIENTO DE LA AUTORIDAD SANITARIA POR UN PITALITO IDEAL","FORTALECIMIENTO_DE_LA_AUTORIDAD_SANITARIA","NA","NA",null,null,"Mantener la mortalidad general por debajo de 476,8 muertes x100.000 habitantes.","Tasa de mortalidad general por 100.000 habitantes","476,8 x 100.000 habitantes","476,8 x 100.000 habitantes","Garantizar la adecuación de un espacio en la ESE Municipal Manuel CastroTovar para la prestación de servicios de salud amigables para adolescentes y jóvenes durante el cuatrienio","Espacio adecuado en la ESE Municipal Manuel Castro Tovar para la prestación de servicios de salud amigables para adolescentes y jóvenes.",0,1,"Desarrollar proyectos para la gestión de recursos encaminados a la adquisición de nuevas tecnologías e infraestructura que permitan garantizar servicios de salud accesibles e incluyentes en cumplimiento a los standares de habilitación y asegurando la calidad de la prestación","Reporte del Número de consultas ejecutadas/ Número de consultas programadas",4,null,1,1,1,1,4,null,null,null,null,null,"Secretaría de salud Municipal","Secretaria de salud Municipal","Yaneth Sofia Ortiz Parra",0,null,null,null,0,null,null,0]
["DIMENSIÓN_FORTALECIMIENTO_DE_LA_AUTORIDAD_SANITARIA_PARA_LA_GESTIÓN_EN_SALUD",20910,"FORTALECIMIENTO DE LA AUTORIDAD SANITARIA POR UN PITALITO IDEAL","FORTALECIMIENTO_DE_LA_AUTORIDAD_SANITARIA","NA","NA",null,null,"Mantener la mortalidad general por debajo de 476,8 muertes x100.000 habitantes.","Tasa de mortalidad general por 100.000 habitantes","476,8 x 100.000 habitantes","476,8 x 100.000 habitantes","Realizar 1 estudio de viabilidad durante el cuatrienio  para la construcción de un centro de atención para personas con problemas de uso y abuso de sustancias psicoactivas.","Número de estudios realizados",0,1,"Desarrollar proyectos para la gestión de recursos encaminados a la adquisición de nuevas tecnologías e infraestructura que permitan garantizar servicios de salud accesibles e incluyentes en cumplimiento a los standares de habilitación y asegurando la calidad de la prestación","SECRETARIA SALUD MUNICIPAL",null,null,null,null,null,null,0,null,null,null,null,null,"Secretaría de salud Municipal","Secretaria de salud Municipal","Yaneth Sofia Ortiz Parra",{"$error":"#DIV/0!"},null,null,null,{"$error":"#DIV/0!"},null,null,{"$error":"#DIV/0!"}]
["DIMENSIÓN_DE_VIDA_SALUDABLE_Y_CONDICIONES_NO_TRANSMISIBLES",20902,"ESTILOS DE VIDA SALUDABLE Y CONDICIONES NO TRANSMISIBLES PARA UN PITALITO IDEAL","CONDICIONES_CRONICAS_PREVALENTES","NA","NA",null,null,"Mantener la mortalidad general por debajo de 476,8 muertes x100.000 habitantes.","Tasa de mortalidad general por 100.000 habitantes","476,8 x 100.000 habitantes","476,8 x 100.000 habitantes","Construir y actualizar anualmente la línea base de personas menores de 18 años diagnosticadas con cáncer.",null,null,null,null,"Acciones de información en signos y síntomas de cancer  infantil, Ca de cuello uterino, mama y próstata y los derechos de estos pacientes.",null,"Número",null,null,null,null,null,"PROMOCIÓN_DE_LA_SALUD","PIC - Educación y comunicación en salud",null,"Recursos_Provenientes_del_Sistema_General_de_Participaciones_SGP",null,"Secretaría de salud Municipal","Secretaria de salud Municipal","Yaneth Sofia Ortiz Parra"]
["DIMENSIÓN_DE_VIDA_SALUDABLE_Y_CONDICIONES_NO_TRANSMISIBLES",20902,"ESTILOS DE VIDA SALUDABLE Y CONDICIONES NO TRANSMISIBLES PARA UN PITALITO IDEAL","CONDICIONES_CRONICAS_PREVALENTES","NA","NA",null,null,"Mantener la mortalidad general por debajo de 476,8 muertes x100.000 habitantes.","Tasa de mortalidad general por 100.000 habitantes","476,8 x 100.000 habitantes","476,8 x 100.000 habitantes","Construir y actualizar anualmente la línea base de personas menores de 18 años diagnosticadas con cáncer.",null,null,null,null,"Consolidar y actualizar base de datos de personas menores de 18 años diagnosticadas con cancer.",null,"Número",null,null,null,null,null,"GESTIÓN_DE_LA_SALUD_PÚBLICA","GSP -  Vigilancia en Salud Pública",null,"Recursos_Provenientes_del_Sistema_General_de_Participaciones_SGP",null,"Secretaría de salud Municipal","Secretaria de salud Municipal","Yaneth Sofia Ortiz Parra"]

{"sheet":"Componentes Metas","index":3,"n_rows":87,"n_cols":3,"rows_kept":87,"cut":false,"hidden":false,"merged":[[51,0,52,0],[53,0,63,0],[64,0,86,0],[53,1,57,1],[60,1,61,1],[64,1,86,1],[49,0,50,0],[15,1,17,1],[18,1,25,1],[27,1,39,1],[40,1,43,1],[45,1,48,1],[14,0,17,0],[18,0,25,0],[26,0,39,0],[8,1,10,1],[11,1,13,1],[1,2,2,2],[40,0,48,0],[3,0,7,0],[8,0,13,0],[0,0,0,2],[1,0,2,0],[1,1,2,1],[3,1,4,1],[5,1,7,1]]}
["PLAN DE ACCIÓN EN SALUD (PAS) "]
["Dimensión","Componente","Meta de Producto Anual"]
[]
["DIMENSIÓN_DE_SALUD_AMBIENTAL","HABITAT_SALUDABLE","Garantizar el desarrollo de la estrategia Entornos Saludables/ Viviendas Saludables en Viviendas del municipio de Pitalito."]
[null,null,"Garantizar el desarrollo de la estrategia Entornos Saludables/ Escuela saludable en  sedes educativas del municipio de Pitalito."]
[null,"SITUACIONES_EN_SALUD_RELACIONADAS_CON_CONDICIONES_AMBIENTALES","1911 establecimientos de interés sanitario de alto riesgo, vigilados y controlados."]
[null,null,"1722 establecimientos de interés sanitario de bajo riesgo vigilados y controlados."]
[null,null,"Mantener en 0 la tasa de rabia humana, canina y felina."]
["DIMENSIÓN_DE_VIDA_SALUDABLE_Y_CONDICIONES_NO_TRANSMISIBLES","MODOS_CONDICIONES_Y__ESTILOS_DE_VIDA_SALUDABLES","Capacitar a 1400 docentes de las Instituciones Educativas y representantes de las Instituciones Públicas, en las medidas establecidas en la ley 1335 de 2009, (ley de prevención y control de consumo de cigarrillo y tabaco)."]
[null,null,"Capacitar a 4000 docentes y estudiantes de Instituciones Educativas, funcionarios de ONG,s y otras instituciones en actividades propias de vida saludable."]
[null,null,"Vincular a 5000 personas a la promoción de la actividad física en espacios públicos en el municipio."]
[null,"CONDICIONES_CRONICAS_PREVALENTES","Implementar una estrategia para la promoción de prácticas de autocuidado,  prevención y manejo de las Enfermedades No Transmisibles, la salud bucal, visual y auditiva, desde la primera infancia y la importancia de la detección temprana de sobrepeso y obesidad, diabetes, hipertensión, enfermedad renal crónica, enfermedades cardiovasculares."]
[null,null,"Lograr un índice de (Cariados, obturados y perdidos) -COP por debajo de 3,0 en menores de 12 años."]
[null,null,"Construir y actualizar anualmente la línea base de personas menores de 18 años diagnosticadas con cáncer."]
["DIMENSIÓN_CONVIVENCIA_SOCIAL_Y_SALUD_MENTAL","PROMOCION_DE_LA_SALUD_MENTAL_Y_LA_CONVIVENCIA","Diseñar, ejecutar y evaluar un Plan municipal de reducción del consumo de sustancias psicoactivas."]
[null,"PREVENCION_Y_ATENCION_INTEGRAL_A_PROBLEMAS_Y_TRASTORNOS_MENTALES_Y_A_DIFERENTES_FORMAS_DE_VIOLENCIA","97% de intervenciones a los intentos de suicidio, suicidio y otros eventos en salud mental, reportados mediante el sistema de vigilancia en salud pública."]
[null,null,"Mantener por debajo de 7,2 x 100.000 habitantes, la tasa anual de mortalidad por suicidio."]
[null,null,"Diseñar, ejecutar y evaluar un plan local intersectorial de salud mental (suicidio, intento de suicidio  y violencias)."]
["DIMENSIÓN_SEGURIDAD_ALIMENTARIA_Y_NUTRICIONAL","CONSUMO_Y_APROVECHAMIENTO_BIOLOGICO_DE_ALIMENTOS","Mantener por debajo de 1,9% el índice de desnutrición aguda en niños menores de 5 años."]
[null,null,"Incrementar en 2 meses la duración de la lactancia materna exclusiva en menores de 6 meses."]
[null,null,"Diseñar, ejecutar y evaluar un Plan Local Intersectorial de Seguridad Alimentaria y Nutricional."]
[null,null,"Mantener por debajo de 3,9% el índice de desnutrición global en niños menores de 5 años."]
[null,null,"Mantener por debajo de 13,8% el índice de desnutrición crónica en niños menores de 5 años."]
[null,null,"Mantener por debajo de 3,2%  el porcentaje de niños y niñas con bajo peso al nacer."]
[null,null,"Construir y actualizar trimestral la línea base de anemia en gestantes de 13 a 49 años"]
[null,null,"Mantener por debajo de 23,1% el índice de exceso de peso en niños y niñas menores de 5 años."]
["DIMENSIÓN_SEXUALIDAD_DERECHOS_SEXUALES_Y_REPRODUCTIVOS","PROMOCION_DE_LOS_DERECHOS_SEXUALES_Y_REPRODUCTIVOS_Y_EQUIDAD_DE_GENERO","Mantener por debajo de 94,2 x 1000 nacidos vivos la tasa específica de fecundidad en mujeres adolescentes de 15 a 19 años."]
[null,"PREVENCION_Y_ATENCION_INTEGRAL_EN_SALUD_SEXUAL_Y_REPRODUCTIVA_DESDE_UN_ENFOQUE_DE_DERECHOS","Mantener por debajo de 2 la tasa de incidencia de sífilis congénita x 1000 nacidos vivos."]
[null,null,"Mantener en 0 el porcentaje de transmisión vertical de VIH."]
[null,null,"Mantener por debajo de 3,4 la tasa de mortalidad de VIH/SIDA x 100.000 habitantes."]
[null,null,"Mantener por debajo de 18,7 la tasa de  incidencia de VIH x 100.000 habitantes. "]
[null,null,"100% de mujeres gestantes con prueba de VIH en el año con sus respectivas asesorías."]
[null,null,"Incrementar al 80% el ingreso de gestantes a control prenatal antes de la semana 12 de gestación."]
[null,null,"Mantener por encima de 99,5 el porcentaje de mujeres gestantes con cuatro (4) o más controles prenatales."]
[null,null,"Mantener por encima del 95% la cobertura de parto institucional cada año"]
[null,null,"Mantener la razon de mortalidad materna por debajo de 42,03 x 100000 nacido vivos"]
[null,null,"Incrementar al 74% el porcentaje de mujeres entre 15 a 49 años que usan métodos de anticoncepción en el año."]
[null,null,"Aumentar a 60% el tamizaje de cáncer cervicouterino por medio de toma de citología cervicouterina en mujeres de 25 a 69 años."]
[null,null,"Alcanzar el 50% de IPS públicas y EAPB con socialización de la ruta de atención integral en equidad de género."]
[null,null,"Diseñar, ejecutar y evaluar un Plan Municipal de Salud Sexual y Reproductiva."]
["DIMENSIÓN_VIDA_SALUDABLE_Y_ENFERMEDADES_TRANSMISIBLES","ENFERMEDADES_EMERGENTES_RE_EMERGENTES_Y_DESATENDIDAS","Mantener por debajo de 16,2 x 100.000 habitantes la incidencia de tuberculosis."]
[null,null,"Mantener por encima de 80% las búsquedas activas al año de sintomáticos respiratorios de la meta planteada de la plantilla de programa anual."]
[null,null,"Mantener por debajo de 1,6 x100.000 habitantes la tasa de Hansen en el año."]
[null,null,"Mantener por debajo de 33,3% el porcentaje de discapacidad severa grado 2 por enfermedad de Hansen, entre los casos nuevos."]
[null,"ENFERMEDADES_INMUNOPREVENIBLES","Alcanzar el 95% o más de cobertura en todos los biológicos que hacen parte del esquema nacional, en la población objeto del programa."]
[null,"CONDICIONES_Y_SITUACIONES_ENDEMO_EPIDEMICAS","Fortalecer al 100% las acciones anuales de información en salud y educación y comunicación para la salud en prevención  de enfermedades transmitidas por vectores ETV."]
[null,null,"Disminuir la tasa de incidencia de dengue a 101 x 100.000 habitantes en el año, durante el cuatrienio."]
[null,null,"Disminuir a 7,1 el índice aédico en el año."]
[null,null,"Mantener en 0 la tasa anual de mortalidad asociada al dengue."]
["DIMENSIÓN_SALUD_PÚBLICA_EN_EMERGENCIAS_Y_DESASTRES","GESTION_INTEGRAL_DE_RIESGOS_EN_EMERGENCIAS_Y_DESASTRES","Cumplir el 90% de actividades programadas para fortalecer la capacidad de respuesta en salud en emergencias y desastres mediante acciones de  información en salud y educación y comunicación para la salud, (anexo técnico resolución 518 de 2015)."]
[null,"GESTION_INTEGRAL_DE_RIESGOS_EN_EMERGENCIAS_Y_DESASTRES","Alcanzar el 67% en Comunas y Corregimientos con mapas de riesgo en salud."]
["DIMENSIÓN_SALUD_Y_ÁMBITO_LABORAL","SEGURIDAD_Y_SALUD_EN_EL_TRABAJO","Fortalecer en 90% las acciones de promoción de la seguridad y riesgos  laborales en el sector formal e informal de la economía. (Lustra botas, braceros, venta de alimentos crudos y preparados entre otros."]
[null,"SITUACIONES_PREVALENTES_DE_ORIGEN_LABORAL","Fortalecer acciones  de sensibilización  para la inclusión de personas en condición de discapacidad  en el sector productivo de la economía tanto en el sector público y privado."]
["DIMENSIÓN_TRANSVERSAL_GESTIÓN_DIFERENCIAL_DE_POBLACIONES_VULNERABLES","DESARROLLO_INTEGRAL_DE_LAS_NIÑAS_NIÑOS_Y_ADOLESCENTES","Mantener por debajo de 8,1 x 1000 nacidos vivos la tasa de mortalidad infantil en menores de un año, en el cuatrienio."]
[null,null,"Mantener por debajo de 10,1 x 1000 nacidos vivos la tasa de mortalidad en menores de 5 años durante el cuatrienio."]
[null,null,"Disminuir a 100,3 x 1000 niños de 0 a 5 años, la tasa de morbilidad por enfermedad diarreica aguda -EDA."]
[null,null,"Disminuir a 357,4 x 1000 niños de 0 a 5 años, la tasa de morbilidad por infección respiratoria aguda – IRA."]
[null,null,"Fortalecer al 100% la estrategia Atención Integral a Enfermedades Prevalentes de la Infancia – AIEPI."]
[null,"ENVEJECIMIENTO_Y_VEJEZ","A 2019 la Secretaria de Salud de Pitalito ha realizado un diagnostico social de análisis de la situación del envejecimiento y vejez."]
[null,"SALUD_Y_GENERO","A 2019 la Secretaria de Salud de Pitalito ha realizado un diagnostico social orientado a la reducción de inequidades de género en salud, con participación social."]
[null,"SALUD_EN_POBLACIONES_ETNICAS","A 2019 la Secretaria de Salud de Pitalito ha realizado un diagnostico social de análisis de la situación de la población Afro."]
[null,null,"Fortalecer al 100% el proceso de concertación con la comunidades indígenas las acciones de Atención Primaria en salud –APS y Sistema Indígena de Salud Propio e Intercultural –SISPI."]
[null,"DISCAPACIDAD","Fortalecer al 100% la estrategia Rehabilitación Basada en la Comunidad –RBC, para la población que presenta condición de discapacidad."]
[null,"VICTIMAS_DEL_CONFLICTO_ARMADO_INTERNO","Atender al 100% de la demanda en acompañamiento psicosocial a la población víctima del conflicto armado."]
["DIMENSIÓN_FORTALECIMIENTO_DE_LA_AUTORIDAD_SANITARIA_PARA_LA_GESTIÓN_EN_SALUD","FORTALECIMIENTO_DE_LA_AUTORIDAD_SANITARIA","Lograr el cumplimiento del 100% en la notificación de las semanas epidemiológicas por parte de las Unidades Primarias Generadoras de Datos -UPGD en el año."]
[null,null,"Realizar visitas de seguimiento al 100% de los eventos de interés en salud pública que lo requieran según protocolo. (Notificados al SIVIGILA cada año)."]
[null,null,"Realizar el 100% de los Comité de Vigilancia Epidemiológica -COVE."]
[null,null,"Realizar el 100% de los Comités de Vigilancia en Salud Pública. (Comité de Estadísticas Vitales y Comité de Vigilancia Epidemiológica Comunitaria –COVECOM)."]
[null,null,"Elaborar y aprobar el Plan Territorial de Salud del municipio de Pitalito, durante el cuatrienio"]
[null,null,"Mantener 1 contrato al año, con una empresa interventora para Garantizar el seguimiento a la prestación del servicio del régimen subsidiado"]
[null,null,"Fortalecer a la Secretaria de Salud Municipal a través de la implementación de los procesos para la gestión de la salud pública."]
[null,null,"Identificar en un 100% las EAPB e IPS que generan barreras administrativas en la prestación de servicios, para su notificación a los Entes de Control."]
[null,null,"Mediante mesas de trabajo con los actores del sistema (EAPB e IPS) generar planes de mejora que propendan por el mejoramiento continuo de la calidad."]
[null,null,"Mantener el 100% de los afiliados al Sistema General de Seguridad Social en Salud -SGSSS régimen subsidiado en continuidad"]
[null,null,"Diseñar e implementar una estrategia de vigilancia para evitar la evasión y elución al SGSSS."]
[null,null,"Garantizar en un 80% la accesibilidad a los servicios de salud de primer nivel a la población urbana y rural del municipio  mediante el modelo de Atencion Primaria en Salud -APS"]
[null,null,"Avanzar al 60% en la implementacion de la estrategia IAMI con base a los nuevos lineamientos de la UNICEF emitidos el año 2016, en la ESE municipal Manuel Castro Tovar."]
[null,null,"Mantener actualizado el Sistema de Gestion de Calidad en la ESE Municipal Manuel Castro Tovar."]
[null,null,"Fortalecer 1 programa de humanización de servicios de salud (buen trato), en la ESE Manuel Castro Tovar, durante el cuatrienio."]
[null,null,"Presentar 1 proyecto para la consecución de recursos  destinados a la  construcción de la sede del centro de salud Panorama."]
[null,null,"Presentar 1 proyecto  durante el cuatrienio destinado para la construcción de hospital de primer nivel"]
[null,null,"Presentar 1 proyecto  durante el cuatrienio  para la gestión de recursos destinados a la compra de terrenos para construcción del puesto de salud de Chillurco y Charguayaco."]
[null,null,"Presentar 1  proyecto durante el cuatrienio que permita gestionar los recursos para la construcción de la segunda fase del centro de salud del corregimiento de Bruselas."]
[null,null,"Presentar 1 proyecto para la adquisición de una unidad médico odontológica, durante el cuatrienio"]
[null,null,"Radicar 1 proyecto durante el cuatrienio  para gestión de recursos destinados a Dotación de equipos biomédicos de los puestos de salud de Chillurco y Charguayaco y centros de salud ESE Manuel Castro Tovar."]
[null,null,"Garantizar la adecuación de un espacio en la ESE Municipal Manuel CastroTovar para la prestación de servicios de salud amigables para adolescentes y jóvenes durante el cuatrienio"]
[null,null,"Realizar 1 estudio de viabilidad durante el cuatrienio  para la construcción de un centro de atención para personas con problemas de uso y abuso de sustancias psicoactivas."]

{"sheet":"DIMYCOMP (2)","index":4,"n_rows":42,"n_cols":18,"rows_kept":42,"cut":false,"hidden":true,"merged":[[0,12,0,13]]}
[null,1,2,3,4,5,6,7,8,9,10,null,"FUENTES DE RECURSOS"]
[null,"DIMENSIÓN_DE_SALUD_AMBIENTAL","DIMENSIÓN_DE_VIDA_SALUDABLE_Y_CONDICIONES_NO_TRANSMISIBLES","DIMENSIÓN_CONVIVENCIA_SOCIAL_Y_SALUD_MENTAL","DIMENSIÓN_SEGURIDAD_ALIMENTARIA_Y_NUTRICIONAL","DIMENSIÓN_SEXUALIDAD_DERECHOS_SEXUALES_Y_REPRODUCTIVOS","DIMENSIÓN_VIDA_SALUDABLE_Y_ENFERMEDADES_TRANSMISIBLES","DIMENSIÓN_SALUD_PÚBLICA_EN_EMERGENCIAS_Y_DESASTRES","DIMENSIÓN_SALUD_Y_ÁMBITO_LABORAL","DIMENSIÓN_TRANSVERSAL_GESTIÓN_DIFERENCIAL_DE_POBLACIONES_VULNERABLES","DIMENSIÓN_FORTALECIMIENTO_DE_LA_AUTORIDAD_SANITARIA_PARA_LA_GESTIÓN_EN_SALUD",null,1,"Recursos_Provenientes_del_Sistema_General_de_Participaciones_SGP",null,"A.2.1","RÉGIMEN SUBSIDIADO ","A.2.1 RÉGIMEN SUBSIDIADO "]
[null,"HABITAT_SALUDABLE","MODOS_CONDICIONES_Y__ESTILOS_DE_VIDA_SALUDABLES","PROMOCION_DE_LA_SALUD_MENTAL_Y_LA_CONVIVENCIA","DISPONIBILIDAD_Y_ACCESO_A_LOS_ALIMENTOS","PROMOCION_DE_LOS_DERECHOS_SEXUALES_Y_REPRODUCTIVOS_Y_EQUIDAD_DE_GENERO","ENFERMEDADES_EMERGENTES_RE_EMERGENTES_Y_DESATENDIDAS","GESTION_INTEGRAL_DE_RIESGOS_EN_EMERGENCIAS_Y_DESASTRES","SEGURIDAD_Y_SALUD_EN_EL_TRABAJO","DESARROLLO_INTEGRAL_DE_LAS_NIÑAS_NIÑOS_Y_ADOLESCENTES","FORTALECIMIENTO_DE_LA_AUTORIDAD_SANITARIA",null,2,"Transferencias_en_salud_del_Ministerio_de_Salud_y_Protección_Social_MSPS",null,"A.2.2","SALUD PÚBLICA   ","A.2.2 SALUD PÚBLICA   "]
[null,"SITUACIONES_EN_SALUD_RELACIONADAS_CON_CONDICIONES_AMBIENTALES","CONDICIONES_CRONICAS_PREVALENTES","PREVENCION_Y_ATENCION_INTEGRAL_A_PROBLEMAS_Y_TRASTORNOS_MENTALES_Y_A_DIFERENTES_FORMAS_DE_VIOLENCIA","CONSUMO_Y_APROVECHAMIENTO_BIOLOGICO_DE_ALIMENTOS","PREVENCION_Y_ATENCION_INTEGRAL_EN_SALUD_SEXUAL_Y_REPRODUCTIVA_DESDE_UN_ENFOQUE_DE_DERECHOS","ENFERMEDADES_INMUNOPREVENIBLES","RESPUESTA_EN_SALUD_ANTE_SITUACIONES_DE_EMERGENCIAS_Y_DESASTRES","SITUACIONES_PREVALENTES_DE_ORIGEN_LABORAL","ENVEJECIMIENTO_Y_VEJEZ",null,null,3,"Rentas_cedidas_Departamentos",null,"A.2.3","PRESTACION DE SERVICIOS A LA POBLACION POBRE EN LO NO CUBIERTO CON SUBSIDIOS A LA DEMANDA ","A.2.3 PRESTACION DE SERVICIOS A LA POBLACION POBRE EN LO NO CUBIERTO CON SUBSIDIOS A LA DEMANDA "]
[null,null,null,null,"INOCUIDAD_Y_CALIDAD_DE_LOS_ALIMENTOS",null,"CONDICIONES_Y_SITUACIONES_ENDEMO_EPIDEMICAS",null,null,"SALUD_Y_GENERO",null,null,4,"Recursos_del_Esfuerzo_Propio_Territorial_Recursos_propios",null,"A.2.4","OTROS GASTOS EN SALUD","A.2.4 OTROS GASTOS EN SALUD"]
[null,null,null,null,null,null,null,null,null,"SALUD_EN_POBLACIONES_ETNICAS",null,null,5,"Recursos_de_las_Cajas_de_Compensación_Familiar_Municipios"]
[null,null,null,null,null,null,null,null,null,"DISCAPACIDAD",null,null,6,"FOSYGA_Porcentaje_destinado_a_Entidad_Territorial"]
[null,null,null,null,null,null,null,null,null,"VICTIMAS_DEL_CONFLICTO_ARMADO_INTERNO",null,null,7,"Otros_Recursos_departamentales_y_o_distritales"]
[]
[]
[]
[]
[]
[]
[null,null,null,null,null,null,null,null,null,null,"PIC - Insumos","PIC - Insumos"]
[null,"PROMOCIÓN_DE_LA_SALUD","PIC","Biológico",null,"Años",null,null,null,null,"PIC - Rehabilitación basada en comunidad","PIC - Rehabilitación basada en comunidad"]
[null,"GESTIÓN_DE_RIESGO_EN_SALUD","AGENDA_TRANSECTORIAL","Canalización",null,"Avpp",null,null,null,null,"PIC - Prevención y control de vectores","PIC - Prevención y control de vectores"]
[null,"GESTIÓN_DE_LA_SALUD_PÚBLICA","INDIVIDUAL_POS","Caracterización social y ambiental",null,"Avisas",null,null,null,null,"PIC - Conformación y fortalecimiento de redes sociales, comunitarias, sectoriales e intersectoriales","PIC - Conformación y fortalecimiento de redes sociales, comunitarias, sectoriales e intersectoriales"]
[null,null,"COLECTIVO_PIC","Conformación y fortalecimiento de redes sociales, comunitarias, sectoriales e intersectoriales",null,"Casos",null,null,null,null,"PIC - Zonas de orientación y centros de escucha","PIC - Zonas de orientación y centros de escucha"]
[null,null,"GSP","Educación y comunicación para la salud",null,"Documentos",null,null,null,null,"PIC - Información en salud","PIC - Información en salud"]
[null,null,null,"Información en salud",null,"Habitantes",null,null,null,null,"PIC - Educación y comunicación en salud","PIC - Educación y comunicación en salud"]
[null,null,null,"Insumos",null,"Incidencia",null,null,null,null,"PIC - Intervención de la población trabajadora informal","PIC - Intervención de la población trabajadora informal"]
[null,null,null,"Intervención de la población trabajadora informal",null,"Indice",null,null,null,null,"PIC - Canalización","PIC - Canalización"]
[null,null,null,"Jornadas de salud",null,"Mediana",null,null,null,null,"PIC - Caracterización social y ambiental","PIC - Caracterización social y ambiental"]
[null,null,null,"Medicamentos",null,"Meses",null,null,null,null,"PIC - Tamizaje","PIC - Tamizaje"]
[null,null,null,"Prevención y control de vectores",null,"Número",null,null,null,null,"PIC - Jornadas de salud","PIC - Jornadas de salud"]
[null,null,null,"Rehabilitación basada en comunidad",null,"Personas",null,null,null,null,"PIC - Vacunación antirrábica","PIC - Vacunación antirrábica"]
[null,null,null,"Tamizaje",null,"Porcentaje",null,null,null,null,"PIC - Biológico","PIC - Biológico"]
[null,null,null,"Vacunación antirrábica",null,"Prevalencia",null,null,null,null,"PIC - Medicamentos","PIC - Medicamentos"]
[null,null,null,"Zonas de orientación y centros de escucha",null,"Probabilidad",null,null,null,null,"GSP - Coordinación Intersectorial"]
[null,null,null,null,null,"Promedio",null,null,null,null,"GSP - Desarrollo de capacidades"]
[null,null,null,null,null,"Proporción",null,null,null,null,"GSP - Gestión administrativa y financiera"]
[null,null,null,null,null,"Razón",null,null,null,null,"GSP - Gestión del Aseguramiento"]
[null,null,null,null,null,"Tasa",null,null,null,null,"GSP -  Gestión del conocimiento"]
[null,null,null,null,null,null,null,null,null,null,"GSP - Gestión de Insumos de interés en Salud Pública"]
[null,null,null,null,null,null,null,null,null,null,"GSP -  Gestión del talento humano"]
[null,null,null,null,null,null,null,null,null,null,"GSP - Gestión de las Intervenciones colectivas"]
[null,null,null,null,null,null,null,null,null,null,"GSP - Gestión de la prestación de servicios individuales"]
[null,null,null,null,null,null,null,null,null,null,"GSP - Participación Social"]
[null,null,null,null,null,null,null,null,null,null,"GSP - Planeación Integral en Salud "]
[null,null,null,null,null,null,null,null,null,null,"GSP -  Vigilancia en Salud Pública"]
[null,null,null,null,null,null,null,null,null,null,"GSP - Inspección, Vigilancia y Control "]

{"sheet":"FUENTES DE RECURSOS","index":5,"n_rows":8,"n_cols":2,"rows_kept":8,"cut":false,"hidden":true,"merged":[]}
[]
[null,"Recursos_Provenientes_del_Sistema_General_de_Participaciones_SGP"]
[null,"Transferencias_en_salud_del_Ministerio_de_Salud_y_Protección_Social_MSPS"]
[null,"Rentas_cedidas_Departamentos"]
[null,"Recursos_del_Esfuerzo_Propio_Territorial_Recursos_propios"]
[null,"Recursos_de_las_Cajas_de_Compensación_Familiar_Municipios"]
[null,"FOSYGA_Porcentaje_destinado_a_Entidad_Territorial"]
[null,"Otros_Recursos_departamentales_y_o_distritales"]

{"sheet":"Hoja1","index":6,"n_rows":10,"n_cols":4,"rows_kept":10,"cut":false,"hidden":false,"merged":[[4,2,5,2],[6,2,7,2],[8,2,9,2]]}
[]
[]
[]
[]
[null,null,"DIMENSIÓN SALUD AMBIENTAL","HABITAT SALUDABLE"]
[null,null,null,"SITUACIONES EN SALUD RELACIONADAS CON CONDICIONES AMBIENTALES"]
[null,null,"DIMENSIÓN VIDA SALUDABLE Y CONDICIONES NO TRANSMISIBLES","MODOS CONDICIONES Y ESTILOS DE VIDA SALUDABLES"]
[null,null,null,"CONDICIONES CRONICAS PREVALENTES"]
[null,null,"DIMENSIÓN CONVIVENCIA SOCIAL Y SALUD MENTAL","PROMOCION DE LA SALUD MENTAL Y LA CONVIVENCIA"]
[null,null,null,"PREVENCION Y ATENCION INTEGRAL A PROBLEMAS Y TRASTORNOS MENTALES Y A DIFERENTES FORMAS DE VIOLENCIA"]